Body name,Directorate,Service Area Categorisation,Supplier Name,Payment Date,Card Transaction,Net Amount,Purpose of Spend,Procurement Classification: ProClass Label
Solihull MBC,Communities & Adult Social Care,Adult Social Care,2 Care (The Knowl),11/04/2016,,3840.00,ASC - Residential Care Permanent,Not Yet Classified
Solihull MBC,Children's Services - DSG Schools - Non DMT,Children & Education Services,2Simple Software Limited,28/04/2016,,400.00,IT Equipment & Software,171100 - Education - Supplies
Solihull MBC,Children's Services - DSG Schools - Non DMT,Children & Education Services,3 Step IT (UK) Ltd,20/04/2016,,16000.00,IT Equipment & Software,Not Yet Classified
Solihull MBC,Children's Services - DSG Schools - Non DMT,Children & Education Services,3D Contracts Ltd,15/04/2016,,3795.00,Building Maint Planned,Not Yet Classified
Solihull MBC,Managed Growth,Environmental and Regulatory Services,A & C Weber UK Ltd,21/04/2016,,10614.00,Furniture & Equipment,Not Yet Classified
Solihull MBC,Managed Growth,Environmental and Regulatory Services,A & C Weber UK Ltd,21/04/2016,,10614.00,Furniture & Equipment,Not Yet Classified
Solihull MBC,Children's Services - DSG Central.,Children & Education Services,A T Manville,05/04/2016,,2820.00,Professional Fees,Not Yet Classified
Solihull MBC,Communities & Adult Social Care,Adult Social Care,Abbey Healthcare Homes Ltd,06/04/2016,,4226.56,ASC - Nursing Care Permanent,321000 - Social Community Care Supplies & Services - Adult
Solihull MBC,Communities & Adult Social Care,Adult Social Care,Abbey Healthcare Homes Ltd,06/04/2016,,3920.84,ASC - Nursing Care Permanent,321000 - Social Community Care Supplies & Services - Adult
Solihull MBC,Children's Services & Skills,Children & Education Services,ABC Fostering Services Ltd,13/04/2016,,3115.50,External Fostering,Not Yet Classified
Solihull MBC,Children's Services - DSG Schools - Non DMT,Children & Education Services,ABC Teachers,21/04/2016,,1628.32,Agency Staff: Teachers,171011 - Education - School Services
Solihull MBC,Children's Services - DSG Schools - Non DMT,Children & Education Services,ABC Teachers,21/04/2016,,1055.00,Agency Staff: Teachers,171011 - Education - School Services
Solihull MBC,Children's Services - DSG Schools - Non DMT,Children & Education Services,ABC Teachers,21/04/2016,,715.83,Agency Staff: Teachers,171011 - Education - School Services
Solihull MBC,Children's Services - DSG Schools - Non DMT,Children & Education Services,ABC Teachers,21/04/2016,,1058.45,Agency Staff: Teachers,171011 - Education - School Services
Solihull MBC,Children's Services - DSG Schools - Non DMT,Children & Education Services,ABC Teachers,21/04/2016,,825.83,Agency Staff: Teachers,171011 - Education - School Services
Solihull MBC,Children's Services - DSG Schools - Non DMT,Children & Education Services,ABC Teachers,22/04/2016,,584.97,Agency Staff: Teachers,171011 - Education - School Services
Solihull MBC,Children's Services - DSG Schools - Non DMT,Children & Education Services,ABC Teachers,20/04/2016,,660.00,Agency Staff: Teachers,171011 - Education - School Services
Solihull MBC,Children's Services - DSG Schools - Non DMT,Children & Education Services,ABC Teachers,12/04/2016,,379.98,Agency Staff: Teachers,171011 - Education - School Services
Solihull MBC,Children's Services - DSG Schools - Non DMT,Children & Education Services,ABC Teachers,12/04/2016,,865.30,Agency Staff: Teachers,171011 - Education - School Services
Solihull MBC,Children's Services - DSG Schools - Non DMT,Children & Education Services,ABC Teachers,12/04/2016,,370.44,Agency Staff: Classroom Support,171011 - Education - School Services
Solihull MBC,Children's Services - DSG Schools - Non DMT,Children & Education Services,ABC Teachers,21/04/2016,,1873.32,Agency Staff: Teachers,171011 - Education - School Services
Solihull MBC,Children's Services - DSG Schools - Non DMT,Children & Education Services,ABC Teachers,27/04/2016,,232.00,Agency Staff: Teachers,171011 - Education - School Services
Solihull MBC,Children's Services - DSG Schools - Non DMT,Children & Education Services,ABC Teachers,27/04/2016,,608.91,Agency Staff: Teachers,171011 - Education - School Services
Solihull MBC,Children's Services - DSG Schools - Non DMT,Children & Education Services,ABC Teachers,27/04/2016,,1086.13,Agency Staff: Teachers,171011 - Education - School Services
Solihull MBC,Children's Services & Skills,Children & Education Services,Abdullah & Sons Co,15/04/2016,Card Transaction,266.67,Client Leaving Care Grant,211100 - Furniture & Soft Furnishings - Domestic Furniture
Solihull MBC,Children's Services & Skills,Children & Education Services,Abdullah & Sons Co Limited,13/04/2016,,674.00,Clients Expenses,321000 - Social Community Care Supplies & Services - Adult
Solihull MBC,Children's Services & Skills,Children & Education Services,Abdullah & Sons Co Limited,04/04/2016,,275.00,Client Leaving Care Grant,321000 - Social Community Care Supplies & Services - Adult
Solihull MBC,Children's Services - DSG Central.,Children & Education Services,Abigail Nicholls,18/04/2016,,378.00,Grant & Subscription (SCITT),Not Yet Classified
Solihull MBC,Children's Services & Skills,Children & Education Services,Access With Choice,05/04/2016,,289.50,Clients Expenses,Not Yet Classified
Solihull MBC,Children's Services & Skills,Children & Education Services,Access With Choice,21/04/2016,,3856.60,Supported Lodgings,Not Yet Classified
Solihull MBC,Children's Services & Skills,Children & Education Services,Access With Choice,05/04/2016,,3051.28,Supported Lodgings,Not Yet Classified
Solihull MBC,Children's Services & Skills,Children & Education Services,Access With Choice,05/04/2016,,289.50,Clients Expenses,Not Yet Classified
Solihull MBC,Children's Services & Skills,Children & Education Services,Access With Choice,05/04/2016,,3875.00,Supported Lodgings,Not Yet Classified
Solihull MBC,Communities & Adult Social Care,Adult Social Care,Accord Housing Association,11/04/2016,,384.18,ASC - Home Care Support Services,321000 - Social Community Care Supplies & Services - Adult
Solihull MBC,Communities & Adult Social Care,Adult Social Care,Accord Housing Association,11/04/2016,,545.16,ASC - Home Care Support Services,321000 - Social Community Care Supplies & Services - Adult
Solihull MBC,Communities & Adult Social Care,Adult Social Care,Accord Housing Association,11/04/2016,,742.28,ASC - Home Care Support Services,321000 - Social Community Care Supplies & Services - Adult
Solihull MBC,Communities & Adult Social Care,Adult Social Care,Accord Housing Association,11/04/2016,,603.68,ASC - Home Care Support Services,321000 - Social Community Care Supplies & Services - Adult
Solihull MBC,Communities & Adult Social Care,Adult Social Care,Accord Housing Association,11/04/2016,,311.08,ASC - Home Care Support Services,321000 - Social Community Care Supplies & Services - Adult
Solihull MBC,Communities & Adult Social Care,Adult Social Care,Accord Housing Association,11/04/2016,,320.32,ASC - Home Care Support Services,321000 - Social Community Care Supplies & Services - Adult
Solihull MBC,Communities & Adult Social Care,Adult Social Care,Accord Housing Asssociation,14/04/2016,,1816.00,ASC - Residential Care Permanent,321000 - Social Community Care Supplies & Services - Adult
Solihull MBC,Communities & Adult Social Care,Adult Social Care,Accord Housing Asssociation,14/04/2016,,2032.00,ASC - Residential Care Permanent,321000 - Social Community Care Supplies & Services - Adult
Solihull MBC,Communities & Adult Social Care,Adult Social Care,Accord Housing Asssociation,14/04/2016,,2052.32,ASC - Residential Care Permanent,321000 - Social Community Care Supplies & Services - Adult
Solihull MBC,Communities & Adult Social Care,Adult Social Care,Accord Housing Asssociation,14/04/2016,,1773.56,ASC - Residential Care Permanent,321000 - Social Community Care Supplies & Services - Adult
Solihull MBC,Communities & Adult Social Care,Adult Social Care,Accord Housing Asssociation,14/04/2016,,2052.32,ASC - Residential Care Permanent,321000 - Social Community Care Supplies & Services - Adult
Solihull MBC,Communities & Adult Social Care,Adult Social Care,Accord Housing Asssociation,14/04/2016,,2252.00,ASC - Residential Care Permanent,321000 - Social Community Care Supplies & Services - Adult
Solihull MBC,Communities & Adult Social Care,Adult Social Care,Accord Housing Asssociation,14/04/2016,,1773.56,ASC - Residential Care Permanent,321000 - Social Community Care Supplies & Services - Adult
Solihull MBC,Communities & Adult Social Care,Adult Social Care,Accord Housing Asssociation,14/04/2016,,1756.00,ASC - Residential Care Permanent,321000 - Social Community Care Supplies & Services - Adult
Solihull MBC,Communities & Adult Social Care,Adult Social Care,Accord Housing Asssociation,14/04/2016,,1773.56,ASC - Residential Care Permanent,321000 - Social Community Care Supplies & Services - Adult
Solihull MBC,Communities & Adult Social Care,Adult Social Care,Accord Housing Asssociation,14/04/2016,,1816.00,ASC - Residential Care Permanent,321000 - Social Community Care Supplies & Services - Adult
Solihull MBC,Communities & Adult Social Care,Adult Social Care,Accord Housing Asssociation,14/04/2016,,2052.32,ASC - Residential Care Permanent,321000 - Social Community Care Supplies & Services - Adult
Solihull MBC,Communities & Adult Social Care,Adult Social Care,Accord Housing Asssociation,14/04/2016,,1773.56,ASC - Residential Care Permanent,321000 - Social Community Care Supplies & Services - Adult
Solihull MBC,Communities & Adult Social Care,Adult Social Care,Accord Housing Asssociation,14/04/2016,,2052.32,ASC - Residential Care Permanent,321000 - Social Community Care Supplies & Services - Adult
Solihull MBC,Communities & Adult Social Care,Adult Social Care,Accord Housing Asssociation,14/04/2016,,1773.56,ASC - Residential Care Permanent,321000 - Social Community Care Supplies & Services - Adult
Solihull MBC,Communities & Adult Social Care,Adult Social Care,Accord Housing Asssociation,14/04/2016,,2052.32,ASC - Residential Care Permanent,321000 - Social Community Care Supplies & Services - Adult
Solihull MBC,Communities & Adult Social Care,Adult Social Care,Accord Housing Asssociation,14/04/2016,,1773.56,ASC - Residential Care Permanent,321000 - Social Community Care Supplies & Services - Adult
Solihull MBC,Communities & Adult Social Care,Adult Social Care,Accord Housing Asssociation,14/04/2016,,2052.32,ASC - Residential Care Permanent,321000 - Social Community Care Supplies & Services - Adult
Solihull MBC,Communities & Adult Social Care,Adult Social Care,Accord Housing Asssociation,14/04/2016,,2052.32,ASC - Residential Care Permanent,321000 - Social Community Care Supplies & Services - Adult
Solihull MBC,Communities & Adult Social Care,Adult Social Care,Accord Housing Asssociation,14/04/2016,,2052.32,ASC - Residential Care Permanent,321000 - Social Community Care Supplies & Services - Adult
Solihull MBC,Communities & Adult Social Care,Adult Social Care,Accord Housing Asssociation,14/04/2016,,2052.32,ASC - Residential Care Permanent,321000 - Social Community Care Supplies & Services - Adult
Solihull MBC,Communities & Adult Social Care,Adult Social Care,Accord Housing Asssociation,14/04/2016,,2052.32,ASC - Residential Care Permanent,321000 - Social Community Care Supplies & Services - Adult
Solihull MBC,Communities & Adult Social Care,Adult Social Care,Accord Housing Asssociation,14/04/2016,,2052.00,ASC - Residential Care Permanent,321000 - Social Community Care Supplies & Services - Adult
Solihull MBC,Communities & Adult Social Care,Adult Social Care,Accord Housing Asssociation,14/04/2016,,2052.32,ASC - Residential Care Permanent,321000 - Social Community Care Supplies & Services - Adult
Solihull MBC,Communities & Adult Social Care,Adult Social Care,Accord Housing Asssociation,14/04/2016,,1773.56,ASC - Residential Care Permanent,321000 - Social Community Care Supplies & Services - Adult
Solihull MBC,Communities & Adult Social Care,Adult Social Care,Accord Housing Asssociation,14/04/2016,,2052.32,ASC - Residential Care Permanent,321000 - Social Community Care Supplies & Services - Adult
Solihull MBC,Communities & Adult Social Care,Adult Social Care,Accord Housing Asssociation,14/04/2016,,1832.43,ASC - Residential Care Permanent,321000 - Social Community Care Supplies & Services - Adult
Solihull MBC,Communities & Adult Social Care,Adult Social Care,Accord Housing Asssociation,14/04/2016,,1773.56,ASC - Residential Care Permanent,321000 - Social Community Care Supplies & Services - Adult
Solihull MBC,Communities & Adult Social Care,Adult Social Care,Accord Housing Asssociation,14/04/2016,,2052.32,ASC - Residential Care Permanent,321000 - Social Community Care Supplies & Services - Adult
Solihull MBC,Communities & Adult Social Care,Adult Social Care,Accord Housing Asssociation,14/04/2016,,2032.00,ASC - Residential Care Permanent,321000 - Social Community Care Supplies & Services - Adult
Solihull MBC,Communities & Adult Social Care,Adult Social Care,Accord Housing Asssociation,14/04/2016,,439.78,ASC - Residential Care Permanent,321000 - Social Community Care Supplies & Services - Adult
Solihull MBC,Communities & Adult Social Care,Adult Social Care,Accord Housing Asssociation,15/04/2016,,1612.54,ASC - Residential Care Permanent,321000 - Social Community Care Supplies & Services - Adult
Solihull MBC,Communities & Adult Social Care,Adult Social Care,Accord Housing Asssociation,15/04/2016,,1172.75,ASC - Residential Care Permanent,321000 - Social Community Care Supplies & Services - Adult
Solihull MBC,Communities & Adult Social Care,Adult Social Care,Accord Housing Asssociation,14/04/2016,,1773.56,ASC - Residential Care Permanent,321000 - Social Community Care Supplies & Services - Adult
Solihull MBC,Communities & Adult Social Care,Adult Social Care,Accord Housing Asssociation,14/04/2016,,2052.32,ASC - Residential Care Permanent,321000 - Social Community Care Supplies & Services - Adult
Solihull MBC,Communities & Adult Social Care,Adult Social Care,Accord Housing Asssociation,14/04/2016,,2052.32,ASC - Residential Care Permanent,321000 - Social Community Care Supplies & Services - Adult
Solihull MBC,Communities & Adult Social Care,Adult Social Care,Accord Housing Asssociation,14/04/2016,,2052.32,ASC - Residential Care Permanent,321000 - Social Community Care Supplies & Services - Adult
Solihull MBC,Communities & Adult Social Care,Adult Social Care,Accord Housing Asssociation,14/04/2016,,1773.56,ASC - Residential Care Permanent,321000 - Social Community Care Supplies & Services - Adult
Solihull MBC,Communities & Adult Social Care,Adult Social Care,Accord Housing Asssociation,14/04/2016,,2052.32,ASC - Residential Care Permanent,321000 - Social Community Care Supplies & Services - Adult
Solihull MBC,Communities & Adult Social Care,Adult Social Care,Accord Housing Asssociation,14/04/2016,,2052.32,ASC - Residential Care Permanent,321000 - Social Community Care Supplies & Services - Adult
Solihull MBC,Communities & Adult Social Care,Adult Social Care,Accord Housing Asssociation,14/04/2016,,2052.32,ASC - Residential Care Permanent,321000 - Social Community Care Supplies & Services - Adult
Solihull MBC,Communities & Adult Social Care,Adult Social Care,Accord Housing Asssociation,14/04/2016,,1773.56,ASC - Residential Care Permanent,321000 - Social Community Care Supplies & Services - Adult
Solihull MBC,Children's Services - DSG Central.,Children & Education Services,Ace Education LLP,01/04/2016,,2496.00,Professional Fees,Not Yet Classified
Solihull MBC,Managed Growth,Planning & Development Services,Acivico,06/04/2016,,1631.85,Agency Staff,Not Yet Classified
Solihull MBC,Managed Growth,Planning & Development Services,Acivico,08/04/2016,,2520.02,Agency Staff,Not Yet Classified
Solihull MBC,Managed Growth,Planning & Development Services,Acivico,08/04/2016,,2470.67,Agency Staff,Not Yet Classified
Solihull MBC,Managed Growth,Planning & Development Services,Acivico,08/04/2016,,1984.29,Agency Staff,Not Yet Classified
Solihull MBC,Managed Growth,Planning & Development Services,Acivico,08/04/2016,,2354.37,Agency Staff,Not Yet Classified
Solihull MBC,Managed Growth,Planning & Development Services,Acivico,06/04/2016,,2470.00,Professional Fees,Not Yet Classified
Solihull MBC,Managed Growth,Planning & Development Services,Acivico,06/04/2016,,390.00,Professional Fees,Not Yet Classified
Solihull MBC,Managed Growth,Planning & Development Services,Acivico,06/04/2016,,1691.76,Agency Staff,Not Yet Classified
Solihull MBC,Managed Growth,Other Housing Services,Act On Energy,07/04/2016,,4975.00,Professional Fees,Not Yet Classified
Solihull MBC,Resources,Central Services to the Public,Actica Management Consultants,29/04/2016,,11250.00,Professional Fees,Not Yet Classified
Solihull MBC,Children's Services - DSG Schools - Non DMT,Children & Education Services,Action Centres UK Ltd,13/04/2016,,5070.00,Visits & Pupil Activities,321100 - Social Community Care Supplies & Services - Children
Solihull MBC,Children's Services - DSG Central.,Children & Education Services,Active Angels,11/04/2016,,1512.00,Grant & Subscription (SCITT),321100 - Social Community Care Supplies & Services - Children
Solihull MBC,Children's Services - DSG Central.,Children & Education Services,Active Angels,11/04/2016,,6268.50,Grant & Subscription (SCITT),321100 - Social Community Care Supplies & Services - Children
Solihull MBC,Children's Services - DSG Schools - Non DMT,Children & Education Services,Active Visual Supplies Ltd,04/04/2016,,6975.00,IT Equipment & Software,171011 - Education - School Services
Solihull MBC,Children's Services - DSG Schools - Non DMT,Children & Education Services,Active Visual Supplies Ltd,19/04/2016,,698.00,IT Equipment & Software,171011 - Education - School Services
Solihull MBC,Children's Services - DSG Schools - Non DMT,Children & Education Services,Active Visual Supplies Ltd,25/04/2016,,10542.00,IT Equipment & Software,171011 - Education - School Services
Solihull MBC,Managed Growth,Highways & Transport Services,Adept,12/04/2016,,-500.00,Grant & Subscription (SCITT),Not Yet Classified
Solihull MBC,Managed Growth,Highways & Transport Services,Adept,12/04/2016,,500.00,Grant & Subscription (SCITT),Not Yet Classified
Solihull MBC,Managed Growth,Highways & Transport Services,Adept,12/04/2016,,500.00,Grant & Subscription (SCITT),Not Yet Classified
Solihull MBC,Communities & Adult Social Care,Adult Social Care,ADT Fire & Security PLC,08/04/2016,,560.27,ASC - Day Care,192200 - Facilities & Management Services - Security
Solihull MBC,Resources,Central Services to the Public,ADT Fire & Security PLC,07/04/2016,,1007.30,Other Premise Costs,192200 - Facilities & Management Services - Security
Solihull MBC,Children's Services - DSG Schools - Non DMT,Children & Education Services,ADT Fire & Security PLC,21/04/2016,,243.00,Alarms,192200 - Facilities & Management Services - Security
Solihull MBC,Children's Services & Skills,Children & Education Services,Advanced Childcare,04/04/2016,,3410.00,External Fostering,Not Yet Classified
Solihull MBC,Children's Services & Skills,Children & Education Services,Advanced Childcare,05/04/2016,,3190.00,External Fostering,Not Yet Classified
Solihull MBC,Children's Services - DSG Schools - Non DMT,Children & Education Services,Advantage Business Components Ltd,25/04/2016,,439.97,Consumables,171011 - Education - School Services
Solihull MBC,Managed Growth,Other Housing Services,Aecom,25/04/2016,,17232.71,Professional Fees,Not Yet Classified
Solihull MBC,Communities & Adult Social Care,Adult Social Care,Age UK Solihull,25/04/2016,,1250.00,Other Contracted Services,321000 - Social Community Care Supplies & Services - Adult
Solihull MBC,Communities & Adult Social Care,Adult Social Care,Age UK Solihull,25/04/2016,,29505.25,Other Contracted Services,321000 - Social Community Care Supplies & Services - Adult
Solihull MBC,Communities & Adult Social Care,Adult Social Care,Age UK Solihull,25/04/2016,,20206.25,Other Contracted Services,321000 - Social Community Care Supplies & Services - Adult
Solihull MBC,Communities & Adult Social Care,Adult Social Care,Age UK Solihull,25/04/2016,,9000.00,Other Contracted Services,321000 - Social Community Care Supplies & Services - Adult
Solihull MBC,Communities & Adult Social Care,Adult Social Care,Age UK Solihull,25/04/2016,,1250.00,Other Contracted Services,321000 - Social Community Care Supplies & Services - Adult
Solihull MBC,Communities & Adult Social Care,Adult Social Care,Age UK Solihull,06/04/2016,,30602.75,Block Contracts,321000 - Social Community Care Supplies & Services - Adult
Solihull MBC,Communities & Adult Social Care,Adult Social Care,Age UK Solihull,25/04/2016,,625.00,Other Contracted Services,321000 - Social Community Care Supplies & Services - Adult
Solihull MBC,Communities & Adult Social Care,Adult Social Care,Age UK Solihull,25/04/2016,,625.00,Other Contracted Services,321000 - Social Community Care Supplies & Services - Adult
Solihull MBC,Communities & Adult Social Care,Adult Social Care,Age UK Solihull,25/04/2016,,3125.00,Other Contracted Services,321000 - Social Community Care Supplies & Services - Adult
Solihull MBC,Communities & Adult Social Care,Adult Social Care,Age UK Solihull,25/04/2016,,15500.00,Other Contracted Services,321000 - Social Community Care Supplies & Services - Adult
Solihull MBC,Communities & Adult Social Care,Adult Social Care,Age UK Solihull,25/04/2016,,12000.00,Other Contracted Services,321000 - Social Community Care Supplies & Services - Adult
Solihull MBC,Communities & Adult Social Care,Adult Social Care,Aidapt Bathrooms Ltd,28/04/2016,,232.20,Furniture & Equipment,321000 - Social Community Care Supplies & Services - Adult
Solihull MBC,Communities & Adult Social Care,Adult Social Care,Aidapt Bathrooms Ltd,01/04/2016,,97.00,Furniture & Equipment,321000 - Social Community Care Supplies & Services - Adult
Solihull MBC,Communities & Adult Social Care,Adult Social Care,Aidapt Bathrooms Ltd,25/04/2016,,287.28,Furniture & Equipment,321000 - Social Community Care Supplies & Services - Adult
Solihull MBC,Communities & Adult Social Care,Adult Social Care,Aidapt Bathrooms Ltd,25/04/2016,,736.92,Furniture & Equipment,321000 - Social Community Care Supplies & Services - Adult
Solihull MBC,Communities & Adult Social Care,Adult Social Care,Aidapt Bathrooms Ltd,25/04/2016,,269.64,Furniture & Equipment,321000 - Social Community Care Supplies & Services - Adult
Solihull MBC,Communities & Adult Social Care,Adult Social Care,Aidapt Bathrooms Ltd,25/04/2016,,97.00,Furniture & Equipment,321000 - Social Community Care Supplies & Services - Adult
Solihull MBC,Communities & Adult Social Care,Adult Social Care,Aidapt Bathrooms Ltd,25/04/2016,,-8.10,Furniture & Equipment,321000 - Social Community Care Supplies & Services - Adult
Solihull MBC,Communities & Adult Social Care,Adult Social Care,Aidapt Bathrooms Ltd,25/04/2016,,148.50,Furniture & Equipment,321000 - Social Community Care Supplies & Services - Adult
Solihull MBC,Communities & Adult Social Care,Adult Social Care,Aidapt Bathrooms Ltd,25/04/2016,,148.50,Furniture & Equipment,321000 - Social Community Care Supplies & Services - Adult
Solihull MBC,Communities & Adult Social Care,Adult Social Care,Aidapt Bathrooms Ltd,25/04/2016,,148.50,Furniture & Equipment,321000 - Social Community Care Supplies & Services - Adult
Solihull MBC,Communities & Adult Social Care,Adult Social Care,Aidapt Bathrooms Ltd,25/04/2016,,-148.50,Furniture & Equipment,321000 - Social Community Care Supplies & Services - Adult
Solihull MBC,Communities & Adult Social Care,Adult Social Care,Aidapt Bathrooms Ltd,14/04/2016,,900.00,Furniture & Equipment,321000 - Social Community Care Supplies & Services - Adult
Solihull MBC,Communities & Adult Social Care,Adult Social Care,Aidapt Bathrooms Ltd,14/04/2016,,215.46,Furniture & Equipment,321000 - Social Community Care Supplies & Services - Adult
Solihull MBC,Communities & Adult Social Care,Adult Social Care,Aidapt Bathrooms Ltd,14/04/2016,,245.64,Furniture & Equipment,321000 - Social Community Care Supplies & Services - Adult
Solihull MBC,Communities & Adult Social Care,Adult Social Care,Aidapt Bathrooms Ltd,14/04/2016,,227.64,Furniture & Equipment,321000 - Social Community Care Supplies & Services - Adult
Solihull MBC,Communities & Adult Social Care,Adult Social Care,Aidapt Bathrooms Ltd,14/04/2016,,107.64,Furniture & Equipment,321000 - Social Community Care Supplies & Services - Adult
Solihull MBC,Communities & Adult Social Care,Adult Social Care,Aidapt Bathrooms Ltd,14/04/2016,,154.80,Furniture & Equipment,321000 - Social Community Care Supplies & Services - Adult
Solihull MBC,Communities & Adult Social Care,Adult Social Care,Aidapt Bathrooms Ltd,14/04/2016,,126.00,Furniture & Equipment,321000 - Social Community Care Supplies & Services - Adult
Solihull MBC,Communities & Adult Social Care,Adult Social Care,Aidapt Bathrooms Ltd,28/04/2016,,341.46,Furniture & Equipment,321000 - Social Community Care Supplies & Services - Adult
Solihull MBC,Communities & Adult Social Care,Adult Social Care,Aidapt Bathrooms Ltd,01/04/2016,,567.72,Furniture & Equipment,321000 - Social Community Care Supplies & Services - Adult
Solihull MBC,Resources,Central Services to the Public,Airey Consultancy Services Ltd,11/04/2016,,1100.00,Professional Fees,Not Yet Classified
Solihull MBC,Children's Services - DSG Schools - Non DMT,Children & Education Services,Ajaia Ltd,11/04/2016,,228.00,IT Equipment & Software,Not Yet Classified
Solihull MBC,Communities & Adult Social Care,Adult Social Care,Akari Care Ltd,07/04/2016,,2041.04,ASC - Nursing Care Permanent,Not Yet Classified
Solihull MBC,Communities & Adult Social Care,Adult Social Care,Akari Care Ltd,07/04/2016,,2041.04,ASC - Nursing Care Permanent,Not Yet Classified
Solihull MBC,Communities & Adult Social Care,Adult Social Care,Akari Care Ltd,01/04/2016,,583.16,ASC - Nursing Care Respite,Not Yet Classified
Solihull MBC,Communities & Adult Social Care,Adult Social Care,Akari Care Ltd,07/04/2016,,2041.04,ASC - Nursing Care Permanent,Not Yet Classified
Solihull MBC,Communities & Adult Social Care,Adult Social Care,Akari Care Ltd,01/04/2016,,1239.20,ASC - Nursing Care Respite,Not Yet Classified
Solihull MBC,Communities & Adult Social Care,Adult Social Care,Akari Care Ltd,07/04/2016,,2041.04,ASC - Nursing Care Permanent,Not Yet Classified
Solihull MBC,Children's Services - DSG Schools - Non DMT,Children & Education Services,Alarm & Vision,21/04/2016,,600.00,Alarms,171100 - Education - Supplies
Solihull MBC,Children's Services - DSG Central.,Children & Education Services,Alderbrook  School,04/04/2016,,1724.40,IT Equipment & Software,Not Yet Classified
Solihull MBC,Children's Services - DSG Schools - Non DMT,Children & Education Services,Aleutia Computers Ltd,15/04/2016,Card Transaction,739.60,Purchase Card Statement Summary,271200 - Information Communications Technology - Hardware
Solihull MBC,Communities & Adult Social Care,Adult Social Care,Alexandra Centre For Physical Disability,06/04/2016,,3963.68,ASC - Residential Care Permanent,Not Yet Classified
Solihull MBC,Managed Growth,Environmental and Regulatory Services,Alexandra PLC,22/04/2016,,42.48,Clothing & Uniforms,To be classified individually
Solihull MBC,Managed Growth,Environmental and Regulatory Services,Alexandra PLC,22/04/2016,,42.48,Clothing & Uniforms,To be classified individually
Solihull MBC,Managed Growth,Environmental and Regulatory Services,Alexandra PLC,22/04/2016,,42.48,Clothing & Uniforms,To be classified individually
Solihull MBC,Managed Growth,Environmental and Regulatory Services,Alexandra PLC,22/04/2016,,27.00,Clothing & Uniforms,To be classified individually
Solihull MBC,Managed Growth,Environmental and Regulatory Services,Alexandra PLC,22/04/2016,,27.00,Clothing & Uniforms,To be classified individually
Solihull MBC,Managed Growth,Environmental and Regulatory Services,Alexandra PLC,22/04/2016,,27.00,Clothing & Uniforms,To be classified individually
Solihull MBC,Children's Services - DSG Central.,Children & Education Services,Alison Timmins,14/04/2016,,378.00,Grant & Subscription (SCITT),321100 - Social Community Care Supplies & Services - Children
Solihull MBC,Communities & Adult Social Care,Adult Social Care,Allambie Court Nursing Home,11/04/2016,,2999.99,ASC - Nursing Care Permanent,Not Yet Classified
Solihull MBC,Communities & Adult Social Care,Adult Social Care,Allambie Court Nursing Home,11/04/2016,,3000.00,ASC - Nursing Care Permanent,Not Yet Classified
Solihull MBC,Communities & Adult Social Care,Adult Social Care,Allambie Court Nursing Home,11/04/2016,,1821.42,ASC - Nursing Care Permanent,Not Yet Classified
Solihull MBC,Communities & Adult Social Care,Adult Social Care,Allambie Court Nursing Home,11/04/2016,,3000.00,ASC - Nursing Care Permanent,Not Yet Classified
Solihull MBC,Communities & Adult Social Care,Adult Social Care,Allambie Court Nursing Home,11/04/2016,,3000.00,ASC - Nursing Care Permanent,Not Yet Classified
Solihull MBC,Communities & Adult Social Care,Adult Social Care,Allied Healthcare (UK) Ltd,01/04/2016,,259.20,ASC - Home Care Support Services,321000 - Social Community Care Supplies & Services - Adult
Solihull MBC,Communities & Adult Social Care,Adult Social Care,Allied Healthcare (UK) Ltd,01/04/2016,,502.32,ASC - Home Care Support Services,321000 - Social Community Care Supplies & Services - Adult
Solihull MBC,Communities & Adult Social Care,Adult Social Care,Allied Healthcare (UK) Ltd,01/04/2016,,641.52,ASC - Home Care Support Services,321000 - Social Community Care Supplies & Services - Adult
Solihull MBC,Communities & Adult Social Care,Adult Social Care,Allied Healthcare (UK) Ltd,01/04/2016,,298.08,ASC - Home Care Support Services,321000 - Social Community Care Supplies & Services - Adult
Solihull MBC,Communities & Adult Social Care,Adult Social Care,Allied Healthcare (UK) Ltd,01/04/2016,,356.40,ASC - Home Care Support Services,321000 - Social Community Care Supplies & Services - Adult
Solihull MBC,Communities & Adult Social Care,Adult Social Care,Allied Healthcare (UK) Ltd,01/04/2016,,719.28,ASC - Home Care Support Services,321000 - Social Community Care Supplies & Services - Adult
Solihull MBC,Communities & Adult Social Care,Adult Social Care,Allied Healthcare (UK) Ltd,01/04/2016,,299.52,ASC - Home Care Support Services,321000 - Social Community Care Supplies & Services - Adult
Solihull MBC,Communities & Adult Social Care,Adult Social Care,Allied Healthcare (UK) Ltd,01/04/2016,,913.68,ASC - Home Care Support Services,321000 - Social Community Care Supplies & Services - Adult
Solihull MBC,Communities & Adult Social Care,Adult Social Care,Allied Healthcare (UK) Ltd,01/04/2016,,755.04,ASC - Home Care Support Services,321000 - Social Community Care Supplies & Services - Adult
Solihull MBC,Communities & Adult Social Care,Adult Social Care,Allied Healthcare (UK) Ltd,01/04/2016,,374.40,ASC - Domiciliary Care,321000 - Social Community Care Supplies & Services - Adult
Solihull MBC,Communities & Adult Social Care,Adult Social Care,Allied Healthcare (UK) Ltd,01/04/2016,,262.08,ASC - Out of hospital,321000 - Social Community Care Supplies & Services - Adult
Solihull MBC,Communities & Adult Social Care,Adult Social Care,Allied Healthcare (UK) Ltd,01/04/2016,,1088.64,ASC - Home Care Support Services,321000 - Social Community Care Supplies & Services - Adult
Solihull MBC,Public Health & Commissioning,Central Services to the Public,Allwag Promotions Ltd,28/04/2016,,321.50,General Office Expenses,Not Yet Classified
Solihull MBC,Communities & Adult Social Care,Adult Social Care,Alophonsus Services Ltd,06/04/2016,,8040.32,ASC - Residential Care Permanent,321000 - Social Community Care Supplies & Services - Adult
Solihull MBC,Communities & Adult Social Care,Adult Social Care,Alpha Health Care Ltd,11/04/2016,,2041.04,ASC - Nursing Care Permanent,321000 - Social Community Care Supplies & Services - Adult
Solihull MBC,Communities & Adult Social Care,Adult Social Care,Alpha Health Care Ltd,11/04/2016,,1869.56,ASC - Residential Care Permanent,321000 - Social Community Care Supplies & Services - Adult
Solihull MBC,Children's Services - DSG Schools - Non DMT,Children & Education Services,Altavia Hotel,20/04/2016,,6344.00,Visits & Pupil Activities,Not Yet Classified
Solihull MBC,Resources,Central Services to the Public,Amazon UK Marketplace,15/04/2016,Card Transaction,286.06,Purchase Card Statement Summary,161000 - Domestic Goods - Commercial
Solihull MBC,Children's Services - DSG Schools - Non DMT,Children & Education Services,Amazon UK Marketplace,15/04/2016,Card Transaction,398.78,Purchase Card Statement Summary,161000 - Domestic Goods - Commercial
Solihull MBC,Resources,Central Services to the Public,Amazon UK Marketplace,15/04/2016,Card Transaction,229.99,IT Equipment & Software,161000 - Domestic Goods - Commercial
Solihull MBC,Resources,Central Services to the Public,Amazon UK Marketplace,15/04/2016,Card Transaction,472.60,IT Equipment & Software,171114 - Education - Literature
Solihull MBC,Communities & Adult Social Care,Adult Social Care,Amberley Court Nursing Home,07/04/2016,,5072.64,ASC - Nursing Care Permanent,321000 - Social Community Care Supplies & Services - Adult
Solihull MBC,Communities & Adult Social Care,Adult Social Care,Amberley Court Nursing Home,07/04/2016,,3800.00,ASC - Nursing Care Respite,321000 - Social Community Care Supplies & Services - Adult
Solihull MBC,Managed Growth,Planning & Development Services,Amion Consulting,13/04/2016,,2500.00,Professional Fees,Not Yet Classified
Solihull MBC,Communities & Adult Social Care,Adult Social Care,Anchor Carehomes Limited,14/04/2016,,2052.32,ASC - Residential Care Permanent,Not Yet Classified
Solihull MBC,Communities & Adult Social Care,Adult Social Care,Anchor Carehomes Limited,14/04/2016,,2052.32,ASC - Residential Care Permanent,Not Yet Classified
Solihull MBC,Communities & Adult Social Care,Adult Social Care,Anchor Carehomes Limited,14/04/2016,,2052.32,ASC - Residential Care Permanent,Not Yet Classified
Solihull MBC,Communities & Adult Social Care,Adult Social Care,Anchor Homes - Kerria Court,01/04/2016,,2052.32,ASC - Residential Care Permanent,Not Yet Classified
Solihull MBC,Communities & Adult Social Care,Adult Social Care,Anchor Homes - Kerria Court,01/04/2016,,2052.32,ASC - Residential Care Permanent,Not Yet Classified
Solihull MBC,Communities & Adult Social Care,Adult Social Care,Anchor Homes - Kerria Court,01/04/2016,,2052.32,ASC - Residential Care Permanent,Not Yet Classified
Solihull MBC,Communities & Adult Social Care,Adult Social Care,Anchor Trust,25/04/2016,,2920.00,ASC - Residential Care Permanent,321000 - Social Community Care Supplies & Services - Adult
Solihull MBC,Communities & Adult Social Care,Adult Social Care,Anchor Trust,25/04/2016,,2920.00,ASC - Residential Care Permanent,321000 - Social Community Care Supplies & Services - Adult
Solihull MBC,Communities & Adult Social Care,Adult Social Care,Anchor Trust,25/04/2016,,2920.00,ASC - Residential Care Permanent,321000 - Social Community Care Supplies & Services - Adult
Solihull MBC,Children's Services - DSG Schools - Non DMT,Children & Education Services,Andrew Guest,26/04/2016,,600.00,Visits & Pupil Activities,Not Yet Classified
Solihull MBC,Children's Services - DSG Schools - Non DMT,Children & Education Services,Andrews Sykes Hire Ltd,22/04/2016,,59.00,Building Maint Day To Day,Not Yet Classified
Solihull MBC,Children's Services - DSG Schools - Non DMT,Children & Education Services,Andrews Sykes Hire Ltd,22/04/2016,,59.00,Building Maint Day To Day,Not Yet Classified
Solihull MBC,Children's Services - DSG Schools - Non DMT,Children & Education Services,Andrews Sykes Hire Ltd,22/04/2016,,154.00,Building Maint Day To Day,Not Yet Classified
Solihull MBC,Children's Services - DSG Schools - Non DMT,Children & Education Services,Andrews Sykes Hire Ltd,22/04/2016,,199.60,Building Maint Day To Day,Not Yet Classified
Solihull MBC,Children's Services - DSG Schools - Non DMT,Children & Education Services,Andrews Sykes Hire Ltd,22/04/2016,,471.60,Building Maint Day To Day,Not Yet Classified
Solihull MBC,Children's Services - DSG Schools - Non DMT,Children & Education Services,Andrews Sykes Hire Ltd,22/04/2016,,-471.60,Building Maint Day To Day,Not Yet Classified
Solihull MBC,Children's Services - DSG Central.,Children & Education Services,Angels Daycare,11/04/2016,,5670.00,Grant & Subscription (SCITT),321100 - Social Community Care Supplies & Services - Children
Solihull MBC,Communities & Adult Social Care,Adult Social Care,Angels Healthcare Ltd,11/04/2016,,739.20,ASC - Home Care Support Services,321000 - Social Community Care Supplies & Services - Adult
Solihull MBC,Communities & Adult Social Care,Adult Social Care,Angels Healthcare Ltd,11/04/2016,,729.60,ASC - Home Care Support Services,321000 - Social Community Care Supplies & Services - Adult
Solihull MBC,Communities & Adult Social Care,Adult Social Care,Angels Healthcare Ltd,11/04/2016,,716.80,ASC - Home Care Support Services,321000 - Social Community Care Supplies & Services - Adult
Solihull MBC,Communities & Adult Social Care,Adult Social Care,Angels Healthcare Ltd,11/04/2016,,748.80,ASC - Home Care Support Services,321000 - Social Community Care Supplies & Services - Adult
Solihull MBC,Communities & Adult Social Care,Adult Social Care,Angels Healthcare Ltd,11/04/2016,,515.20,ASC - Home Care Support Services,321000 - Social Community Care Supplies & Services - Adult
Solihull MBC,Communities & Adult Social Care,Adult Social Care,Angels Healthcare Ltd,11/04/2016,,550.40,ASC - Home Care Support Services,321000 - Social Community Care Supplies & Services - Adult
Solihull MBC,Communities & Adult Social Care,Adult Social Care,Angels Healthcare Ltd,11/04/2016,,1388.80,ASC - Home Care Support Services,321000 - Social Community Care Supplies & Services - Adult
Solihull MBC,Communities & Adult Social Care,Adult Social Care,Angels Healthcare Ltd,11/04/2016,,268.80,ASC - Home Care Support Services,321000 - Social Community Care Supplies & Services - Adult
Solihull MBC,Communities & Adult Social Care,Adult Social Care,Angels Healthcare Ltd,11/04/2016,,502.40,ASC - Home Care Support Services,321000 - Social Community Care Supplies & Services - Adult
Solihull MBC,Communities & Adult Social Care,Adult Social Care,Angels Healthcare Ltd,11/04/2016,,492.80,ASC - Home Care Support Services,321000 - Social Community Care Supplies & Services - Adult
Solihull MBC,Communities & Adult Social Care,Adult Social Care,Angels Healthcare Ltd,11/04/2016,,896.00,ASC - Home Care Support Services,321000 - Social Community Care Supplies & Services - Adult
Solihull MBC,Communities & Adult Social Care,Adult Social Care,Angels Healthcare Ltd,11/04/2016,,422.40,ASC - Home Care Support Services,321000 - Social Community Care Supplies & Services - Adult
Solihull MBC,Communities & Adult Social Care,Adult Social Care,Angels Healthcare Ltd,11/04/2016,,310.40,ASC - Home Care Support Services,321000 - Social Community Care Supplies & Services - Adult
Solihull MBC,Communities & Adult Social Care,Adult Social Care,Angels Healthcare Ltd,11/04/2016,,1340.80,ASC - Home Care Support Services,321000 - Social Community Care Supplies & Services - Adult
Solihull MBC,Communities & Adult Social Care,Adult Social Care,Angels Healthcare Ltd,11/04/2016,,358.40,ASC - Home Care Support Services,321000 - Social Community Care Supplies & Services - Adult
Solihull MBC,Communities & Adult Social Care,Adult Social Care,Angels Healthcare Ltd,11/04/2016,,896.00,ASC - Home Care Support Services,321000 - Social Community Care Supplies & Services - Adult
Solihull MBC,Communities & Adult Social Care,Adult Social Care,Angels Healthcare Ltd,11/04/2016,,668.80,ASC - Home Care Support Services,321000 - Social Community Care Supplies & Services - Adult
Solihull MBC,Communities & Adult Social Care,Adult Social Care,Angels Healthcare Ltd,11/04/2016,,947.20,ASC - Home Care Support Services,321000 - Social Community Care Supplies & Services - Adult
Solihull MBC,Communities & Adult Social Care,Adult Social Care,Angels Healthcare Ltd,11/04/2016,,358.40,ASC - Home Care Support Services,321000 - Social Community Care Supplies & Services - Adult
Solihull MBC,Communities & Adult Social Care,Adult Social Care,Angels Healthcare Ltd,11/04/2016,,460.80,ASC - Home Care Support Services,321000 - Social Community Care Supplies & Services - Adult
Solihull MBC,Communities & Adult Social Care,Adult Social Care,Angels Healthcare Ltd,11/04/2016,,620.80,ASC - Home Care Support Services,321000 - Social Community Care Supplies & Services - Adult
Solihull MBC,Communities & Adult Social Care,Adult Social Care,Angels Healthcare Ltd,11/04/2016,,326.40,ASC - Home Care Support Services,321000 - Social Community Care Supplies & Services - Adult
Solihull MBC,Communities & Adult Social Care,Adult Social Care,Angels Healthcare Ltd,11/04/2016,,723.20,ASC - Home Care Support Services,321000 - Social Community Care Supplies & Services - Adult
Solihull MBC,Communities & Adult Social Care,Adult Social Care,Angels Healthcare Ltd,11/04/2016,,1129.60,ASC - Home Care Support Services,321000 - Social Community Care Supplies & Services - Adult
Solihull MBC,Communities & Adult Social Care,Adult Social Care,Angels Healthcare Ltd,11/04/2016,,952.00,ASC - Home Care Support Services,321000 - Social Community Care Supplies & Services - Adult
Solihull MBC,Communities & Adult Social Care,Adult Social Care,Angels Healthcare Ltd,11/04/2016,,608.00,ASC - Home Care Support Services,321000 - Social Community Care Supplies & Services - Adult
Solihull MBC,Communities & Adult Social Care,Adult Social Care,Angels Healthcare Ltd,11/04/2016,,524.80,ASC - Home Care Support Services,321000 - Social Community Care Supplies & Services - Adult
Solihull MBC,Communities & Adult Social Care,Adult Social Care,Angels Healthcare Ltd,11/04/2016,,291.20,ASC - Home Care Support Services,321000 - Social Community Care Supplies & Services - Adult
Solihull MBC,Communities & Adult Social Care,Adult Social Care,Angels Healthcare Ltd,11/04/2016,,358.40,ASC - Home Care Support Services,321000 - Social Community Care Supplies & Services - Adult
Solihull MBC,Communities & Adult Social Care,Adult Social Care,Angels Healthcare Ltd,11/04/2016,,314.50,ASC - Domiciliary Care,321000 - Social Community Care Supplies & Services - Adult
Solihull MBC,Communities & Adult Social Care,Adult Social Care,Angels Healthcare Ltd,11/04/2016,,262.40,ASC - Home Care Support Services,321000 - Social Community Care Supplies & Services - Adult
Solihull MBC,Communities & Adult Social Care,Adult Social Care,Angels Healthcare Ltd,11/04/2016,,428.80,ASC - Home Care Support Services,321000 - Social Community Care Supplies & Services - Adult
Solihull MBC,Communities & Adult Social Care,Adult Social Care,Angels Healthcare Ltd,11/04/2016,,256.00,ASC - Domiciliary Care,321000 - Social Community Care Supplies & Services - Adult
Solihull MBC,Communities & Adult Social Care,Adult Social Care,Angels Healthcare Ltd,11/04/2016,,441.60,ASC - Home Care Support Services,321000 - Social Community Care Supplies & Services - Adult
Solihull MBC,Communities & Adult Social Care,Adult Social Care,Angels Healthcare Ltd,11/04/2016,,403.20,ASC - Home Care Support Services,321000 - Social Community Care Supplies & Services - Adult
Solihull MBC,Children's Services - DSG Central.,Children & Education Services,Angling Unlimited,21/04/2016,,400.00,Other Contracted Services,Not Yet Classified
Solihull MBC,Communities & Adult Social Care,Adult Social Care,Apetito Ltd,15/04/2016,,14.74,Catering Provisions,321000 - Social Community Care Supplies & Services - Adult
Solihull MBC,Communities & Adult Social Care,Adult Social Care,Apetito Ltd,15/04/2016,,264.04,Catering Provisions,321000 - Social Community Care Supplies & Services - Adult
Solihull MBC,Communities & Adult Social Care,Adult Social Care,Apna Ghar(1995) Ltd,06/04/2016,,280.00,ASC - Day Care,321000 - Social Community Care Supplies & Services - Adult
Solihull MBC,Communities & Adult Social Care,Adult Social Care,Apna Ghar(1995) Ltd,04/04/2016,,280.00,ASC - Day Care,321000 - Social Community Care Supplies & Services - Adult
Solihull MBC,Communities & Adult Social Care,Adult Social Care,Apna Ghar(1995) Ltd,06/04/2016,,280.00,ASC - Day Care,321000 - Social Community Care Supplies & Services - Adult
Solihull MBC,Children's Services - DSG Schools - Non DMT,Children & Education Services,Aqa,18/04/2016,,507.60,Examination Fees,Not Yet Classified
Solihull MBC,Children's Services - DSG Schools - Non DMT,Children & Education Services,Aquaid,22/04/2016,,208.40,Capitation,171100 - Education - Supplies
Solihull MBC,Children's Services - DSG Schools - Non DMT,Children & Education Services,Aquaid,22/04/2016,,1900.80,Furniture & Equipment,171100 - Education - Supplies
Solihull MBC,Children's Services - DSG Schools - Non DMT,Children & Education Services,Aquaid,22/04/2016,,-480.00,Furniture & Equipment,171100 - Education - Supplies
Solihull MBC,Communities & Adult Social Care,Adult Social Care,"Aquajoy Bathlifts Ltd.,",20/04/2016,,10.00,Furniture & Equipment,Not Yet Classified
Solihull MBC,Communities & Adult Social Care,Adult Social Care,"Aquajoy Bathlifts Ltd.,",20/04/2016,,1068.00,Furniture & Equipment,Not Yet Classified
Solihull MBC,Children's Services - DSG Schools - Non DMT,Children & Education Services,Architecture Workshops,18/04/2016,,400.00,Visits & Pupil Activities,Not Yet Classified
Solihull MBC,Children's Services - DSG Central.,Children & Education Services,Archway Community College,22/04/2016,,1800.00,Other Contracted Services,Not Yet Classified
Solihull MBC,Children's Services - DSG Central.,Children & Education Services,Archway Community College,22/04/2016,,1800.00,Other Contracted Services,Not Yet Classified
Solihull MBC,Children's Services - DSG Central.,Children & Education Services,Arden Academy Trust,04/04/2016,,1989.20,IT Equipment & Software,Not Yet Classified
Solihull MBC,Communities & Adult Social Care,Adult Social Care,Ardenlea Court,11/04/2016,,3107.24,ASC - Nursing Care Permanent,321000 - Social Community Care Supplies & Services - Adult
Solihull MBC,Communities & Adult Social Care,Adult Social Care,Ardenlea Court,11/04/2016,,3780.00,ASC - Nursing Care Permanent,321000 - Social Community Care Supplies & Services - Adult
Solihull MBC,Communities & Adult Social Care,Adult Social Care,Ardenlea Court,11/04/2016,,3529.04,ASC - Nursing Care Permanent,321000 - Social Community Care Supplies & Services - Adult
Solihull MBC,Communities & Adult Social Care,Adult Social Care,Ardenlea Grove Nursing Home,14/04/2016,,3599.68,ASC - Nursing Care Permanent,321000 - Social Community Care Supplies & Services - Adult
Solihull MBC,Communities & Adult Social Care,Adult Social Care,Ardenlea Grove Nursing Home,14/04/2016,,2158.16,ASC - Nursing Care Permanent,321000 - Social Community Care Supplies & Services - Adult
Solihull MBC,Communities & Adult Social Care,Adult Social Care,Ardenlea Grove Nursing Home,14/04/2016,,3098.48,ASC - Nursing Care Permanent,321000 - Social Community Care Supplies & Services - Adult
Solihull MBC,Children's Services & Skills,Children & Education Services,Argos Retail Group,15/04/2016,Card Transaction,208.92,Foster Parents,169999 - Domestic Goods - Not Elsewhere Classified
Solihull MBC,Children's Services & Skills,Children & Education Services,Argos Retail Group,15/04/2016,Card Transaction,229.98,Client Leaving Care Grant,169999 - Domestic Goods - Not Elsewhere Classified
Solihull MBC,Children's Services & Skills,Children & Education Services,Argos Retail Group,15/04/2016,Card Transaction,232.92,Client Leaving Care Grant,169999 - Domestic Goods - Not Elsewhere Classified
Solihull MBC,Resources,Central Services to the Public,Arjo Ltd,15/04/2016,,-32.88,Internal Income-Miscellaneous,321000 - Social Community Care Supplies & Services - Adult
Solihull MBC,Communities & Adult Social Care,Adult Social Care,Arjo Ltd,15/04/2016,,328.80,Repair & Maintn Of Buildings,321000 - Social Community Care Supplies & Services - Adult
Solihull MBC,Communities & Adult Social Care,Adult Social Care,Arjo Ltd,15/04/2016,,32.88,Internal Building Maintenance,321000 - Social Community Care Supplies & Services - Adult
Solihull MBC,Communities & Adult Social Care,Adult Social Care,Arjohuntleigh,07/04/2016,,24683.00,Furniture & Equipment,321000 - Social Community Care Supplies & Services - Adult
Solihull MBC,Resources,Planning & Development Services,Armac Demolition Ltd,01/04/2016,,15824.00,Contractors,"390000 - Works - Construction, Repair & Maintenance"
Solihull MBC,Children's Services - DSG Central.,Children & Education Services,Arrow County Supplies,28/04/2016,,138.00,Cleaning,130000 - Cleaning & Janitorial
Solihull MBC,Children's Services - DSG Central.,Children & Education Services,Arrow County Supplies,28/04/2016,,110.40,Cleaning,130000 - Cleaning & Janitorial
Solihull MBC,Children's Services - DSG Central.,Children & Education Services,Arrow County Supplies,28/04/2016,,31.50,Cleaning,130000 - Cleaning & Janitorial
Solihull MBC,Children's Services - DSG Central.,Children & Education Services,Arrow County Supplies,28/04/2016,,29.60,Cleaning,130000 - Cleaning & Janitorial
Solihull MBC,Children's Services - DSG Central.,Children & Education Services,Arrow County Supplies,28/04/2016,,133.62,Cleaning,130000 - Cleaning & Janitorial
Solihull MBC,Children's Services - DSG Central.,Children & Education Services,Arrow County Supplies,28/04/2016,,43.38,Cleaning,130000 - Cleaning & Janitorial
Solihull MBC,Children's Services - DSG Central.,Children & Education Services,Arrow County Supplies,28/04/2016,,43.20,Cleaning,130000 - Cleaning & Janitorial
Solihull MBC,Children's Services - DSG Central.,Children & Education Services,Arrow County Supplies,28/04/2016,,23.88,Cleaning,130000 - Cleaning & Janitorial
Solihull MBC,Children's Services - DSG Central.,Children & Education Services,Arrow County Supplies,28/04/2016,,310.00,Cleaning,130000 - Cleaning & Janitorial
Solihull MBC,Children's Services - DSG Central.,Children & Education Services,Arrow County Supplies,28/04/2016,,68.80,Cleaning,130000 - Cleaning & Janitorial
Solihull MBC,Children's Services - DSG Central.,Children & Education Services,Arrow County Supplies,28/04/2016,,143.00,Cleaning,130000 - Cleaning & Janitorial
Solihull MBC,Children's Services - DSG Central.,Children & Education Services,Arrow County Supplies,28/04/2016,,208.80,Cleaning,130000 - Cleaning & Janitorial
Solihull MBC,Children's Services - DSG Central.,Children & Education Services,Arrow County Supplies,28/04/2016,,12.24,Cleaning,130000 - Cleaning & Janitorial
Solihull MBC,Children's Services - DSG Central.,Children & Education Services,Arrow County Supplies,28/04/2016,,174.00,Cleaning,130000 - Cleaning & Janitorial
Solihull MBC,Children's Services - DSG Central.,Children & Education Services,Arrow County Supplies,28/04/2016,,368.40,Cleaning,130000 - Cleaning & Janitorial
Solihull MBC,Children's Services - DSG Central.,Children & Education Services,Arrow County Supplies,28/04/2016,,137.20,Cleaning,130000 - Cleaning & Janitorial
Solihull MBC,Children's Services - DSG Central.,Children & Education Services,Arrow County Supplies,28/04/2016,,68.80,Cleaning,130000 - Cleaning & Janitorial
Solihull MBC,Children's Services - DSG Central.,Children & Education Services,Arrow County Supplies,28/04/2016,,290.00,Cleaning,130000 - Cleaning & Janitorial
Solihull MBC,Children's Services - DSG Central.,Children & Education Services,Arrow County Supplies,28/04/2016,,81.70,Cleaning,130000 - Cleaning & Janitorial
Solihull MBC,Children's Services - DSG Central.,Children & Education Services,Arrow County Supplies,28/04/2016,,259.20,Cleaning,130000 - Cleaning & Janitorial
Solihull MBC,Children's Services - DSG Central.,Children & Education Services,Arrow County Supplies,28/04/2016,,125.00,Cleaning,130000 - Cleaning & Janitorial
Solihull MBC,Children's Services - DSG Central.,Children & Education Services,Arrow County Supplies,28/04/2016,,11.88,Cleaning,130000 - Cleaning & Janitorial
Solihull MBC,Children's Services - DSG Central.,Children & Education Services,Arrow County Supplies,28/04/2016,,101.70,Cleaning,130000 - Cleaning & Janitorial
Solihull MBC,Children's Services - DSG Central.,Children & Education Services,Arrow County Supplies,28/04/2016,,647.50,Cleaning,130000 - Cleaning & Janitorial
Solihull MBC,Children's Services - DSG Central.,Children & Education Services,Arrow County Supplies,28/04/2016,,30.00,Cleaning,130000 - Cleaning & Janitorial
Solihull MBC,Children's Services - DSG Central.,Children & Education Services,Arrow County Supplies,28/04/2016,,3.96,Cleaning,130000 - Cleaning & Janitorial
Solihull MBC,Children's Services - DSG Central.,Children & Education Services,Arrow County Supplies,28/04/2016,,15.60,Cleaning,130000 - Cleaning & Janitorial
Solihull MBC,Children's Services - DSG Central.,Children & Education Services,Arrow County Supplies,28/04/2016,,30.00,Cleaning,130000 - Cleaning & Janitorial
Solihull MBC,Children's Services - DSG Central.,Children & Education Services,Arrow County Supplies,15/04/2016,,3.96,Cleaning,130000 - Cleaning & Janitorial
Solihull MBC,Children's Services - DSG Central.,Children & Education Services,Arrow County Supplies,15/04/2016,,12.24,Cleaning,130000 - Cleaning & Janitorial
Solihull MBC,Children's Services - DSG Central.,Children & Education Services,Arrow County Supplies,15/04/2016,,60.40,Cleaning,130000 - Cleaning & Janitorial
Solihull MBC,Children's Services - DSG Central.,Children & Education Services,Arrow County Supplies,15/04/2016,,116.00,Cleaning,130000 - Cleaning & Janitorial
Solihull MBC,Children's Services - DSG Central.,Children & Education Services,Arrow County Supplies,15/04/2016,,55.20,Cleaning,130000 - Cleaning & Janitorial
Solihull MBC,Children's Services - DSG Central.,Children & Education Services,Arrow County Supplies,15/04/2016,,159.00,Cleaning,130000 - Cleaning & Janitorial
Solihull MBC,Children's Services - DSG Central.,Children & Education Services,Arrow County Supplies,15/04/2016,,138.15,Cleaning,130000 - Cleaning & Janitorial
Solihull MBC,Children's Services - DSG Central.,Children & Education Services,Arrow County Supplies,15/04/2016,,54.00,Cleaning,130000 - Cleaning & Janitorial
Solihull MBC,Children's Services - DSG Central.,Children & Education Services,Arrow County Supplies,15/04/2016,,209.50,Cleaning,130000 - Cleaning & Janitorial
Solihull MBC,Children's Services - DSG Central.,Children & Education Services,Arrow County Supplies,15/04/2016,,116.25,Cleaning,130000 - Cleaning & Janitorial
Solihull MBC,Children's Services - DSG Central.,Children & Education Services,Arrow County Supplies,15/04/2016,,116.25,Cleaning,130000 - Cleaning & Janitorial
Solihull MBC,Children's Services - DSG Central.,Children & Education Services,Arrow County Supplies,15/04/2016,,388.50,Cleaning,130000 - Cleaning & Janitorial
Solihull MBC,Children's Services - DSG Central.,Children & Education Services,Arrow County Supplies,15/04/2016,,28.80,Cleaning,130000 - Cleaning & Janitorial
Solihull MBC,Children's Services - DSG Central.,Children & Education Services,Arrow County Supplies,15/04/2016,,81.20,Cleaning,130000 - Cleaning & Janitorial
Solihull MBC,Children's Services - DSG Central.,Children & Education Services,Arrow County Supplies,15/04/2016,,23.88,Cleaning,130000 - Cleaning & Janitorial
Solihull MBC,Children's Services - DSG Central.,Children & Education Services,Arrow County Supplies,19/04/2016,,286.00,Cleaning,130000 - Cleaning & Janitorial
Solihull MBC,Children's Services - DSG Central.,Children & Education Services,Arrow County Supplies,19/04/2016,,15.75,Cleaning,130000 - Cleaning & Janitorial
Solihull MBC,Children's Services - DSG Central.,Children & Education Services,Arrow County Supplies,19/04/2016,,290.00,Cleaning,130000 - Cleaning & Janitorial
Solihull MBC,Children's Services - DSG Central.,Children & Education Services,Arrow County Supplies,19/04/2016,,22.23,Cleaning,130000 - Cleaning & Janitorial
Solihull MBC,Children's Services - DSG Central.,Children & Education Services,Arrow County Supplies,19/04/2016,,107.25,Cleaning,130000 - Cleaning & Janitorial
Solihull MBC,Children's Services - DSG Central.,Children & Education Services,Arrow County Supplies,19/04/2016,,177.00,Cleaning,130000 - Cleaning & Janitorial
Solihull MBC,Children's Services - DSG Central.,Children & Education Services,Arrow County Supplies,19/04/2016,,167.60,Cleaning,130000 - Cleaning & Janitorial
Solihull MBC,Children's Services - DSG Central.,Children & Education Services,Arrow County Supplies,19/04/2016,,74.00,Cleaning,130000 - Cleaning & Janitorial
Solihull MBC,Children's Services - DSG Central.,Children & Education Services,Arrow County Supplies,19/04/2016,,184.20,Cleaning,130000 - Cleaning & Janitorial
Solihull MBC,Children's Services - DSG Central.,Children & Education Services,Arrow County Supplies,19/04/2016,,63.20,Cleaning,130000 - Cleaning & Janitorial
Solihull MBC,Children's Services - DSG Central.,Children & Education Services,Arrow County Supplies,19/04/2016,,172.00,Cleaning,130000 - Cleaning & Janitorial
Solihull MBC,Children's Services - DSG Central.,Children & Education Services,Arrow County Supplies,19/04/2016,,193.75,Cleaning,130000 - Cleaning & Janitorial
Solihull MBC,Children's Services - DSG Central.,Children & Education Services,Arrow County Supplies,19/04/2016,,77.50,Cleaning,130000 - Cleaning & Janitorial
Solihull MBC,Children's Services - DSG Central.,Children & Education Services,Arrow County Supplies,19/04/2016,,43.20,Cleaning,130000 - Cleaning & Janitorial
Solihull MBC,Children's Services - DSG Central.,Children & Education Services,Arrow County Supplies,19/04/2016,,58.00,Cleaning,130000 - Cleaning & Janitorial
Solihull MBC,Children's Services - DSG Central.,Children & Education Services,Arrow County Supplies,19/04/2016,,81.70,Cleaning,130000 - Cleaning & Janitorial
Solihull MBC,Children's Services - DSG Central.,Children & Education Services,Arrow County Supplies,19/04/2016,,101.70,Cleaning,130000 - Cleaning & Janitorial
Solihull MBC,Children's Services - DSG Central.,Children & Education Services,Arrow County Supplies,19/04/2016,,323.75,Cleaning,130000 - Cleaning & Janitorial
Solihull MBC,Children's Services - DSG Central.,Children & Education Services,Arrow County Supplies,19/04/2016,,13.00,Cleaning,130000 - Cleaning & Janitorial
Solihull MBC,Children's Services - DSG Central.,Children & Education Services,Arrow County Supplies,19/04/2016,,71.55,Cleaning,130000 - Cleaning & Janitorial
Solihull MBC,Children's Services - DSG Central.,Children & Education Services,Arrow County Supplies,08/04/2016,,-0.06,Cleaning,130000 - Cleaning & Janitorial
Solihull MBC,Children's Services - DSG Central.,Children & Education Services,Arrow County Supplies,08/04/2016,,8.95,Cleaning,130000 - Cleaning & Janitorial
Solihull MBC,Children's Services - DSG Central.,Children & Education Services,Arrow County Supplies,08/04/2016,,15.50,Cleaning,130000 - Cleaning & Janitorial
Solihull MBC,Children's Services - DSG Central.,Children & Education Services,Arrow County Supplies,08/04/2016,,15.25,Cleaning,130000 - Cleaning & Janitorial
Solihull MBC,Children's Services - DSG Central.,Children & Education Services,Arrow County Supplies,08/04/2016,,15.25,Cleaning,130000 - Cleaning & Janitorial
Solihull MBC,Children's Services - DSG Central.,Children & Education Services,Arrow County Supplies,08/04/2016,,30.00,Cleaning,130000 - Cleaning & Janitorial
Solihull MBC,Children's Services - DSG Central.,Children & Education Services,Arrow County Supplies,08/04/2016,,30.00,Cleaning,130000 - Cleaning & Janitorial
Solihull MBC,Children's Services - DSG Central.,Children & Education Services,Arrow County Supplies,08/04/2016,,82.80,Cleaning,130000 - Cleaning & Janitorial
Solihull MBC,Children's Services - DSG Central.,Children & Education Services,Arrow County Supplies,08/04/2016,,82.80,Cleaning,130000 - Cleaning & Janitorial
Solihull MBC,Children's Services - DSG Central.,Children & Education Services,Arrow County Supplies,08/04/2016,,10.42,Cleaning,130000 - Cleaning & Janitorial
Solihull MBC,Children's Services - DSG Central.,Children & Education Services,Arrow County Supplies,08/04/2016,,10.42,Cleaning,130000 - Cleaning & Janitorial
Solihull MBC,Children's Services - DSG Central.,Children & Education Services,Arrow County Supplies,08/04/2016,,9.98,Cleaning,130000 - Cleaning & Janitorial
Solihull MBC,Children's Services - DSG Central.,Children & Education Services,Arrow County Supplies,08/04/2016,,172.00,Cleaning,130000 - Cleaning & Janitorial
Solihull MBC,Children's Services - DSG Central.,Children & Education Services,Arrow County Supplies,08/04/2016,,208.80,Cleaning,130000 - Cleaning & Janitorial
Solihull MBC,Children's Services - DSG Central.,Children & Education Services,Arrow County Supplies,08/04/2016,,79.50,Cleaning,130000 - Cleaning & Janitorial
Solihull MBC,Children's Services - DSG Central.,Children & Education Services,Arrow County Supplies,08/04/2016,,1.14,Cleaning,130000 - Cleaning & Janitorial
Solihull MBC,Children's Services - DSG Central.,Children & Education Services,Arrow County Supplies,08/04/2016,,143.00,Cleaning,130000 - Cleaning & Janitorial
Solihull MBC,Children's Services - DSG Central.,Children & Education Services,Arrow County Supplies,08/04/2016,,34.40,Cleaning,130000 - Cleaning & Janitorial
Solihull MBC,Children's Services - DSG Central.,Children & Education Services,Arrow County Supplies,08/04/2016,,290.00,Cleaning,130000 - Cleaning & Janitorial
Solihull MBC,Children's Services - DSG Central.,Children & Education Services,Arrow County Supplies,08/04/2016,,89.08,Cleaning,130000 - Cleaning & Janitorial
Solihull MBC,Children's Services - DSG Central.,Children & Education Services,Arrow County Supplies,08/04/2016,,178.75,Cleaning,130000 - Cleaning & Janitorial
Solihull MBC,Children's Services - DSG Central.,Children & Education Services,Arrow County Supplies,08/04/2016,,265.50,Cleaning,130000 - Cleaning & Janitorial
Solihull MBC,Children's Services - DSG Central.,Children & Education Services,Arrow County Supplies,08/04/2016,,184.20,Cleaning,130000 - Cleaning & Janitorial
Solihull MBC,Children's Services - DSG Central.,Children & Education Services,Arrow County Supplies,08/04/2016,,57.88,Cleaning,130000 - Cleaning & Janitorial
Solihull MBC,Children's Services - DSG Central.,Children & Education Services,Arrow County Supplies,08/04/2016,,35.58,Cleaning,130000 - Cleaning & Janitorial
Solihull MBC,Children's Services - DSG Central.,Children & Education Services,Arrow County Supplies,08/04/2016,,290.00,Cleaning,130000 - Cleaning & Janitorial
Solihull MBC,Children's Services - DSG Central.,Children & Education Services,Arrow County Supplies,08/04/2016,,79.00,Cleaning,130000 - Cleaning & Janitorial
Solihull MBC,Children's Services - DSG Central.,Children & Education Services,Arrow County Supplies,08/04/2016,,67.70,Cleaning,130000 - Cleaning & Janitorial
Solihull MBC,Children's Services - DSG Central.,Children & Education Services,Arrow County Supplies,08/04/2016,,209.50,Cleaning,130000 - Cleaning & Janitorial
Solihull MBC,Children's Services - DSG Central.,Children & Education Services,Arrow County Supplies,08/04/2016,,215.00,Cleaning,130000 - Cleaning & Janitorial
Solihull MBC,Children's Services - DSG Central.,Children & Education Services,Arrow County Supplies,08/04/2016,,155.00,Cleaning,130000 - Cleaning & Janitorial
Solihull MBC,Children's Services - DSG Central.,Children & Education Services,Arrow County Supplies,08/04/2016,,163.40,Cleaning,130000 - Cleaning & Janitorial
Solihull MBC,Children's Services - DSG Central.,Children & Education Services,Arrow County Supplies,08/04/2016,,259.20,Cleaning,130000 - Cleaning & Janitorial
Solihull MBC,Children's Services - DSG Central.,Children & Education Services,Arrow County Supplies,08/04/2016,,61.02,Cleaning,130000 - Cleaning & Janitorial
Solihull MBC,Children's Services - DSG Central.,Children & Education Services,Arrow County Supplies,08/04/2016,,34.52,Cleaning,130000 - Cleaning & Janitorial
Solihull MBC,Children's Services - DSG Central.,Children & Education Services,Arrow County Supplies,08/04/2016,,17.79,Cleaning,130000 - Cleaning & Janitorial
Solihull MBC,Children's Services - DSG Central.,Children & Education Services,Arrow County Supplies,08/04/2016,,375.00,Cleaning,130000 - Cleaning & Janitorial
Solihull MBC,Children's Services - DSG Central.,Children & Education Services,Arrow County Supplies,08/04/2016,,647.50,Cleaning,130000 - Cleaning & Janitorial
Solihull MBC,Children's Services - DSG Central.,Children & Education Services,Arrow County Supplies,08/04/2016,,42.72,Cleaning,130000 - Cleaning & Janitorial
Solihull MBC,Children's Services - DSG Central.,Children & Education Services,Arrow County Supplies,08/04/2016,,14.88,Cleaning,130000 - Cleaning & Janitorial
Solihull MBC,Children's Services - DSG Central.,Children & Education Services,Arrow County Supplies,08/04/2016,,40.26,Cleaning,130000 - Cleaning & Janitorial
Solihull MBC,Children's Services - DSG Central.,Children & Education Services,Arrow County Supplies,08/04/2016,,58.00,Cleaning,130000 - Cleaning & Janitorial
Solihull MBC,Children's Services - DSG Central.,Children & Education Services,Arrow County Supplies,08/04/2016,,56.88,Cleaning,130000 - Cleaning & Janitorial
Solihull MBC,Children's Services - DSG Central.,Children & Education Services,Arrow County Supplies,08/04/2016,,124.04,Cleaning,130000 - Cleaning & Janitorial
Solihull MBC,Children's Services - DSG Central.,Children & Education Services,Arrow County Supplies,08/04/2016,,23.88,Cleaning,130000 - Cleaning & Janitorial
Solihull MBC,Children's Services - DSG Central.,Children & Education Services,Arrow County Supplies,08/04/2016,,23.88,Cleaning,130000 - Cleaning & Janitorial
Solihull MBC,Children's Services - DSG Central.,Children & Education Services,Arrow County Supplies,08/04/2016,,15.00,Cleaning,130000 - Cleaning & Janitorial
Solihull MBC,Children's Services - DSG Central.,Children & Education Services,Arrow County Supplies,08/04/2016,,15.00,Cleaning,130000 - Cleaning & Janitorial
Solihull MBC,Children's Services - DSG Central.,Children & Education Services,Arrow County Supplies,08/04/2016,,3.96,Cleaning,130000 - Cleaning & Janitorial
Solihull MBC,Children's Services - DSG Central.,Children & Education Services,Arrow County Supplies,08/04/2016,,7.92,Cleaning,130000 - Cleaning & Janitorial
Solihull MBC,Children's Services - DSG Central.,Children & Education Services,Arrow County Supplies,08/04/2016,,2.16,Cleaning,130000 - Cleaning & Janitorial
Solihull MBC,Children's Services - DSG Central.,Children & Education Services,Arrow County Supplies,08/04/2016,,15.00,Cleaning,130000 - Cleaning & Janitorial
Solihull MBC,Children's Services - DSG Central.,Children & Education Services,Arrow County Supplies,08/04/2016,,1.00,Cleaning,130000 - Cleaning & Janitorial
Solihull MBC,Children's Services - DSG Central.,Children & Education Services,Arrow County Supplies,08/04/2016,,12.47,Cleaning,130000 - Cleaning & Janitorial
Solihull MBC,Children's Services - DSG Central.,Children & Education Services,Arrow County Supplies,08/04/2016,,-12.88,Cleaning,130000 - Cleaning & Janitorial
Solihull MBC,Resources,Children & Education Services,Arthur Brett Catering Ltd,28/04/2016,,257.42,Catering Provisions,110000 - Catering
Solihull MBC,Resources,Central Services to the Public,Arthur J Gallagher Insurance Brokers Ltd,26/04/2016,,4825.00,Professional Fees,Not Yet Classified
Solihull MBC,Resources,Central Services to the Public,Arthur J Gallagher Insurance Brokers Ltd,25/04/2016,,72350.00,Insurance & Licences,Not Yet Classified
Solihull MBC,Resources,Central Services to the Public,Arthur J Gallagher Insurance Brokers Ltd,25/04/2016,,202819.18,Liability Insurance,Not Yet Classified
Solihull MBC,Resources,Central Services to the Public,Arthur J Gallagher Insurance Brokers Ltd,25/04/2016,,32850.00,Employees Insurance,Not Yet Classified
Solihull MBC,Resources,Central Services to the Public,Arthur J Gallagher Insurance Brokers Ltd,07/04/2016,,357.88,Insurance & Licences,Not Yet Classified
Solihull MBC,Resources,Central Services to the Public,Arthur J Gallagher Insurance Brokers Ltd,25/04/2016,,-72350.00,Insurance & Licences,Not Yet Classified
Solihull MBC,Resources,Central Services to the Public,Arthur J Gallagher Insurance Brokers Ltd,25/04/2016,,79223.25,Insurance & Licences,Not Yet Classified
Solihull MBC,Resources,Central Services to the Public,Arthur J Gallagher Insurance Brokers Ltd,25/04/2016,,1040.25,Employees Insurance,Not Yet Classified
Solihull MBC,Children's Services - DSG Schools - Non DMT,Children & Education Services,Artis Education Ltd,28/04/2016,,1869.33,Professional Fees,171100 - Education - Supplies
Solihull MBC,Children's Services - DSG Schools - Non DMT,Children & Education Services,Arval Limited,18/04/2016,,335.13,Other Transport Costs,171011 - Education - School Services
Solihull MBC,Children's Services - DSG Central.,Children & Education Services,Arval Limited,21/04/2016,,505.12,Other Transport Costs,171011 - Education - School Services
Solihull MBC,Children's Services - DSG Schools - Non DMT,Children & Education Services,ASCL Professional Development Ltd,26/04/2016,,285.00,Training,Not Yet Classified
Solihull MBC,Public Health & Commissioning,Adult Social Care,Asda Pharmacy,14/04/2016,,268.50,Other Contracted Services,Not Yet Classified
Solihull MBC,Public Health & Commissioning,Adult Social Care,Asda Pharmacy,14/04/2016,,49.08,Other Contracted Services,Not Yet Classified
Solihull MBC,Public Health & Commissioning,Adult Social Care,Asda Pharmacy,14/04/2016,,72.30,Other Contracted Services,Not Yet Classified
Solihull MBC,Children's Services - DSG Schools - Non DMT,Children & Education Services,Ash End House Farm,20/04/2016,,226.46,Visits & Pupil Activities,171011 - Education - School Services
Solihull MBC,Communities & Adult Social Care,Adult Social Care,Ashdale Care Homes Ltd,14/04/2016,,2800.00,ASC - Residential Care Permanent,321000 - Social Community Care Supplies & Services - Adult
Solihull MBC,Communities & Adult Social Care,Adult Social Care,Ashdale Care Homes Ltd,14/04/2016,,1200.00,ASC - Residential Care Permanent,321000 - Social Community Care Supplies & Services - Adult
Solihull MBC,Communities & Adult Social Care,Cultural & Related Services,Askews Library Services Ltd,21/04/2016,,53.12,Materials,170000 - Education
Solihull MBC,Communities & Adult Social Care,Cultural & Related Services,Askews Library Services Ltd,21/04/2016,,158.00,Materials,170000 - Education
Solihull MBC,Communities & Adult Social Care,Cultural & Related Services,Askews Library Services Ltd,21/04/2016,,227.50,Materials,170000 - Education
Solihull MBC,Communities & Adult Social Care,Cultural & Related Services,Askews Library Services Ltd,27/04/2016,,41.32,Materials,170000 - Education
Solihull MBC,Communities & Adult Social Care,Cultural & Related Services,Askews Library Services Ltd,27/04/2016,,13.73,Materials,170000 - Education
Solihull MBC,Communities & Adult Social Care,Cultural & Related Services,Askews Library Services Ltd,27/04/2016,,804.66,Materials,170000 - Education
Solihull MBC,Communities & Adult Social Care,Cultural & Related Services,Askews Library Services Ltd,27/04/2016,,1469.53,Materials,170000 - Education
Solihull MBC,Communities & Adult Social Care,Cultural & Related Services,Askews Library Services Ltd,14/04/2016,,19.16,Materials,170000 - Education
Solihull MBC,Communities & Adult Social Care,Cultural & Related Services,Askews Library Services Ltd,01/04/2016,,978.58,Materials,170000 - Education
Solihull MBC,Communities & Adult Social Care,Cultural & Related Services,Askews Library Services Ltd,01/04/2016,,685.46,Materials,170000 - Education
Solihull MBC,Communities & Adult Social Care,Cultural & Related Services,Askews Library Services Ltd,01/04/2016,,24.43,Materials,170000 - Education
Solihull MBC,Communities & Adult Social Care,Cultural & Related Services,Askews Library Services Ltd,01/04/2016,,201.81,Materials,170000 - Education
Solihull MBC,Communities & Adult Social Care,Cultural & Related Services,Askews Library Services Ltd,01/04/2016,,881.56,Materials,170000 - Education
Solihull MBC,Communities & Adult Social Care,Cultural & Related Services,Askews Library Services Ltd,01/04/2016,,45.87,Materials,170000 - Education
Solihull MBC,Communities & Adult Social Care,Cultural & Related Services,Askews Library Services Ltd,01/04/2016,,133.11,Materials,170000 - Education
Solihull MBC,Communities & Adult Social Care,Cultural & Related Services,Askews Library Services Ltd,07/04/2016,,65.16,Materials,170000 - Education
Solihull MBC,Communities & Adult Social Care,Cultural & Related Services,Askews Library Services Ltd,07/04/2016,,36.35,Materials,170000 - Education
Solihull MBC,Communities & Adult Social Care,Cultural & Related Services,Askews Library Services Ltd,07/04/2016,,770.64,Materials,170000 - Education
Solihull MBC,Communities & Adult Social Care,Cultural & Related Services,Askews Library Services Ltd,07/04/2016,,953.31,Materials,170000 - Education
Solihull MBC,Communities & Adult Social Care,Cultural & Related Services,Askews Library Services Ltd,14/04/2016,,589.60,Materials,170000 - Education
Solihull MBC,Communities & Adult Social Care,Cultural & Related Services,Askews Library Services Ltd,14/04/2016,,1093.71,Materials,170000 - Education
Solihull MBC,Communities & Adult Social Care,Cultural & Related Services,Askews Library Services Ltd,01/04/2016,,72.14,Materials,170000 - Education
Solihull MBC,Children's Services - DSG Schools - Non DMT,Children & Education Services,Aspect Technologies Ltd,21/04/2016,,400.00,Capitation,Not Yet Classified
Solihull MBC,Communities & Adult Social Care,Adult Social Care,Aspects Care Ltd,11/04/2016,,3364.20,ASC - Supported Living Care Costs,Not Yet Classified
Solihull MBC,Communities & Adult Social Care,Adult Social Care,Aspects Care Ltd,11/04/2016,,6365.24,ASC - Supported Living Care Costs,Not Yet Classified
Solihull MBC,Communities & Adult Social Care,Adult Social Care,Aspects Care Ltd,27/04/2016,,2300.80,ASC - Direct Payments,Not Yet Classified
Solihull MBC,Communities & Adult Social Care,Adult Social Care,Aspects Care Ltd,27/04/2016,,2534.00,ASC - Direct Payments,Not Yet Classified
Solihull MBC,Communities & Adult Social Care,Adult Social Care,Aspects Care Ltd,27/04/2016,,2634.60,ASC - Direct Payments,Not Yet Classified
Solihull MBC,Communities & Adult Social Care,Adult Social Care,Aspects Care Ltd,27/04/2016,,4433.56,ASC - Direct Payments,Not Yet Classified
Solihull MBC,Communities & Adult Social Care,Adult Social Care,Aspects Care Ltd,27/04/2016,,1562.16,ASC - Direct Payments,Not Yet Classified
Solihull MBC,Communities & Adult Social Care,Adult Social Care,Aspects Care Ltd,11/04/2016,,264.96,ASC - Home Care Support Services,Not Yet Classified
Solihull MBC,Communities & Adult Social Care,Adult Social Care,Aspects Care Ltd,11/04/2016,,4128.32,ASC - Supported Living Care Costs,Not Yet Classified
Solihull MBC,Communities & Adult Social Care,Adult Social Care,Aspects Care Ltd,11/04/2016,,3991.88,ASC - Supported Living Care Costs,Not Yet Classified
Solihull MBC,Children's Services - DSG Schools - Non DMT,Children & Education Services,Aspire People Ltd,18/04/2016,,312.00,Agency Staff,171011 - Education - School Services
Solihull MBC,Children's Services - DSG Schools - Non DMT,Children & Education Services,Aspire Sports Health & Fitness Ltd,15/04/2016,,1721.36,Professional Fees,Not Yet Classified
Solihull MBC,Children's Services - DSG Schools - Non DMT,Children & Education Services,Aspire Sports Health & Fitness Ltd,12/04/2016,,507.50,Agency Staff: Classroom Support,Not Yet Classified
Solihull MBC,Children's Services - DSG Central.,Children & Education Services,Asquith Court Nursery,11/04/2016,,2646.00,Grant & Subscription (SCITT),321100 - Social Community Care Supplies & Services - Children
Solihull MBC,Children's Services - DSG Central.,Children & Education Services,Asquith Court Nursery,11/04/2016,,2041.20,Grant & Subscription (SCITT),321100 - Social Community Care Supplies & Services - Children
Solihull MBC,Children's Services - DSG Schools - Non DMT,Children & Education Services,Assessment & Qualifications Alliance,19/04/2016,,370.00,Training,Not Yet Classified
Solihull MBC,Children's Services - DSG Schools - Non DMT,Children & Education Services,Assessment & Qualifications Alliance,27/04/2016,,-423.20,Examination Fees,Not Yet Classified
Solihull MBC,Children's Services - DSG Schools - Non DMT,Children & Education Services,A-Stat Office Technology Ltd,12/04/2016,,793.09,Photocopying,171100 - Education - Supplies
Solihull MBC,Children's Services - DSG Schools - Non DMT,Children & Education Services,ATG Tickets,15/04/2016,Card Transaction,468.00,Purchase Card Statement Summary,291300 - Arts & Leisure Services - Performing Arts
Solihull MBC,Managed Growth,Highways & Transport Services,Atkins,14/04/2016,,34798.98,Agency Staff,150000 - Consultancy
Solihull MBC,Managed Growth,Highways & Transport Services,Atkins,14/04/2016,,3535.65,Agency Staff,150000 - Consultancy
Solihull MBC,Managed Growth,Highways & Transport Services,Atkins,22/04/2016,,10743.05,Agency Staff,150000 - Consultancy
Solihull MBC,Managed Growth,Highways & Transport Services,Atkins,14/04/2016,,6147.54,Contractors,150000 - Consultancy
Solihull MBC,Managed Growth,Highways & Transport Services,Atkins,15/04/2016,,5490.63,Agency Staff,150000 - Consultancy
Solihull MBC,Managed Growth,Highways & Transport Services,Atkins,06/04/2016,,1945.85,Consultants,150000 - Consultancy
Solihull MBC,Managed Growth,Highways & Transport Services,Atkins,18/04/2016,,5558.24,Contractors,150000 - Consultancy
Solihull MBC,Managed Growth,Highways & Transport Services,Atkins,18/04/2016,,-5565.24,Contractors,150000 - Consultancy
Solihull MBC,Managed Growth,Highways & Transport Services,Atkins,20/04/2016,,3882.67,Agency Staff,150000 - Consultancy
Solihull MBC,Managed Growth,Highways & Transport Services,Atkins,21/04/2016,,9954.62,Consultants,150000 - Consultancy
Solihull MBC,Managed Growth,Highways & Transport Services,Atkins,18/04/2016,,5565.24,Contractors,150000 - Consultancy
Solihull MBC,Managed Growth,Highways & Transport Services,Atkins,19/04/2016,,-5558.24,Contractors,150000 - Consultancy
Solihull MBC,Communities & Adult Social Care,Central Services to the Public,Atkins Ltd,14/04/2016,,7030.30,Contractors,150000 - Consultancy
Solihull MBC,Resources,Central Services to the Public,Atkins Ltd,25/04/2016,,17686.20,Professional Fees,150000 - Consultancy
Solihull MBC,Managed Growth,Highways & Transport Services,Atkins Ltd,22/04/2016,,1939.00,Consultants,150000 - Consultancy
Solihull MBC,Communities & Adult Social Care,Central Services to the Public,Atkins Ltd,13/04/2016,,30475.00,Contractors,150000 - Consultancy
Solihull MBC,Children's Services - DSG Schools - Non DMT,Children & Education Services,Attain Travel,26/04/2016,,400.00,Visits & Pupil Activities,Not Yet Classified
Solihull MBC,Resources,Central Services to the Public,Audit Partnership Ltd,05/04/2016,,1403.62,IT Equipment & Software,Not Yet Classified
Solihull MBC,Resources,Other Housing Services,Auriga Services Ltd,08/04/2016,,-666.38,Clients Expenses,Not Yet Classified
Solihull MBC,Resources,Other Housing Services,Auriga Services Ltd,08/04/2016,,534.38,Clients Expenses,Not Yet Classified
Solihull MBC,Resources,Other Housing Services,Auriga Services Ltd,08/04/2016,,132.00,Clients Expenses,Not Yet Classified
Solihull MBC,Resources,Other Housing Services,Auriga Services Ltd,08/04/2016,,666.38,Clients Expenses,Not Yet Classified
Solihull MBC,Children's Services - DSG Schools - Non DMT,Children & Education Services,Autism Independent UK,18/04/2016,,292.00,Training,Not Yet Classified
Solihull MBC,Communities & Adult Social Care,Adult Social Care,Autism West Midlands,06/04/2016,,6060.00,ASC - Residential Care Permanent,321000 - Social Community Care Supplies & Services - Adult
Solihull MBC,Communities & Adult Social Care,Adult Social Care,Autism West Midlands,06/04/2016,,9494.00,ASC - Residential Care Permanent,321000 - Social Community Care Supplies & Services - Adult
Solihull MBC,Communities & Adult Social Care,Adult Social Care,Autism West Midlands,06/04/2016,,2875.32,ASC - Domiciliary Care,321000 - Social Community Care Supplies & Services - Adult
Solihull MBC,Communities & Adult Social Care,Adult Social Care,Autism West Midlands,06/04/2016,,4264.08,ASC - Residential Care Permanent,321000 - Social Community Care Supplies & Services - Adult
Solihull MBC,Communities & Adult Social Care,Adult Social Care,Autism West Midlands,06/04/2016,,5681.08,ASC - Residential Care Permanent,321000 - Social Community Care Supplies & Services - Adult
Solihull MBC,Communities & Adult Social Care,Adult Social Care,Autism West Midlands,06/04/2016,,528.84,ASC - Home Care Support Services,321000 - Social Community Care Supplies & Services - Adult
Solihull MBC,Communities & Adult Social Care,Adult Social Care,Autism West Midlands,06/04/2016,,6129.08,ASC - Residential Care Permanent,321000 - Social Community Care Supplies & Services - Adult
Solihull MBC,Managed Growth,Environmental and Regulatory Services,Automatic Flare Systems Ltd,01/04/2016,,16302.00,Other Contracted Services,150000 - Consultancy
Solihull MBC,Managed Growth,Highways & Transport Services,Automotive Leasing (Orders),20/04/2016,,347.42,Transport-Contract Hire,360000 - Public Transport
Solihull MBC,Managed Growth,Highways & Transport Services,Automotive Leasing (Orders),20/04/2016,,347.42,Transport-Contract Hire,360000 - Public Transport
Solihull MBC,Managed Growth,Cultural & Related Services,Automotive Leasing (Orders),07/04/2016,,297.37,Transport-Contract Hire,360000 - Public Transport
Solihull MBC,Managed Growth,Cultural & Related Services,Automotive Leasing (Orders),07/04/2016,,281.81,Transport-Contract Hire,360000 - Public Transport
Solihull MBC,Managed Growth,Cultural & Related Services,Automotive Leasing (Orders),07/04/2016,,297.37,Transport-Contract Hire,360000 - Public Transport
Solihull MBC,Managed Growth,Highways & Transport Services,Automotive Leasing (Orders),20/04/2016,,236.78,Transport-Contract Hire,360000 - Public Transport
Solihull MBC,Managed Growth,Highways & Transport Services,Automotive Leasing (Orders),20/04/2016,,236.78,Transport-Contract Hire,360000 - Public Transport
Solihull MBC,Communities & Adult Social Care,Adult Social Care,Automotive Leasing (Orders),28/04/2016,,324.26,Transport-Contract Hire,360000 - Public Transport
Solihull MBC,Communities & Adult Social Care,Adult Social Care,Automotive Leasing (Orders),28/04/2016,,341.28,Transport-Contract Hire,360000 - Public Transport
Solihull MBC,Communities & Adult Social Care,Adult Social Care,Automotive Leasing (Orders),28/04/2016,,341.28,Transport-Contract Hire,360000 - Public Transport
Solihull MBC,Communities & Adult Social Care,Adult Social Care,Automotive Leasing (Orders),28/04/2016,,445.24,Transport-Contract Hire,360000 - Public Transport
Solihull MBC,Communities & Adult Social Care,Adult Social Care,Automotive Leasing (Orders),28/04/2016,,324.26,Transport-Contract Hire,360000 - Public Transport
Solihull MBC,Communities & Adult Social Care,Adult Social Care,Automotive Leasing (Orders),28/04/2016,,324.26,Transport-Contract Hire,360000 - Public Transport
Solihull MBC,Communities & Adult Social Care,Adult Social Care,Automotive Leasing (Orders),28/04/2016,,341.28,Transport-Contract Hire,360000 - Public Transport
Solihull MBC,Communities & Adult Social Care,Adult Social Care,Automotive Leasing (Orders),28/04/2016,,445.24,Transport-Contract Hire,360000 - Public Transport
Solihull MBC,Communities & Adult Social Care,Adult Social Care,Automotive Leasing (Orders),28/04/2016,,341.28,Transport-Contract Hire,360000 - Public Transport
Solihull MBC,Communities & Adult Social Care,Adult Social Care,Automotive Leasing (Orders),28/04/2016,,-389.11,Transport-Contract Hire,360000 - Public Transport
Solihull MBC,Communities & Adult Social Care,Adult Social Care,Automotive Leasing (Orders),28/04/2016,,324.26,Transport-Contract Hire,360000 - Public Transport
Solihull MBC,Managed Growth,Highways & Transport Services,Automotive Leasing (Orders),29/04/2016,,210.80,Transport-Contract Hire,360000 - Public Transport
Solihull MBC,Communities & Adult Social Care,Adult Social Care,Automotive Leasing (Orders),28/04/2016,,389.11,Transport-Contract Hire,360000 - Public Transport
Solihull MBC,Communities & Adult Social Care,Adult Social Care,Auxilio Care Ltd,06/04/2016,,7154.00,ASC - Supported Living Care Costs,Not Yet Classified
Solihull MBC,Communities & Adult Social Care,Adult Social Care,Auxilio Care Ltd,06/04/2016,,4764.48,ASC - Supported Living Care Costs,Not Yet Classified
Solihull MBC,Communities & Adult Social Care,Adult Social Care,Auxilio Care Ltd,06/04/2016,,5947.60,ASC - Supported Living Care Costs,Not Yet Classified
Solihull MBC,Communities & Adult Social Care,Adult Social Care,Auxilio Care Ltd,06/04/2016,,9506.00,ASC - Supported Living Care Costs,Not Yet Classified
Solihull MBC,Communities & Adult Social Care,Adult Social Care,Auxilio Care Ltd,06/04/2016,,3738.00,ASC - Supported Living Care Costs,Not Yet Classified
Solihull MBC,Communities & Adult Social Care,Adult Social Care,Auxilio Care Ltd,06/04/2016,,7060.48,ASC - Supported Living Care Costs,Not Yet Classified
Solihull MBC,Children's Services - DSG Schools - Non DMT,Children & Education Services,AV Partsmaster Ltd,18/04/2016,,401.76,IT Equipment & Software,Not Yet Classified
Solihull MBC,Communities & Adult Social Care,Adult Social Care,Avery Homes Wolverhampton,06/04/2016,,2052.32,ASC - Residential Care Permanent,Not Yet Classified
Solihull MBC,Managed Growth,Highways & Transport Services,Avery Weigh-Tronix,25/04/2016,,833.00,Furniture & Equipment,Not Yet Classified
Solihull MBC,Children's Services - DSG Schools - Non DMT,Children & Education Services,B & H Images,25/04/2016,,399.79,Furniture & Equipment,171011 - Education - School Services
Solihull MBC,Resources,Central Services to the Public,BACS Payment Schemes Ltd,13/04/2016,,340.00,IT Equipment & Software,Not Yet Classified
Solihull MBC,Managed Growth,Planning & Development Services,Bailey Design Ltd,04/04/2016,,385.00,Planning Application Fees,Not Yet Classified
Solihull MBC,Managed Growth,Highways & Transport Services,Balfour Beatty Living Places Ltd,26/04/2016,,35.07,Other Contracted Services,"391400 - Works - Construction, Repair & Maintenance"
Solihull MBC,Managed Growth,Highways & Transport Services,Balfour Beatty Living Places Ltd,26/04/2016,,35.07,Other Contracted Services,"391400 - Works - Construction, Repair & Maintenance"
Solihull MBC,Managed Growth,Highways & Transport Services,Balfour Beatty Living Places Ltd,26/04/2016,,35.07,Other Contracted Services,"391400 - Works - Construction, Repair & Maintenance"
Solihull MBC,Managed Growth,Highways & Transport Services,Balfour Beatty Living Places Ltd,26/04/2016,,35.07,Other Contracted Services,"391400 - Works - Construction, Repair & Maintenance"
Solihull MBC,Managed Growth,Highways & Transport Services,Balfour Beatty Living Places Ltd,26/04/2016,,35.07,Other Contracted Services,"391400 - Works - Construction, Repair & Maintenance"
Solihull MBC,Managed Growth,Highways & Transport Services,Balfour Beatty Living Places Ltd,26/04/2016,,35.07,Other Contracted Services,"391400 - Works - Construction, Repair & Maintenance"
Solihull MBC,Managed Growth,Highways & Transport Services,Balfour Beatty Living Places Ltd,26/04/2016,,35.07,Other Contracted Services,"391400 - Works - Construction, Repair & Maintenance"
Solihull MBC,Managed Growth,Highways & Transport Services,Balfour Beatty Living Places Ltd,26/04/2016,,35.07,Other Contracted Services,"391400 - Works - Construction, Repair & Maintenance"
Solihull MBC,Managed Growth,Highways & Transport Services,Balfour Beatty Living Places Ltd,26/04/2016,,30.86,Other Contracted Services,"391400 - Works - Construction, Repair & Maintenance"
Solihull MBC,Managed Growth,Highways & Transport Services,Balfour Beatty Living Places Ltd,26/04/2016,,30.86,Other Contracted Services,"391400 - Works - Construction, Repair & Maintenance"
Solihull MBC,Managed Growth,Highways & Transport Services,Balfour Beatty Living Places Ltd,26/04/2016,,30.86,Other Contracted Services,"391400 - Works - Construction, Repair & Maintenance"
Solihull MBC,Managed Growth,Highways & Transport Services,Balfour Beatty Living Places Ltd,26/04/2016,,30.86,Other Contracted Services,"391400 - Works - Construction, Repair & Maintenance"
Solihull MBC,Managed Growth,Highways & Transport Services,Balfour Beatty Living Places Ltd,26/04/2016,,30.86,Other Contracted Services,"391400 - Works - Construction, Repair & Maintenance"
Solihull MBC,Managed Growth,Highways & Transport Services,Balfour Beatty Living Places Ltd,26/04/2016,,30.86,Other Contracted Services,"391400 - Works - Construction, Repair & Maintenance"
Solihull MBC,Managed Growth,Highways & Transport Services,Balfour Beatty Living Places Ltd,26/04/2016,,30.86,Other Contracted Services,"391400 - Works - Construction, Repair & Maintenance"
Solihull MBC,Managed Growth,Highways & Transport Services,Balfour Beatty Living Places Ltd,26/04/2016,,30.86,Other Contracted Services,"391400 - Works - Construction, Repair & Maintenance"
Solihull MBC,Managed Growth,Highways & Transport Services,Balfour Beatty Living Places Ltd,26/04/2016,,30.86,Other Contracted Services,"391400 - Works - Construction, Repair & Maintenance"
Solihull MBC,Managed Growth,Highways & Transport Services,Balfour Beatty Living Places Ltd,26/04/2016,,29.47,Other Contracted Services,"391400 - Works - Construction, Repair & Maintenance"
Solihull MBC,Managed Growth,Highways & Transport Services,Balfour Beatty Living Places Ltd,26/04/2016,,28.15,Other Contracted Services,"391400 - Works - Construction, Repair & Maintenance"
Solihull MBC,Managed Growth,Highways & Transport Services,Balfour Beatty Living Places Ltd,26/04/2016,,29.22,Other Contracted Services,"391400 - Works - Construction, Repair & Maintenance"
Solihull MBC,Managed Growth,Highways & Transport Services,Balfour Beatty Living Places Ltd,26/04/2016,,28.15,Other Contracted Services,"391400 - Works - Construction, Repair & Maintenance"
Solihull MBC,Managed Growth,Highways & Transport Services,Balfour Beatty Living Places Ltd,26/04/2016,,28.15,Other Contracted Services,"391400 - Works - Construction, Repair & Maintenance"
Solihull MBC,Managed Growth,Highways & Transport Services,Balfour Beatty Living Places Ltd,26/04/2016,,28.13,Other Contracted Services,"391400 - Works - Construction, Repair & Maintenance"
Solihull MBC,Managed Growth,Highways & Transport Services,Balfour Beatty Living Places Ltd,26/04/2016,,27.97,Other Contracted Services,"391400 - Works - Construction, Repair & Maintenance"
Solihull MBC,Managed Growth,Highways & Transport Services,Balfour Beatty Living Places Ltd,26/04/2016,,26.28,Other Contracted Services,"391400 - Works - Construction, Repair & Maintenance"
Solihull MBC,Managed Growth,Highways & Transport Services,Balfour Beatty Living Places Ltd,26/04/2016,,24.86,Other Contracted Services,"391400 - Works - Construction, Repair & Maintenance"
Solihull MBC,Managed Growth,Highways & Transport Services,Balfour Beatty Living Places Ltd,26/04/2016,,24.61,Other Contracted Services,"391400 - Works - Construction, Repair & Maintenance"
Solihull MBC,Managed Growth,Highways & Transport Services,Balfour Beatty Living Places Ltd,26/04/2016,,23.38,Other Contracted Services,"391400 - Works - Construction, Repair & Maintenance"
Solihull MBC,Managed Growth,Highways & Transport Services,Balfour Beatty Living Places Ltd,26/04/2016,,23.38,Other Contracted Services,"391400 - Works - Construction, Repair & Maintenance"
Solihull MBC,Managed Growth,Highways & Transport Services,Balfour Beatty Living Places Ltd,26/04/2016,,23.38,Other Contracted Services,"391400 - Works - Construction, Repair & Maintenance"
Solihull MBC,Managed Growth,Highways & Transport Services,Balfour Beatty Living Places Ltd,26/04/2016,,23.38,Other Contracted Services,"391400 - Works - Construction, Repair & Maintenance"
Solihull MBC,Managed Growth,Highways & Transport Services,Balfour Beatty Living Places Ltd,26/04/2016,,23.38,Other Contracted Services,"391400 - Works - Construction, Repair & Maintenance"
Solihull MBC,Managed Growth,Highways & Transport Services,Balfour Beatty Living Places Ltd,26/04/2016,,22.57,Other Contracted Services,"391400 - Works - Construction, Repair & Maintenance"
Solihull MBC,Managed Growth,Highways & Transport Services,Balfour Beatty Living Places Ltd,26/04/2016,,21.91,Other Contracted Services,"391400 - Works - Construction, Repair & Maintenance"
Solihull MBC,Managed Growth,Highways & Transport Services,Balfour Beatty Living Places Ltd,26/04/2016,,66872.95,Other Contracted Services,"391400 - Works - Construction, Repair & Maintenance"
Solihull MBC,Managed Growth,Highways & Transport Services,Balfour Beatty Living Places Ltd,26/04/2016,,125273.52,Other Contracted Services,"391400 - Works - Construction, Repair & Maintenance"
Solihull MBC,Managed Growth,Highways & Transport Services,Balfour Beatty Living Places Ltd,26/04/2016,,100306.80,Contractors,"391400 - Works - Construction, Repair & Maintenance"
Solihull MBC,Managed Growth,Highways & Transport Services,Balfour Beatty Living Places Ltd,26/04/2016,,87464.01,Contractors,"391400 - Works - Construction, Repair & Maintenance"
Solihull MBC,Managed Growth,Highways & Transport Services,Balfour Beatty Living Places Ltd,26/04/2016,,83151.63,Contractors,"391400 - Works - Construction, Repair & Maintenance"
Solihull MBC,Managed Growth,Highways & Transport Services,Balfour Beatty Living Places Ltd,26/04/2016,,74985.05,Contractors,"391400 - Works - Construction, Repair & Maintenance"
Solihull MBC,Managed Growth,Highways & Transport Services,Balfour Beatty Living Places Ltd,22/04/2016,,193704.37,Contractors,"391400 - Works - Construction, Repair & Maintenance"
Solihull MBC,Managed Growth,Highways & Transport Services,Balfour Beatty Living Places Ltd,22/04/2016,,47073.55,Contractors,"391400 - Works - Construction, Repair & Maintenance"
Solihull MBC,Managed Growth,Highways & Transport Services,Balfour Beatty Living Places Ltd,26/04/2016,,79.89,Other Contracted Services,"391400 - Works - Construction, Repair & Maintenance"
Solihull MBC,Managed Growth,Highways & Transport Services,Balfour Beatty Living Places Ltd,26/04/2016,,91.57,Other Contracted Services,"391400 - Works - Construction, Repair & Maintenance"
Solihull MBC,Managed Growth,Highways & Transport Services,Balfour Beatty Living Places Ltd,26/04/2016,,87.95,Contractors,"391400 - Works - Construction, Repair & Maintenance"
Solihull MBC,Managed Growth,Highways & Transport Services,Balfour Beatty Living Places Ltd,26/04/2016,,87.67,Other Contracted Services,"391400 - Works - Construction, Repair & Maintenance"
Solihull MBC,Managed Growth,Highways & Transport Services,Balfour Beatty Living Places Ltd,26/04/2016,,87.67,Other Contracted Services,"391400 - Works - Construction, Repair & Maintenance"
Solihull MBC,Managed Growth,Highways & Transport Services,Balfour Beatty Living Places Ltd,26/04/2016,,70.15,Other Contracted Services,"391400 - Works - Construction, Repair & Maintenance"
Solihull MBC,Managed Growth,Highways & Transport Services,Balfour Beatty Living Places Ltd,26/04/2016,,70.13,Other Contracted Services,"391400 - Works - Construction, Repair & Maintenance"
Solihull MBC,Managed Growth,Highways & Transport Services,Balfour Beatty Living Places Ltd,26/04/2016,,65.68,Other Contracted Services,"391400 - Works - Construction, Repair & Maintenance"
Solihull MBC,Managed Growth,Highways & Transport Services,Balfour Beatty Living Places Ltd,26/04/2016,,63.14,Other Contracted Services,"391400 - Works - Construction, Repair & Maintenance"
Solihull MBC,Managed Growth,Highways & Transport Services,Balfour Beatty Living Places Ltd,26/04/2016,,63.14,Other Contracted Services,"391400 - Works - Construction, Repair & Maintenance"
Solihull MBC,Managed Growth,Highways & Transport Services,Balfour Beatty Living Places Ltd,26/04/2016,,61.71,Other Contracted Services,"391400 - Works - Construction, Repair & Maintenance"
Solihull MBC,Managed Growth,Highways & Transport Services,Balfour Beatty Living Places Ltd,26/04/2016,,61.71,Other Contracted Services,"391400 - Works - Construction, Repair & Maintenance"
Solihull MBC,Managed Growth,Highways & Transport Services,Balfour Beatty Living Places Ltd,26/04/2016,,61.71,Other Contracted Services,"391400 - Works - Construction, Repair & Maintenance"
Solihull MBC,Managed Growth,Planning & Development Services,Balfour Beatty Living Places Ltd,13/04/2016,,7945.28,Contractors,"391400 - Works - Construction, Repair & Maintenance"
Solihull MBC,Managed Growth,Highways & Transport Services,Balfour Beatty Living Places Ltd,26/04/2016,,2334.96,Other Contracted Services,"391400 - Works - Construction, Repair & Maintenance"
Solihull MBC,Managed Growth,Highways & Transport Services,Balfour Beatty Living Places Ltd,26/04/2016,,2376.29,Other Contracted Services,"391400 - Works - Construction, Repair & Maintenance"
Solihull MBC,Managed Growth,Highways & Transport Services,Balfour Beatty Living Places Ltd,26/04/2016,,2367.01,Other Contracted Services,"391400 - Works - Construction, Repair & Maintenance"
Solihull MBC,Managed Growth,Highways & Transport Services,Balfour Beatty Living Places Ltd,26/04/2016,,2346.83,Other Contracted Services,"391400 - Works - Construction, Repair & Maintenance"
Solihull MBC,Managed Growth,Highways & Transport Services,Balfour Beatty Living Places Ltd,26/04/2016,,2256.15,Other Contracted Services,"391400 - Works - Construction, Repair & Maintenance"
Solihull MBC,Managed Growth,Highways & Transport Services,Balfour Beatty Living Places Ltd,26/04/2016,,2238.37,Other Contracted Services,"391400 - Works - Construction, Repair & Maintenance"
Solihull MBC,Managed Growth,Highways & Transport Services,Balfour Beatty Living Places Ltd,26/04/2016,,2119.80,Other Contracted Services,"391400 - Works - Construction, Repair & Maintenance"
Solihull MBC,Managed Growth,Highways & Transport Services,Balfour Beatty Living Places Ltd,26/04/2016,,2119.19,Contractors,"391400 - Works - Construction, Repair & Maintenance"
Solihull MBC,Managed Growth,Highways & Transport Services,Balfour Beatty Living Places Ltd,26/04/2016,,2085.76,Other Contracted Services,"391400 - Works - Construction, Repair & Maintenance"
Solihull MBC,Managed Growth,Highways & Transport Services,Balfour Beatty Living Places Ltd,26/04/2016,,2056.73,Other Contracted Services,"391400 - Works - Construction, Repair & Maintenance"
Solihull MBC,Managed Growth,Highways & Transport Services,Balfour Beatty Living Places Ltd,26/04/2016,,1981.03,Contractors,"391400 - Works - Construction, Repair & Maintenance"
Solihull MBC,Managed Growth,Highways & Transport Services,Balfour Beatty Living Places Ltd,26/04/2016,,1726.28,Other Contracted Services,"391400 - Works - Construction, Repair & Maintenance"
Solihull MBC,Managed Growth,Highways & Transport Services,Balfour Beatty Living Places Ltd,26/04/2016,,1980.73,Other Contracted Services,"391400 - Works - Construction, Repair & Maintenance"
Solihull MBC,Managed Growth,Highways & Transport Services,Balfour Beatty Living Places Ltd,26/04/2016,,1929.79,Other Contracted Services,"391400 - Works - Construction, Repair & Maintenance"
Solihull MBC,Managed Growth,Highways & Transport Services,Balfour Beatty Living Places Ltd,26/04/2016,,1845.64,Other Contracted Services,"391400 - Works - Construction, Repair & Maintenance"
Solihull MBC,Managed Growth,Highways & Transport Services,Balfour Beatty Living Places Ltd,26/04/2016,,1722.05,Other Contracted Services,"391400 - Works - Construction, Repair & Maintenance"
Solihull MBC,Managed Growth,Highways & Transport Services,Balfour Beatty Living Places Ltd,26/04/2016,,1690.32,Contractors,"391400 - Works - Construction, Repair & Maintenance"
Solihull MBC,Managed Growth,Highways & Transport Services,Balfour Beatty Living Places Ltd,26/04/2016,,1616.59,Other Contracted Services,"391400 - Works - Construction, Repair & Maintenance"
Solihull MBC,Managed Growth,Highways & Transport Services,Balfour Beatty Living Places Ltd,26/04/2016,,1467.51,Other Contracted Services,"391400 - Works - Construction, Repair & Maintenance"
Solihull MBC,Managed Growth,Highways & Transport Services,Balfour Beatty Living Places Ltd,26/04/2016,,1359.73,Other Contracted Services,"391400 - Works - Construction, Repair & Maintenance"
Solihull MBC,Managed Growth,Highways & Transport Services,Balfour Beatty Living Places Ltd,26/04/2016,,1310.77,Other Contracted Services,"391400 - Works - Construction, Repair & Maintenance"
Solihull MBC,Managed Growth,Highways & Transport Services,Balfour Beatty Living Places Ltd,26/04/2016,,1288.26,Other Contracted Services,"391400 - Works - Construction, Repair & Maintenance"
Solihull MBC,Managed Growth,Highways & Transport Services,Balfour Beatty Living Places Ltd,26/04/2016,,1277.43,Other Contracted Services,"391400 - Works - Construction, Repair & Maintenance"
Solihull MBC,Managed Growth,Highways & Transport Services,Balfour Beatty Living Places Ltd,26/04/2016,,1221.12,Other Contracted Services,"391400 - Works - Construction, Repair & Maintenance"
Solihull MBC,Managed Growth,Highways & Transport Services,Balfour Beatty Living Places Ltd,26/04/2016,,1162.49,Other Contracted Services,"391400 - Works - Construction, Repair & Maintenance"
Solihull MBC,Managed Growth,Highways & Transport Services,Balfour Beatty Living Places Ltd,26/04/2016,,1136.95,Other Contracted Services,"391400 - Works - Construction, Repair & Maintenance"
Solihull MBC,Managed Growth,Highways & Transport Services,Balfour Beatty Living Places Ltd,26/04/2016,,1080.57,Other Contracted Services,"391400 - Works - Construction, Repair & Maintenance"
Solihull MBC,Managed Growth,Highways & Transport Services,Balfour Beatty Living Places Ltd,26/04/2016,,1128.70,Other Contracted Services,"391400 - Works - Construction, Repair & Maintenance"
Solihull MBC,Managed Growth,Highways & Transport Services,Balfour Beatty Living Places Ltd,26/04/2016,,1103.17,Other Contracted Services,"391400 - Works - Construction, Repair & Maintenance"
Solihull MBC,Managed Growth,Highways & Transport Services,Balfour Beatty Living Places Ltd,26/04/2016,,1096.86,Other Contracted Services,"391400 - Works - Construction, Repair & Maintenance"
Solihull MBC,Managed Growth,Highways & Transport Services,Balfour Beatty Living Places Ltd,26/04/2016,,1043.82,Contractors,"391400 - Works - Construction, Repair & Maintenance"
Solihull MBC,Managed Growth,Highways & Transport Services,Balfour Beatty Living Places Ltd,26/04/2016,,1025.27,Other Contracted Services,"391400 - Works - Construction, Repair & Maintenance"
Solihull MBC,Managed Growth,Highways & Transport Services,Balfour Beatty Living Places Ltd,26/04/2016,,991.25,Other Contracted Services,"391400 - Works - Construction, Repair & Maintenance"
Solihull MBC,Managed Growth,Highways & Transport Services,Balfour Beatty Living Places Ltd,26/04/2016,,973.53,Other Contracted Services,"391400 - Works - Construction, Repair & Maintenance"
Solihull MBC,Managed Growth,Highways & Transport Services,Balfour Beatty Living Places Ltd,26/04/2016,,937.37,Other Contracted Services,"391400 - Works - Construction, Repair & Maintenance"
Solihull MBC,Managed Growth,Highways & Transport Services,Balfour Beatty Living Places Ltd,26/04/2016,,920.70,Other Contracted Services,"391400 - Works - Construction, Repair & Maintenance"
Solihull MBC,Managed Growth,Highways & Transport Services,Balfour Beatty Living Places Ltd,26/04/2016,,912.33,Other Contracted Services,"391400 - Works - Construction, Repair & Maintenance"
Solihull MBC,Managed Growth,Highways & Transport Services,Balfour Beatty Living Places Ltd,26/04/2016,,897.24,Other Contracted Services,"391400 - Works - Construction, Repair & Maintenance"
Solihull MBC,Managed Growth,Highways & Transport Services,Balfour Beatty Living Places Ltd,26/04/2016,,893.32,Other Contracted Services,"391400 - Works - Construction, Repair & Maintenance"
Solihull MBC,Managed Growth,Highways & Transport Services,Balfour Beatty Living Places Ltd,26/04/2016,,865.78,Other Contracted Services,"391400 - Works - Construction, Repair & Maintenance"
Solihull MBC,Managed Growth,Highways & Transport Services,Balfour Beatty Living Places Ltd,26/04/2016,,59.96,Other Contracted Services,"391400 - Works - Construction, Repair & Maintenance"
Solihull MBC,Managed Growth,Highways & Transport Services,Balfour Beatty Living Places Ltd,26/04/2016,,48.97,Other Contracted Services,"391400 - Works - Construction, Repair & Maintenance"
Solihull MBC,Managed Growth,Highways & Transport Services,Balfour Beatty Living Places Ltd,26/04/2016,,53.76,Other Contracted Services,"391400 - Works - Construction, Repair & Maintenance"
Solihull MBC,Managed Growth,Highways & Transport Services,Balfour Beatty Living Places Ltd,26/04/2016,,52.60,Other Contracted Services,"391400 - Works - Construction, Repair & Maintenance"
Solihull MBC,Managed Growth,Highways & Transport Services,Balfour Beatty Living Places Ltd,26/04/2016,,51.41,Other Contracted Services,"391400 - Works - Construction, Repair & Maintenance"
Solihull MBC,Managed Growth,Highways & Transport Services,Balfour Beatty Living Places Ltd,26/04/2016,,46.81,Other Contracted Services,"391400 - Works - Construction, Repair & Maintenance"
Solihull MBC,Managed Growth,Highways & Transport Services,Balfour Beatty Living Places Ltd,26/04/2016,,43.73,Other Contracted Services,"391400 - Works - Construction, Repair & Maintenance"
Solihull MBC,Managed Growth,Highways & Transport Services,Balfour Beatty Living Places Ltd,26/04/2016,,40.94,Other Contracted Services,"391400 - Works - Construction, Repair & Maintenance"
Solihull MBC,Managed Growth,Highways & Transport Services,Balfour Beatty Living Places Ltd,26/04/2016,,39.38,Other Contracted Services,"391400 - Works - Construction, Repair & Maintenance"
Solihull MBC,Managed Growth,Highways & Transport Services,Balfour Beatty Living Places Ltd,26/04/2016,,37.29,Other Contracted Services,"391400 - Works - Construction, Repair & Maintenance"
Solihull MBC,Managed Growth,Highways & Transport Services,Balfour Beatty Living Places Ltd,26/04/2016,,35.08,Other Contracted Services,"391400 - Works - Construction, Repair & Maintenance"
Solihull MBC,Managed Growth,Highways & Transport Services,Balfour Beatty Living Places Ltd,26/04/2016,,35.08,Other Contracted Services,"391400 - Works - Construction, Repair & Maintenance"
Solihull MBC,Managed Growth,Highways & Transport Services,Balfour Beatty Living Places Ltd,26/04/2016,,35.07,Other Contracted Services,"391400 - Works - Construction, Repair & Maintenance"
Solihull MBC,Managed Growth,Highways & Transport Services,Balfour Beatty Living Places Ltd,26/04/2016,,35.07,Other Contracted Services,"391400 - Works - Construction, Repair & Maintenance"
Solihull MBC,Managed Growth,Highways & Transport Services,Balfour Beatty Living Places Ltd,26/04/2016,,35.07,Other Contracted Services,"391400 - Works - Construction, Repair & Maintenance"
Solihull MBC,Managed Growth,Highways & Transport Services,Balfour Beatty Living Places Ltd,26/04/2016,,35.07,Other Contracted Services,"391400 - Works - Construction, Repair & Maintenance"
Solihull MBC,Managed Growth,Highways & Transport Services,Balfour Beatty Living Places Ltd,26/04/2016,,35.07,Other Contracted Services,"391400 - Works - Construction, Repair & Maintenance"
Solihull MBC,Managed Growth,Highways & Transport Services,Balfour Beatty Living Places Ltd,26/04/2016,,35.07,Other Contracted Services,"391400 - Works - Construction, Repair & Maintenance"
Solihull MBC,Managed Growth,Highways & Transport Services,Balfour Beatty Living Places Ltd,26/04/2016,,35.07,Other Contracted Services,"391400 - Works - Construction, Repair & Maintenance"
Solihull MBC,Managed Growth,Highways & Transport Services,Balfour Beatty Living Places Ltd,26/04/2016,,35.07,Other Contracted Services,"391400 - Works - Construction, Repair & Maintenance"
Solihull MBC,Managed Growth,Highways & Transport Services,Balfour Beatty Living Places Ltd,26/04/2016,,35.07,Other Contracted Services,"391400 - Works - Construction, Repair & Maintenance"
Solihull MBC,Managed Growth,Highways & Transport Services,Balfour Beatty Living Places Ltd,26/04/2016,,35.07,Other Contracted Services,"391400 - Works - Construction, Repair & Maintenance"
Solihull MBC,Managed Growth,Highways & Transport Services,Balfour Beatty Living Places Ltd,26/04/2016,,35.07,Other Contracted Services,"391400 - Works - Construction, Repair & Maintenance"
Solihull MBC,Managed Growth,Highways & Transport Services,Balfour Beatty Living Places Ltd,26/04/2016,,35.07,Other Contracted Services,"391400 - Works - Construction, Repair & Maintenance"
Solihull MBC,Managed Growth,Highways & Transport Services,Balfour Beatty Living Places Ltd,26/04/2016,,860.39,Other Contracted Services,"391400 - Works - Construction, Repair & Maintenance"
Solihull MBC,Managed Growth,Highways & Transport Services,Balfour Beatty Living Places Ltd,26/04/2016,,853.93,Other Contracted Services,"391400 - Works - Construction, Repair & Maintenance"
Solihull MBC,Managed Growth,Highways & Transport Services,Balfour Beatty Living Places Ltd,26/04/2016,,765.57,Other Contracted Services,"391400 - Works - Construction, Repair & Maintenance"
Solihull MBC,Managed Growth,Highways & Transport Services,Balfour Beatty Living Places Ltd,26/04/2016,,844.93,Other Contracted Services,"391400 - Works - Construction, Repair & Maintenance"
Solihull MBC,Managed Growth,Highways & Transport Services,Balfour Beatty Living Places Ltd,26/04/2016,,808.17,Other Contracted Services,"391400 - Works - Construction, Repair & Maintenance"
Solihull MBC,Managed Growth,Highways & Transport Services,Balfour Beatty Living Places Ltd,26/04/2016,,767.91,Other Contracted Services,"391400 - Works - Construction, Repair & Maintenance"
Solihull MBC,Managed Growth,Highways & Transport Services,Balfour Beatty Living Places Ltd,26/04/2016,,764.27,Other Contracted Services,"391400 - Works - Construction, Repair & Maintenance"
Solihull MBC,Managed Growth,Highways & Transport Services,Balfour Beatty Living Places Ltd,26/04/2016,,735.19,Other Contracted Services,"391400 - Works - Construction, Repair & Maintenance"
Solihull MBC,Managed Growth,Highways & Transport Services,Balfour Beatty Living Places Ltd,26/04/2016,,711.26,Other Contracted Services,"391400 - Works - Construction, Repair & Maintenance"
Solihull MBC,Managed Growth,Highways & Transport Services,Balfour Beatty Living Places Ltd,26/04/2016,,708.16,Other Contracted Services,"391400 - Works - Construction, Repair & Maintenance"
Solihull MBC,Managed Growth,Highways & Transport Services,Balfour Beatty Living Places Ltd,26/04/2016,,698.13,Other Contracted Services,"391400 - Works - Construction, Repair & Maintenance"
Solihull MBC,Managed Growth,Highways & Transport Services,Balfour Beatty Living Places Ltd,26/04/2016,,679.74,Other Contracted Services,"391400 - Works - Construction, Repair & Maintenance"
Solihull MBC,Managed Growth,Highways & Transport Services,Balfour Beatty Living Places Ltd,26/04/2016,,600.78,Other Contracted Services,"391400 - Works - Construction, Repair & Maintenance"
Solihull MBC,Managed Growth,Highways & Transport Services,Balfour Beatty Living Places Ltd,26/04/2016,,586.80,Other Contracted Services,"391400 - Works - Construction, Repair & Maintenance"
Solihull MBC,Managed Growth,Highways & Transport Services,Balfour Beatty Living Places Ltd,26/04/2016,,548.91,Other Contracted Services,"391400 - Works - Construction, Repair & Maintenance"
Solihull MBC,Managed Growth,Highways & Transport Services,Balfour Beatty Living Places Ltd,26/04/2016,,542.21,Contractors,"391400 - Works - Construction, Repair & Maintenance"
Solihull MBC,Managed Growth,Highways & Transport Services,Balfour Beatty Living Places Ltd,26/04/2016,,531.95,Other Contracted Services,"391400 - Works - Construction, Repair & Maintenance"
Solihull MBC,Managed Growth,Highways & Transport Services,Balfour Beatty Living Places Ltd,26/04/2016,,438.66,Other Contracted Services,"391400 - Works - Construction, Repair & Maintenance"
Solihull MBC,Managed Growth,Highways & Transport Services,Balfour Beatty Living Places Ltd,26/04/2016,,303.78,Other Contracted Services,"391400 - Works - Construction, Repair & Maintenance"
Solihull MBC,Managed Growth,Highways & Transport Services,Balfour Beatty Living Places Ltd,26/04/2016,,421.77,Other Contracted Services,"391400 - Works - Construction, Repair & Maintenance"
Solihull MBC,Managed Growth,Highways & Transport Services,Balfour Beatty Living Places Ltd,26/04/2016,,370.74,Other Contracted Services,"391400 - Works - Construction, Repair & Maintenance"
Solihull MBC,Managed Growth,Highways & Transport Services,Balfour Beatty Living Places Ltd,26/04/2016,,314.27,Other Contracted Services,"391400 - Works - Construction, Repair & Maintenance"
Solihull MBC,Managed Growth,Highways & Transport Services,Balfour Beatty Living Places Ltd,26/04/2016,,229.40,Other Contracted Services,"391400 - Works - Construction, Repair & Maintenance"
Solihull MBC,Managed Growth,Highways & Transport Services,Balfour Beatty Living Places Ltd,26/04/2016,,172.16,Other Contracted Services,"391400 - Works - Construction, Repair & Maintenance"
Solihull MBC,Managed Growth,Highways & Transport Services,Balfour Beatty Living Places Ltd,26/04/2016,,125.64,Contractors,"391400 - Works - Construction, Repair & Maintenance"
Solihull MBC,Managed Growth,Highways & Transport Services,Balfour Beatty Living Places Ltd,26/04/2016,,105.20,Other Contracted Services,"391400 - Works - Construction, Repair & Maintenance"
Solihull MBC,Managed Growth,Highways & Transport Services,Balfour Beatty Living Places Ltd,26/04/2016,,102.79,Other Contracted Services,"391400 - Works - Construction, Repair & Maintenance"
Solihull MBC,Managed Growth,Highways & Transport Services,Balfour Beatty Living Places Ltd,26/04/2016,,102.03,Other Contracted Services,"391400 - Works - Construction, Repair & Maintenance"
Solihull MBC,Managed Growth,Highways & Transport Services,Balfour Beatty Living Places Ltd,26/04/2016,,99.54,Other Contracted Services,"391400 - Works - Construction, Repair & Maintenance"
Solihull MBC,Managed Growth,Highways & Transport Services,Balfour Beatty Living Places Ltd,26/04/2016,,96.19,Other Contracted Services,"391400 - Works - Construction, Repair & Maintenance"
Solihull MBC,Managed Growth,Highways & Transport Services,Balfour Beatty Living Places Ltd,26/04/2016,,91.57,Other Contracted Services,"391400 - Works - Construction, Repair & Maintenance"
Solihull MBC,Managed Growth,Highways & Transport Services,Balfour Beatty Living Places Ltd,26/04/2016,,91.57,Other Contracted Services,"391400 - Works - Construction, Repair & Maintenance"
Solihull MBC,Managed Growth,Highways & Transport Services,Balfour Beatty Living Places Ltd,26/04/2016,,57246.57,Contractors,"391400 - Works - Construction, Repair & Maintenance"
Solihull MBC,Managed Growth,Highways & Transport Services,Balfour Beatty Living Places Ltd,26/04/2016,,37150.43,Other Contracted Services,"391400 - Works - Construction, Repair & Maintenance"
Solihull MBC,Managed Growth,Highways & Transport Services,Balfour Beatty Living Places Ltd,26/04/2016,,33904.73,Other Contracted Services,"391400 - Works - Construction, Repair & Maintenance"
Solihull MBC,Managed Growth,Highways & Transport Services,Balfour Beatty Living Places Ltd,26/04/2016,,19228.90,Contractors,"391400 - Works - Construction, Repair & Maintenance"
Solihull MBC,Managed Growth,Highways & Transport Services,Balfour Beatty Living Places Ltd,26/04/2016,,18183.82,Other Contracted Services,"391400 - Works - Construction, Repair & Maintenance"
Solihull MBC,Managed Growth,Highways & Transport Services,Balfour Beatty Living Places Ltd,26/04/2016,,16530.79,Other Contracted Services,"391400 - Works - Construction, Repair & Maintenance"
Solihull MBC,Managed Growth,Highways & Transport Services,Balfour Beatty Living Places Ltd,26/04/2016,,16016.50,Other Contracted Services,"391400 - Works - Construction, Repair & Maintenance"
Solihull MBC,Managed Growth,Highways & Transport Services,Balfour Beatty Living Places Ltd,26/04/2016,,13652.83,Other Contracted Services,"391400 - Works - Construction, Repair & Maintenance"
Solihull MBC,Managed Growth,Highways & Transport Services,Balfour Beatty Living Places Ltd,26/04/2016,,8612.60,Other Contracted Services,"391400 - Works - Construction, Repair & Maintenance"
Solihull MBC,Managed Growth,Highways & Transport Services,Balfour Beatty Living Places Ltd,26/04/2016,,7706.65,Other Contracted Services,"391400 - Works - Construction, Repair & Maintenance"
Solihull MBC,Managed Growth,Highways & Transport Services,Balfour Beatty Living Places Ltd,26/04/2016,,6917.64,Other Contracted Services,"391400 - Works - Construction, Repair & Maintenance"
Solihull MBC,Managed Growth,Highways & Transport Services,Balfour Beatty Living Places Ltd,26/04/2016,,4503.72,Other Contracted Services,"391400 - Works - Construction, Repair & Maintenance"
Solihull MBC,Managed Growth,Highways & Transport Services,Balfour Beatty Living Places Ltd,26/04/2016,,6720.22,Other Contracted Services,"391400 - Works - Construction, Repair & Maintenance"
Solihull MBC,Managed Growth,Highways & Transport Services,Balfour Beatty Living Places Ltd,26/04/2016,,4906.10,Contractors,"391400 - Works - Construction, Repair & Maintenance"
Solihull MBC,Managed Growth,Highways & Transport Services,Balfour Beatty Living Places Ltd,26/04/2016,,4876.49,Other Contracted Services,"391400 - Works - Construction, Repair & Maintenance"
Solihull MBC,Managed Growth,Highways & Transport Services,Balfour Beatty Living Places Ltd,26/04/2016,,4481.90,Other Contracted Services,"391400 - Works - Construction, Repair & Maintenance"
Solihull MBC,Managed Growth,Highways & Transport Services,Balfour Beatty Living Places Ltd,26/04/2016,,4401.13,Other Contracted Services,"391400 - Works - Construction, Repair & Maintenance"
Solihull MBC,Managed Growth,Highways & Transport Services,Balfour Beatty Living Places Ltd,26/04/2016,,4228.60,Other Contracted Services,"391400 - Works - Construction, Repair & Maintenance"
Solihull MBC,Managed Growth,Highways & Transport Services,Balfour Beatty Living Places Ltd,26/04/2016,,4225.79,Contractors,"391400 - Works - Construction, Repair & Maintenance"
Solihull MBC,Managed Growth,Highways & Transport Services,Balfour Beatty Living Places Ltd,26/04/2016,,3544.26,Other Contracted Services,"391400 - Works - Construction, Repair & Maintenance"
Solihull MBC,Managed Growth,Highways & Transport Services,Balfour Beatty Living Places Ltd,26/04/2016,,3166.00,Other Contracted Services,"391400 - Works - Construction, Repair & Maintenance"
Solihull MBC,Managed Growth,Highways & Transport Services,Balfour Beatty Living Places Ltd,26/04/2016,,2929.34,Other Contracted Services,"391400 - Works - Construction, Repair & Maintenance"
Solihull MBC,Managed Growth,Highways & Transport Services,Balfour Beatty Living Places Ltd,26/04/2016,,2619.39,Other Contracted Services,"391400 - Works - Construction, Repair & Maintenance"
Solihull MBC,Managed Growth,Highways & Transport Services,Balfour Beatty Living Places Ltd,26/04/2016,,2552.80,Other Contracted Services,"391400 - Works - Construction, Repair & Maintenance"
Solihull MBC,Managed Growth,Highways & Transport Services,Balfour Beatty Living Places Ltd,26/04/2016,,-95.23,Other Contracted Services,"391400 - Works - Construction, Repair & Maintenance"
Solihull MBC,Managed Growth,Highways & Transport Services,Balfour Beatty Living Places Ltd,26/04/2016,,-95.23,Other Contracted Services,"391400 - Works - Construction, Repair & Maintenance"
Solihull MBC,Managed Growth,Highways & Transport Services,Balfour Beatty Living Places Ltd,26/04/2016,,-209.53,Other Contracted Services,"391400 - Works - Construction, Repair & Maintenance"
Solihull MBC,Managed Growth,Highways & Transport Services,Balfour Beatty Living Places Ltd,26/04/2016,,-95.23,Other Contracted Services,"391400 - Works - Construction, Repair & Maintenance"
Solihull MBC,Managed Growth,Highways & Transport Services,Balfour Beatty Living Places Ltd,26/04/2016,,-95.23,Other Contracted Services,"391400 - Works - Construction, Repair & Maintenance"
Solihull MBC,Managed Growth,Highways & Transport Services,Balfour Beatty Living Places Ltd,26/04/2016,,-93.47,Other Contracted Services,"391400 - Works - Construction, Repair & Maintenance"
Solihull MBC,Managed Growth,Highways & Transport Services,Balfour Beatty Living Places Ltd,26/04/2016,,-93.56,Other Contracted Services,"391400 - Works - Construction, Repair & Maintenance"
Solihull MBC,Managed Growth,Highways & Transport Services,Balfour Beatty Living Places Ltd,26/04/2016,,-95.23,Other Contracted Services,"391400 - Works - Construction, Repair & Maintenance"
Solihull MBC,Managed Growth,Highways & Transport Services,Balfour Beatty Living Places Ltd,26/04/2016,,-95.23,Other Contracted Services,"391400 - Works - Construction, Repair & Maintenance"
Solihull MBC,Managed Growth,Highways & Transport Services,Balfour Beatty Living Places Ltd,26/04/2016,,-95.23,Other Contracted Services,"391400 - Works - Construction, Repair & Maintenance"
Solihull MBC,Children's Services - DSG Central.,Children & Education Services,Balsall Common Primary School,07/04/2016,,49687.00,Other Contracted Services,Not Yet Classified
Solihull MBC,Children's Services - DSG Central.,Children & Education Services,Balsall Common Primary School,07/04/2016,,262.00,Other Contracted Services,Not Yet Classified
Solihull MBC,Children's Services - DSG Central.,Children & Education Services,Balsall Common Primary School,07/04/2016,,1680.00,Grant & Subscription (SCITT),Not Yet Classified
Solihull MBC,Children's Services - DSG Central.,Children & Education Services,Balsall Common Primary School,04/04/2016,,486.80,IT Equipment & Software,Not Yet Classified
Solihull MBC,Resources - Non Monitored,Precepts Paid to Parish Councils,Balsall Parish Council,07/04/2016,,50593.35,Parish Precepts,Not Yet Classified
Solihull MBC,Managed Growth,Environmental and Regulatory Services,Bannocks Solihull,22/04/2016,,349.00,Materials,120000 - Cemetery & Crematorium 
Solihull MBC,Managed Growth,Environmental and Regulatory Services,Bannocks Solihull,25/04/2016,,349.00,Materials,120000 - Cemetery & Crematorium 
Solihull MBC,Managed Growth,Highways & Transport Services,Barbour Logic Limited,04/04/2016,,8250.00,Furniture & Equipment,Not Yet Classified
Solihull MBC,Communities & Adult Social Care,Adult Social Care,Barchester Healthcare Homes Ltd,14/04/2016,,5564.68,ASC - Residential Care Permanent,321000 - Social Community Care Supplies & Services - Adult
Solihull MBC,Managed Growth,Environmental and Regulatory Services,Barclays,11/04/2016,,171.65,Other Fees,Not Yet Classified
Solihull MBC,Managed Growth,Environmental and Regulatory Services,Barclays,11/04/2016,,0.15,Other Fees,Not Yet Classified
Solihull MBC,Managed Growth,Environmental and Regulatory Services,Barclays,11/04/2016,,50.00,Other Fees,Not Yet Classified
Solihull MBC,Communities & Adult Social Care,Cultural & Related Services,Barclays,11/04/2016,,41.62,Other Fees,Not Yet Classified
Solihull MBC,Communities & Adult Social Care,Cultural & Related Services,Barclays,11/04/2016,,25.00,Other Fees,Not Yet Classified
Solihull MBC,Resources,Central Services to the Public,Barclays,11/04/2016,,4567.45,Other Fees,Not Yet Classified
Solihull MBC,Resources,Central Services to the Public,Barclays,11/04/2016,,11.90,Other Fees,Not Yet Classified
Solihull MBC,Communities & Adult Social Care,Cultural & Related Services,Barclays,11/04/2016,,310.18,Other Fees,Not Yet Classified
Solihull MBC,Communities & Adult Social Care,Cultural & Related Services,Barclays,11/04/2016,,124.21,Other Fees,Not Yet Classified
Solihull MBC,Communities & Adult Social Care,Cultural & Related Services,Barclays,11/04/2016,,278.29,Other Fees,Not Yet Classified
Solihull MBC,Communities & Adult Social Care,Cultural & Related Services,Barclays,11/04/2016,,0.52,Other Fees,Not Yet Classified
Solihull MBC,Communities & Adult Social Care,Cultural & Related Services,Barclays,11/04/2016,,30.00,Other Fees,Not Yet Classified
Solihull MBC,Communities & Adult Social Care,Cultural & Related Services,Barclays,11/04/2016,,134.58,Other Fees,Not Yet Classified
Solihull MBC,Communities & Adult Social Care,Cultural & Related Services,Barclays,11/04/2016,,25.00,Other Fees,Not Yet Classified
Solihull MBC,Children's Services & Skills,Children & Education Services,Barnardos Midlands,04/04/2016,,2803.73,External Fostering,321100 - Social Community Care Supplies & Services - Children
Solihull MBC,Children's Services & Skills,Children & Education Services,Barnardos Midlands,04/04/2016,,2803.73,External Fostering,321100 - Social Community Care Supplies & Services - Children
Solihull MBC,Children's Services & Skills,Children & Education Services,Barnardos Midlands,04/04/2016,,3294.86,External Fostering,321100 - Social Community Care Supplies & Services - Children
Solihull MBC,Children's Services & Skills,Children & Education Services,Barnardos Midlands,04/04/2016,,3427.72,External Fostering,321100 - Social Community Care Supplies & Services - Children
Solihull MBC,Managed Growth,Planning & Development Services,Barneveld Consultants,28/04/2016,,844.94,Professional Fees,150000 - Consultancy
Solihull MBC,Children's Services - DSG Central.,Children & Education Services,Barnhouse Nursey T/A Daycare At St Martins,11/04/2016,,1890.00,Grant & Subscription (SCITT),321100 - Social Community Care Supplies & Services - Children
Solihull MBC,Resources - Non Monitored,Precepts Paid to Parish Councils,Barston Parish Council,07/04/2016,,3493.50,Parish Precepts,Not Yet Classified
Solihull MBC,Communities & Adult Social Care,Adult Social Care,BCOP,21/04/2016,,2052.32,ASC - Residential Care Permanent,Not Yet Classified
Solihull MBC,Communities & Adult Social Care,Adult Social Care,BCOP,14/04/2016,,513.08,ASC - Residential Care Respite,Not Yet Classified
Solihull MBC,Communities & Adult Social Care,Adult Social Care,BCOP,14/04/2016,,2052.32,ASC - Residential Care Respite,Not Yet Classified
Solihull MBC,Communities & Adult Social Care,Adult Social Care,BCOP,14/04/2016,,2052.32,ASC - Residential Care Permanent,Not Yet Classified
Solihull MBC,Communities & Adult Social Care,Adult Social Care,BCOP,14/04/2016,,2052.32,ASC - Residential Care Permanent,Not Yet Classified
Solihull MBC,Communities & Adult Social Care,Adult Social Care,BCOP,14/04/2016,,1099.47,ASC - Residential Care Permanent,Not Yet Classified
Solihull MBC,Communities & Adult Social Care,Adult Social Care,BCOP,14/04/2016,,732.97,ASC - Residential Care Permanent,Not Yet Classified
Solihull MBC,Communities & Adult Social Care,Adult Social Care,BCOP,14/04/2016,,2052.32,ASC - Residential Care Permanent,Not Yet Classified
Solihull MBC,Communities & Adult Social Care,Adult Social Care,BCOP,14/04/2016,,2052.32,ASC - Residential Care Permanent,Not Yet Classified
Solihull MBC,Communities & Adult Social Care,Adult Social Care,BCOP,14/04/2016,,2052.12,ASC - Residential Care Respite,Not Yet Classified
Solihull MBC,Children's Services - DSG Schools - Non DMT,Children & Education Services,Beanstalk,13/04/2016,,1097.00,Capitation,Not Yet Classified
Solihull MBC,Communities & Adult Social Care,Adult Social Care,Beechcroft Residential Home,04/04/2016,,1520.00,ASC - Residential Care Permanent,321000 - Social Community Care Supplies & Services - Adult
Solihull MBC,Communities & Adult Social Care,Adult Social Care,Beechcroft Residential Home,04/04/2016,,1520.00,ASC - Residential Care Permanent,321000 - Social Community Care Supplies & Services - Adult
Solihull MBC,Communities & Adult Social Care,Adult Social Care,Beechcroft Residential Home,11/04/2016,,1520.00,ASC - Residential Care Permanent,321000 - Social Community Care Supplies & Services - Adult
Solihull MBC,Communities & Adult Social Care,Adult Social Care,Beechcroft Residential Home,04/04/2016,,1520.00,ASC - Residential Care Permanent,321000 - Social Community Care Supplies & Services - Adult
Solihull MBC,Children's Services - DSG Central.,Children & Education Services,Beechwood Childcare,11/04/2016,,2268.00,Grant & Subscription (SCITT),321100 - Social Community Care Supplies & Services - Children
Solihull MBC,Children's Services - DSG Central.,Children & Education Services,Beechwood Childcare,11/04/2016,,1512.00,Grant & Subscription (SCITT),321100 - Social Community Care Supplies & Services - Children
Solihull MBC,Children's Services - DSG Central.,Children & Education Services,Beechwood Childcare,11/04/2016,,1134.00,Grant & Subscription (SCITT),321100 - Social Community Care Supplies & Services - Children
Solihull MBC,Children's Services - DSG Central.,Children & Education Services,Beechwood Childcare,11/04/2016,,2116.80,Grant & Subscription (SCITT),321100 - Social Community Care Supplies & Services - Children
Solihull MBC,Children's Services - DSG Central.,Children & Education Services,Beechwood Childcare,11/04/2016,,6652.80,Grant & Subscription (SCITT),321100 - Social Community Care Supplies & Services - Children
Solihull MBC,Communities & Adult Social Care,Adult Social Care,Ben Motors And Allied Trades Ben Fund,07/04/2016,,3820.00,ASC - Nursing Care Permanent,Not Yet Classified
Solihull MBC,Children's Services - DSG Central.,Children & Education Services,Bentley Heath Ce Primary School Fund,04/04/2016,,399.80,IT Equipment & Software,Not Yet Classified
Solihull MBC,Children's Services - DSG Central.,Children & Education Services,Bentley Heath Primary School Ac,07/04/2016,,262.35,Other Contracted Services,Not Yet Classified
Solihull MBC,Children's Services - DSG Central.,Children & Education Services,Bentley Heath Primary School Ac,07/04/2016,,26912.00,Other Contracted Services,Not Yet Classified
Solihull MBC,Resources - Non Monitored,Precepts Paid to Parish Councils,Berkswell Parish Council,07/04/2016,,25294.00,Parish Precepts,Not Yet Classified
Solihull MBC,Children's Services - DSG Central.,Children & Education Services,Berkswell Pre School Group,11/04/2016,,3074.40,Grant & Subscription (SCITT),Not Yet Classified
Solihull MBC,Children's Services - DSG Central.,Children & Education Services,Berkswell Pre School Group,11/04/2016,,302.40,Grant & Subscription (SCITT),Not Yet Classified
Solihull MBC,Public Health & Commissioning,Adult Social Care,Bernays And Whitehouse,22/04/2016,,2487.83,Other Contracted Services,Not Yet Classified
Solihull MBC,Public Health & Commissioning,Adult Social Care,Bernays And Whitehouse,22/04/2016,,2625.00,Other Contracted Services,Not Yet Classified
Solihull MBC,Communities & Adult Social Care,Adult Social Care,BES Rehab Ltd,29/04/2016,,1199.20,Furniture & Equipment,Not Yet Classified
Solihull MBC,Children's Services - DSG Schools - Non DMT,Children & Education Services,Best 4 Business Communications Ltd,27/04/2016,,275.00,Telephones,Not Yet Classified
Solihull MBC,Children's Services - DSG Central.,Children & Education Services,Beverley Phillips,11/04/2016,,756.00,Grant & Subscription (SCITT),Not Yet Classified
Solihull MBC,Resources - Non Monitored,Precepts Paid to Parish Councils,Bickenhill And Marston Green Parish Council,07/04/2016,,72694.00,Parish Precepts,Not Yet Classified
Solihull MBC,Resources,Adult Social Care,Big Blue Experience Ltd,01/04/2016,,1500.00,Training,Not Yet Classified
Solihull MBC,Children's Services - DSG Central.,Children & Education Services,Billy Bears Nursery,11/04/2016,,8618.40,Grant & Subscription (SCITT),321100 - Social Community Care Supplies & Services - Children
Solihull MBC,Children's Services - DSG Central.,Children & Education Services,Billy Bears Nursery,11/04/2016,,1512.00,Grant & Subscription (SCITT),321100 - Social Community Care Supplies & Services - Children
Solihull MBC,Children's Services & Skills,Children & Education Services,Bioclinics,19/04/2016,,375.00,Professional Fees,Not Yet Classified
Solihull MBC,Children's Services & Skills,Children & Education Services,Bioclinics,25/04/2016,,415.00,Professional Fees,Not Yet Classified
Solihull MBC,Children's Services & Skills,Children & Education Services,Bioclinics,15/04/2016,,645.00,Clients Expenses,Not Yet Classified
Solihull MBC,Communities & Adult Social Care,Adult Social Care,Bionicare,21/04/2016,,4768.00,ASC - Domiciliary Care,321000 - Social Community Care Supplies & Services - Adult
Solihull MBC,Public Health & Commissioning,Adult Social Care,Birmingham And Solihull Mental Health Trust,05/04/2016,,49605.88,Other Contracted Services,Not Yet Classified
Solihull MBC,Children's Services - DSG Schools - Non DMT,Children & Education Services,Birmingham Botanical Gardens,27/04/2016,,363.00,Visits & Pupil Activities,171100 - Education - Supplies
Solihull MBC,Resources,Central Services to the Public,Birmingham City Council,28/04/2016,,2360854.00,Parish Precepts,Not Yet Classified
Solihull MBC,Children's Services - DSG Central.,Children & Education Services,Birmingham City Council,27/04/2016,,-3522.05,Other Contracted Services,Not Yet Classified
Solihull MBC,Children's Services - DSG Central.,Children & Education Services,Birmingham City Council,27/04/2016,,3670.03,Other Contracted Services,Not Yet Classified
Solihull MBC,Children's Services - DSG Central.,Children & Education Services,Birmingham City Council,27/04/2016,,3522.05,Other Contracted Services,Not Yet Classified
Solihull MBC,Resources,Central Services to the Public,Birmingham City Council,27/04/2016,,6090.75,Short Term Provisions - Other,Not Yet Classified
Solihull MBC,Resources,Planning & Development Services,Birmingham City Council,07/04/2016,,10997.35,General Creditors,Not Yet Classified
Solihull MBC,Resources,Planning & Development Services,Birmingham City Council,07/04/2016,,10997.35,General Creditors,Not Yet Classified
Solihull MBC,Children's Services - DSG Central.,Children & Education Services,Birmingham City Council,15/04/2016,,1022.80,Materials,Not Yet Classified
Solihull MBC,Children's Services - DSG Central.,Children & Education Services,Birmingham City Council,14/04/2016,,3206.00,Other Contracted Services,Not Yet Classified
Solihull MBC,Children's Services - DSG Central.,Children & Education Services,Birmingham City Council,14/04/2016,,246.00,Other Contracted Services,Not Yet Classified
Solihull MBC,Children's Services - DSG Central.,Children & Education Services,Birmingham City Council,14/04/2016,,3206.00,Other Contracted Services,Not Yet Classified
Solihull MBC,Children's Services - DSG Central.,Children & Education Services,Birmingham City Council,14/04/2016,,246.00,Other Contracted Services,Not Yet Classified
Solihull MBC,Children's Services - DSG Central.,Children & Education Services,Birmingham City Council,14/04/2016,,3561.00,Other Contracted Services,Not Yet Classified
Solihull MBC,Children's Services - DSG Central.,Children & Education Services,Birmingham City Council,14/04/2016,,4656.69,Other Contracted Services,Not Yet Classified
Solihull MBC,Children's Services - DSG Central.,Children & Education Services,Birmingham City Council,14/04/2016,,3945.00,Other Contracted Services,Not Yet Classified
Solihull MBC,Children's Services - DSG Central.,Children & Education Services,Birmingham City Council,14/04/2016,,3945.00,Other Contracted Services,Not Yet Classified
Solihull MBC,Children's Services & Skills,Children & Education Services,Birmingham City Council,13/04/2016,,665.00,Other Fees,Not Yet Classified
Solihull MBC,Resources,Central Services to the Public,Birmingham City Council,22/04/2016,,700.00,Grant & Subscription (SCITT),Not Yet Classified
Solihull MBC,Children's Services & Skills,Children & Education Services,Birmingham City Council,21/04/2016,,14759.21,External Fostering,Not Yet Classified
Solihull MBC,Resources,Central Services to the Public,Birmingham City Council Shared Services,15/04/2016,,5818.53,Postage & Courier Services,Not Yet Classified
Solihull MBC,Resources,Central Services to the Public,Birmingham City Council Shared Services,15/04/2016,,6470.99,Postage & Courier Services,Not Yet Classified
Solihull MBC,Communities & Adult Social Care,Adult Social Care,Birmingham City University,05/04/2016,,550.00,Training,171011 - Education - School Services
Solihull MBC,Communities & Adult Social Care,Adult Social Care,Birmingham City University,05/04/2016,,550.00,Training,171011 - Education - School Services
Solihull MBC,Communities & Adult Social Care,Adult Social Care,Birmingham City University,05/04/2016,,550.00,Training,171011 - Education - School Services
Solihull MBC,Communities & Adult Social Care,Adult Social Care,Birmingham City University,05/04/2016,,550.00,Training,171011 - Education - School Services
Solihull MBC,Communities & Adult Social Care,Adult Social Care,Birmingham City University,05/04/2016,,550.00,Training,171011 - Education - School Services
Solihull MBC,Children's Services - DSG Schools - Non DMT,Children & Education Services,Birmingham Diocese Board,19/04/2016,,750.00,Professional Fees,Not Yet Classified
Solihull MBC,Managed Growth,Planning & Development Services,Birmingham Dogs Home,22/04/2016,,400.00,Other Fees,Not Yet Classified
Solihull MBC,Managed Growth,Highways & Transport Services,Birmingham Electrical Training Ltd,20/04/2016,,425.00,Training,Not Yet Classified
Solihull MBC,Communities & Adult Social Care,Adult Social Care,Birmingham Focus,18/04/2016,,2200.00,ASC - Day Care,321000 - Social Community Care Supplies & Services - Adult
Solihull MBC,Communities & Adult Social Care,Adult Social Care,Birmingham Focus,18/04/2016,,891.00,ASC - Day Care,321000 - Social Community Care Supplies & Services - Adult
Solihull MBC,Children's Services - DSG Schools - Non DMT,Children & Education Services,Birmingham International Coaches Ltd,25/04/2016,,580.00,Visits & Pupil Activities,171011 - Education - School Services
Solihull MBC,Children's Services - DSG Schools - Non DMT,Children & Education Services,Birmingham International Coaches Ltd,19/04/2016,,270.00,Visits & Pupil Activities,171011 - Education - School Services
Solihull MBC,Children's Services - DSG Schools - Non DMT,Children & Education Services,Birmingham International Coaches Ltd,29/04/2016,,295.00,Visits & Pupil Activities,171011 - Education - School Services
Solihull MBC,Children's Services - DSG Schools - Non DMT,Children & Education Services,Birmingham Metropolitan Colleg,25/04/2016,,2642.00,Visits & Pupil Activities,Not Yet Classified
Solihull MBC,Children's Services & Skills,Children & Education Services,Birmingham Multicare,20/04/2016,,502.13,Clients Expenses,321100 - Social Community Care Supplies & Services - Children
Solihull MBC,Children's Services - DSG Schools - Non DMT,Children & Education Services,Birmingham Museums Trust,12/04/2016,,616.00,Visits & Pupil Activities,Not Yet Classified
Solihull MBC,Children's Services - DSG Schools - Non DMT,Children & Education Services,Birmingham Museums Trust,22/04/2016,,406.00,Visits & Pupil Activities,Not Yet Classified
Solihull MBC,Communities & Adult Social Care,Adult Social Care,BJCC,06/04/2016,,2456.32,ASC - Residential Care Permanent,Not Yet Classified
Solihull MBC,Children's Services - DSG Schools - Non DMT,Children & Education Services,Blackwell Adventure,22/04/2016,,1816.34,Visits & Pupil Activities,321100 - Social Community Care Supplies & Services - Children
Solihull MBC,Communities & Adult Social Care,Cultural & Related Services,Blast From The Past C/O Mr C M Green,04/04/2016,,550.00,General Receipts In Advance,Not Yet Classified
Solihull MBC,Children's Services - DSG Central.,Children & Education Services,Blossoms Pre-School Limited,11/04/2016,,1512.00,Grant & Subscription (SCITT),Not Yet Classified
Solihull MBC,Children's Services - DSG Central.,Children & Education Services,Blossoms Pre-School Limited,11/04/2016,,756.00,Grant & Subscription (SCITT),Not Yet Classified
Solihull MBC,Children's Services - DSG Central.,Children & Education Services,Blue River Academy,21/04/2016,,2808.00,Other Contracted Services,Not Yet Classified
Solihull MBC,Communities & Adult Social Care,Adult Social Care,Bluebird Care (Solihull),14/04/2016,,634.20,ASC - Home Care Support Services,Not Yet Classified
Solihull MBC,Resources,Central Services to the Public,Bolt Burden Kemp,27/04/2016,,10000.00,Liability Insurance,Not Yet Classified
Solihull MBC,Communities & Adult Social Care,Adult Social Care,Bondcare St Andrews Ltd,01/04/2016,,2041.04,ASC - Nursing Care Permanent,Not Yet Classified
Solihull MBC,Communities & Adult Social Care,Adult Social Care,Bondcare St Andrews Ltd,01/04/2016,,2041.04,ASC - Nursing Care Permanent,Not Yet Classified
Solihull MBC,Communities & Adult Social Care,Adult Social Care,Bondcare St Andrews Ltd,01/04/2016,,2041.04,ASC - Nursing Care Permanent,Not Yet Classified
Solihull MBC,Communities & Adult Social Care,Adult Social Care,Bondcare St Andrews Ltd,01/04/2016,,2041.04,ASC - Nursing Care Permanent,Not Yet Classified
Solihull MBC,Communities & Adult Social Care,Adult Social Care,Bondcare St Andrews Ltd,01/04/2016,,2041.04,ASC - Nursing Care Permanent,Not Yet Classified
Solihull MBC,Communities & Adult Social Care,Adult Social Care,Bondcare St Andrews Ltd,01/04/2016,,2041.04,ASC - Nursing Care Permanent,Not Yet Classified
Solihull MBC,Resources,Central Services to the Public,Bonds Worldwide Express Ltd,11/04/2016,,367.50,Postage & Courier Services,Not Yet Classified
Solihull MBC,Children's Services - DSG Schools - Non DMT,Children & Education Services,Bookpoint Ltd,20/04/2016,,259.50,Capitation,171100 - Education - Supplies
Solihull MBC,Children's Services - DSG Schools - Non DMT,Children & Education Services,Bookpoint Ltd,26/04/2016,,324.00,Capitation,171100 - Education - Supplies
Solihull MBC,Children's Services - DSG Schools - Non DMT,Children & Education Services,Booster Cushion Theatre,20/04/2016,,310.00,Visits & Pupil Activities,Not Yet Classified
Solihull MBC,Children's Services - DSG Schools - Non DMT,Children & Education Services,Booster Cushion Theatre,20/04/2016,,310.00,Visits & Pupil Activities,Not Yet Classified
Solihull MBC,Public Health & Commissioning,Adult Social Care,Boots The Chemist,13/04/2016,,197.70,Other Contracted Services,Not Yet Classified
Solihull MBC,Public Health & Commissioning,Adult Social Care,Boots The Chemist,13/04/2016,,12.21,Other Contracted Services,Not Yet Classified
Solihull MBC,Public Health & Commissioning,Adult Social Care,Boots The Chemist,13/04/2016,,273.87,Other Contracted Services,Not Yet Classified
Solihull MBC,Public Health & Commissioning,Adult Social Care,Boots The Chemist,13/04/2016,,17.71,Other Contracted Services,Not Yet Classified
Solihull MBC,Public Health & Commissioning,Adult Social Care,Boots The Chemist,13/04/2016,,5.50,Other Contracted Services,Not Yet Classified
Solihull MBC,Public Health & Commissioning,Adult Social Care,Boots The Chemist,15/04/2016,,135.00,Other Contracted Services,Not Yet Classified
Solihull MBC,Public Health & Commissioning,Adult Social Care,Boots The Chemist,15/04/2016,,241.31,Other Contracted Services,Not Yet Classified
Solihull MBC,Public Health & Commissioning,Adult Social Care,Boots The Chemist,15/04/2016,,186.16,Other Contracted Services,Not Yet Classified
Solihull MBC,Public Health & Commissioning,Adult Social Care,Boots The Chemist,15/04/2016,,286.35,Other Contracted Services,Not Yet Classified
Solihull MBC,Public Health & Commissioning,Adult Social Care,Boots The Chemist,15/04/2016,,329.67,Other Contracted Services,Not Yet Classified
Solihull MBC,Public Health & Commissioning,Adult Social Care,Boots The Chemist,15/04/2016,,36.77,Other Contracted Services,Not Yet Classified
Solihull MBC,Public Health & Commissioning,Adult Social Care,Boots The Chemist,15/04/2016,,219.00,Other Contracted Services,Not Yet Classified
Solihull MBC,Public Health & Commissioning,Adult Social Care,Boots The Chemist,15/04/2016,,280.83,Other Contracted Services,Not Yet Classified
Solihull MBC,Public Health & Commissioning,Adult Social Care,Boots The Chemist,15/04/2016,,51.40,Other Contracted Services,Not Yet Classified
Solihull MBC,Public Health & Commissioning,Adult Social Care,Boots The Chemist,13/04/2016,,273.87,Other Contracted Services,Not Yet Classified
Solihull MBC,Public Health & Commissioning,Adult Social Care,Boots The Chemist,13/04/2016,,317.46,Other Contracted Services,Not Yet Classified
Solihull MBC,Public Health & Commissioning,Adult Social Care,Boots The Chemist,13/04/2016,,143.00,Other Contracted Services,Not Yet Classified
Solihull MBC,Public Health & Commissioning,Adult Social Care,Boots The Chemist,13/04/2016,,300.11,Other Contracted Services,Not Yet Classified
Solihull MBC,Public Health & Commissioning,Adult Social Care,Boots The Chemist,13/04/2016,,151.33,Other Contracted Services,Not Yet Classified
Solihull MBC,Public Health & Commissioning,Adult Social Care,Boots The Chemist,13/04/2016,,284.61,Other Contracted Services,Not Yet Classified
Solihull MBC,Public Health & Commissioning,Adult Social Care,Boots The Chemist,13/04/2016,,-17.71,Other Contracted Services,Not Yet Classified
Solihull MBC,Public Health & Commissioning,Adult Social Care,Boots The Chemist,13/04/2016,,-197.70,Other Contracted Services,Not Yet Classified
Solihull MBC,Public Health & Commissioning,Adult Social Care,Boots The Chemist,13/04/2016,,-273.87,Other Contracted Services,Not Yet Classified
Solihull MBC,Public Health & Commissioning,Adult Social Care,Boots The Chemist,13/04/2016,,197.70,Other Contracted Services,Not Yet Classified
Solihull MBC,Resources,Other Housing Services,Borshch Electric,13/04/2016,,300.00,Clients Expenses,110000 - Catering
Solihull MBC,Resources,Other Housing Services,Borshch Electric,01/04/2016,,304.17,Clients Expenses,110000 - Catering
Solihull MBC,Resources,Other Housing Services,Borshch Electric,13/04/2016,,279.17,Clients Expenses,110000 - Catering
Solihull MBC,Resources,Other Housing Services,Borshch Electric,13/04/2016,,441.67,Clients Expenses,110000 - Catering
Solihull MBC,Resources,Other Housing Services,Borshch Electric,13/04/2016,,279.17,Clients Expenses,110000 - Catering
Solihull MBC,Resources,Other Housing Services,Borshch Electric,07/04/2016,,300.00,Clients Expenses,110000 - Catering
Solihull MBC,Resources,Other Housing Services,Borshch Electric,20/04/2016,,508.33,Clients Expenses,110000 - Catering
Solihull MBC,Resources,Other Housing Services,Borshch Electric,20/04/2016,,279.17,Clients Expenses,110000 - Catering
Solihull MBC,Resources,Other Housing Services,Borshch Electric,20/04/2016,,279.17,Clients Expenses,110000 - Catering
Solihull MBC,Resources,Other Housing Services,Borshch Electric,20/04/2016,,316.67,Clients Expenses,110000 - Catering
Solihull MBC,Resources,Other Housing Services,Borshch Electric,29/04/2016,,441.67,Clients Expenses,110000 - Catering
Solihull MBC,Public Health & Commissioning,Adult Social Care,Bosworth Medical Centre,27/04/2016,,1639.28,Other Contracted Services,Not Yet Classified
Solihull MBC,Children's Services - DSG Central.,Children & Education Services,Bosworth Wood Neighbourhood Nursery-Lawnswood,11/04/2016,,1260.00,Grant & Subscription (SCITT),321100 - Social Community Care Supplies & Services - Children
Solihull MBC,Children's Services - DSG Central.,Children & Education Services,Bosworth Wood Neighbourhood Nursery-Lawnswood,14/04/2016,,10206.00,Grant & Subscription (SCITT),321100 - Social Community Care Supplies & Services - Children
Solihull MBC,Children's Services - DSG Schools - Non DMT,Children & Education Services,Bouden Coach Travel,15/04/2016,Card Transaction,412.00,Visits & Pupil Activities,361300 - Public Transport - Passenger Transport
Solihull MBC,Children's Services - DSG Schools - Non DMT,Children & Education Services,Bouden Coach Travel,15/04/2016,Card Transaction,721.00,Visits & Pupil Activities,361300 - Public Transport - Passenger Transport
Solihull MBC,Resources,Children & Education Services,Bournemouth University,04/04/2016,,497.50,Training,Not Yet Classified
Solihull MBC,Resources,Adult Social Care,Bournemouth University,04/04/2016,,497.50,Training,Not Yet Classified
Solihull MBC,Resources,Adult Social Care,Bournemouth University,04/04/2016,,2922.50,Training,Not Yet Classified
Solihull MBC,Resources,Children & Education Services,Bournemouth University,04/04/2016,,2922.50,Training,Not Yet Classified
Solihull MBC,Children's Services - DSG Schools - Non DMT,Children & Education Services,Brainwaves,26/04/2016,,337.50,Stationery,171100 - Education - Supplies
Solihull MBC,Resources,Children & Education Services,Brake Bros Foodservice Ltd,29/04/2016,,356.93,Catering Provisions,110000 - Catering
Solihull MBC,Resources,Children & Education Services,Brake Bros Foodservice Ltd,29/04/2016,,373.67,Catering Provisions,110000 - Catering
Solihull MBC,Resources,Children & Education Services,Brake Bros Foodservice Ltd,29/04/2016,,362.38,Catering Provisions,110000 - Catering
Solihull MBC,Resources,Children & Education Services,Brake Bros Foodservice Ltd,29/04/2016,,397.32,Catering Provisions,110000 - Catering
Solihull MBC,Resources,Children & Education Services,Brake Bros Foodservice Ltd,29/04/2016,,357.93,Catering Provisions,110000 - Catering
Solihull MBC,Resources,Children & Education Services,Brake Bros Foodservice Ltd,29/04/2016,,302.81,Catering Provisions,110000 - Catering
Solihull MBC,Resources,Children & Education Services,Brake Bros Foodservice Ltd,29/04/2016,,361.24,Catering Provisions,110000 - Catering
Solihull MBC,Resources,Children & Education Services,Brake Bros Foodservice Ltd,29/04/2016,,372.51,Catering Provisions,110000 - Catering
Solihull MBC,Resources,Children & Education Services,Brake Bros Foodservice Ltd,29/04/2016,,320.17,Catering Provisions,110000 - Catering
Solihull MBC,Resources,Children & Education Services,Brake Bros Foodservice Ltd,29/04/2016,,333.99,Catering Provisions,110000 - Catering
Solihull MBC,Resources,Children & Education Services,Brake Bros Foodservice Ltd,29/04/2016,,328.74,Catering Provisions,110000 - Catering
Solihull MBC,Resources,Children & Education Services,Brake Bros Foodservice Ltd,29/04/2016,,293.70,Catering Provisions,110000 - Catering
Solihull MBC,Resources,Children & Education Services,Brake Bros Foodservice Ltd,29/04/2016,,366.48,Catering Provisions,110000 - Catering
Solihull MBC,Resources,Children & Education Services,Brake Bros Foodservice Ltd,29/04/2016,,324.62,Catering Provisions,110000 - Catering
Solihull MBC,Resources,Children & Education Services,Brake Bros Foodservice Ltd,29/04/2016,,141.64,Catering Provisions,110000 - Catering
Solihull MBC,Resources,Children & Education Services,Brake Bros Foodservice Ltd,29/04/2016,,170.07,Catering Provisions,110000 - Catering
Solihull MBC,Resources,Children & Education Services,Brake Bros Foodservice Ltd,29/04/2016,,162.59,Catering Provisions,110000 - Catering
Solihull MBC,Resources,Children & Education Services,Brake Bros Foodservice Ltd,29/04/2016,,158.44,Catering Provisions,110000 - Catering
Solihull MBC,Resources,Children & Education Services,Brake Bros Foodservice Ltd,29/04/2016,,156.05,Catering Provisions,110000 - Catering
Solihull MBC,Resources,Children & Education Services,Brake Bros Foodservice Ltd,29/04/2016,,149.54,Catering Provisions,110000 - Catering
Solihull MBC,Resources,Children & Education Services,Brake Bros Foodservice Ltd,29/04/2016,,144.67,Catering Provisions,110000 - Catering
Solihull MBC,Resources,Children & Education Services,Brake Bros Foodservice Ltd,29/04/2016,,102.01,Catering Provisions,110000 - Catering
Solihull MBC,Resources,Children & Education Services,Brake Bros Foodservice Ltd,29/04/2016,,138.50,Catering Provisions,110000 - Catering
Solihull MBC,Resources,Children & Education Services,Brake Bros Foodservice Ltd,29/04/2016,,138.15,Catering Provisions,110000 - Catering
Solihull MBC,Resources,Children & Education Services,Brake Bros Foodservice Ltd,29/04/2016,,130.13,Catering Provisions,110000 - Catering
Solihull MBC,Resources,Children & Education Services,Brake Bros Foodservice Ltd,29/04/2016,,88.16,Catering Provisions,110000 - Catering
Solihull MBC,Resources,Children & Education Services,Brake Bros Foodservice Ltd,29/04/2016,,124.53,Catering Provisions,110000 - Catering
Solihull MBC,Resources,Children & Education Services,Brake Bros Foodservice Ltd,29/04/2016,,99.53,Catering Provisions,110000 - Catering
Solihull MBC,Resources,Children & Education Services,Brake Bros Foodservice Ltd,29/04/2016,,118.30,Catering Provisions,110000 - Catering
Solihull MBC,Resources,Children & Education Services,Brake Bros Foodservice Ltd,29/04/2016,,116.19,Catering Provisions,110000 - Catering
Solihull MBC,Resources,Children & Education Services,Brake Bros Foodservice Ltd,29/04/2016,,98.17,Catering Provisions,110000 - Catering
Solihull MBC,Resources,Children & Education Services,Brake Bros Foodservice Ltd,29/04/2016,,90.99,Catering Provisions,110000 - Catering
Solihull MBC,Resources,Children & Education Services,Brake Bros Foodservice Ltd,29/04/2016,,84.11,Catering Provisions,110000 - Catering
Solihull MBC,Resources,Children & Education Services,Brake Bros Foodservice Ltd,29/04/2016,,82.65,Catering Provisions,110000 - Catering
Solihull MBC,Resources,Children & Education Services,Brake Bros Foodservice Ltd,29/04/2016,,76.59,Catering Provisions,110000 - Catering
Solihull MBC,Resources,Children & Education Services,Brake Bros Foodservice Ltd,29/04/2016,,60.44,Catering Provisions,110000 - Catering
Solihull MBC,Resources,Children & Education Services,Brake Bros Foodservice Ltd,29/04/2016,,44.17,Catering Provisions,110000 - Catering
Solihull MBC,Resources,Children & Education Services,Brake Bros Foodservice Ltd,29/04/2016,,51.81,Catering Provisions,110000 - Catering
Solihull MBC,Resources,Children & Education Services,Brake Bros Foodservice Ltd,29/04/2016,,51.00,Catering Provisions,110000 - Catering
Solihull MBC,Resources,Children & Education Services,Brake Bros Foodservice Ltd,29/04/2016,,35.22,Catering Provisions,110000 - Catering
Solihull MBC,Resources,Children & Education Services,Brake Bros Foodservice Ltd,29/04/2016,,25.65,Catering Provisions,110000 - Catering
Solihull MBC,Resources,Children & Education Services,Brake Bros Foodservice Ltd,29/04/2016,,24.88,Catering Provisions,110000 - Catering
Solihull MBC,Resources,Children & Education Services,Brake Bros Foodservice Ltd,29/04/2016,,13.76,Catering Provisions,110000 - Catering
Solihull MBC,Resources,Children & Education Services,Brake Bros Foodservice Ltd,29/04/2016,,9.69,Catering Provisions,110000 - Catering
Solihull MBC,Resources,Children & Education Services,Brake Bros Foodservice Ltd,29/04/2016,,30.63,Catering Provisions,110000 - Catering
Solihull MBC,Resources,Children & Education Services,Brake Bros Foodservice Ltd,29/04/2016,,6.15,Catering Provisions,110000 - Catering
Solihull MBC,Resources,Children & Education Services,Brake Bros Foodservice Ltd,29/04/2016,,61.26,Catering Provisions,110000 - Catering
Solihull MBC,Resources,Children & Education Services,Brake Bros Foodservice Ltd,29/04/2016,,30.63,Catering Provisions,110000 - Catering
Solihull MBC,Resources,Children & Education Services,Brake Bros Foodservice Ltd,29/04/2016,,45.28,Catering Provisions,110000 - Catering
Solihull MBC,Resources,Children & Education Services,Brake Bros Foodservice Ltd,29/04/2016,,30.63,Catering Provisions,110000 - Catering
Solihull MBC,Resources,Children & Education Services,Brake Bros Foodservice Ltd,29/04/2016,,30.63,Catering Provisions,110000 - Catering
Solihull MBC,Resources,Children & Education Services,Brake Bros Foodservice Ltd,29/04/2016,,30.63,Catering Provisions,110000 - Catering
Solihull MBC,Resources,Children & Education Services,Brake Bros Foodservice Ltd,29/04/2016,,122.52,Catering Provisions,110000 - Catering
Solihull MBC,Resources,Children & Education Services,Brake Bros Foodservice Ltd,29/04/2016,,10.26,Catering Provisions,110000 - Catering
Solihull MBC,Resources,Children & Education Services,Brake Bros Foodservice Ltd,29/04/2016,,30.63,Catering Provisions,110000 - Catering
Solihull MBC,Resources,Children & Education Services,Brake Bros Foodservice Ltd,29/04/2016,,30.63,Catering Provisions,110000 - Catering
Solihull MBC,Resources,Children & Education Services,Brake Bros Foodservice Ltd,29/04/2016,,30.63,Catering Provisions,110000 - Catering
Solihull MBC,Resources,Children & Education Services,Brake Bros Foodservice Ltd,29/04/2016,,30.63,Catering Provisions,110000 - Catering
Solihull MBC,Resources,Children & Education Services,Brake Bros Foodservice Ltd,29/04/2016,,35.67,Catering Provisions,110000 - Catering
Solihull MBC,Resources,Children & Education Services,Brake Bros Foodservice Ltd,29/04/2016,,45.28,Catering Provisions,110000 - Catering
Solihull MBC,Resources,Children & Education Services,Brake Bros Foodservice Ltd,29/04/2016,,541.61,Catering Provisions,110000 - Catering
Solihull MBC,Resources,Children & Education Services,Brake Bros Foodservice Ltd,29/04/2016,,668.63,Catering Provisions,110000 - Catering
Solihull MBC,Resources,Children & Education Services,Brake Bros Foodservice Ltd,29/04/2016,,508.97,Catering Provisions,110000 - Catering
Solihull MBC,Resources,Children & Education Services,Brake Bros Foodservice Ltd,29/04/2016,,543.99,Catering Provisions,110000 - Catering
Solihull MBC,Resources,Children & Education Services,Brake Bros Foodservice Ltd,29/04/2016,,510.39,Catering Provisions,110000 - Catering
Solihull MBC,Resources,Children & Education Services,Brake Bros Foodservice Ltd,29/04/2016,,474.28,Catering Provisions,110000 - Catering
Solihull MBC,Resources,Children & Education Services,Brake Bros Foodservice Ltd,29/04/2016,,457.42,Catering Provisions,110000 - Catering
Solihull MBC,Resources,Children & Education Services,Brake Bros Foodservice Ltd,29/04/2016,,454.01,Catering Provisions,110000 - Catering
Solihull MBC,Resources,Children & Education Services,Brake Bros Foodservice Ltd,29/04/2016,,329.15,Catering Provisions,110000 - Catering
Solihull MBC,Resources,Children & Education Services,Brake Bros Foodservice Ltd,29/04/2016,,474.85,Catering Provisions,110000 - Catering
Solihull MBC,Resources,Children & Education Services,Brake Bros Foodservice Ltd,29/04/2016,,456.05,Catering Provisions,110000 - Catering
Solihull MBC,Resources,Children & Education Services,Brake Bros Foodservice Ltd,29/04/2016,,413.45,Catering Provisions,110000 - Catering
Solihull MBC,Resources,Children & Education Services,Brake Bros Foodservice Ltd,29/04/2016,,408.67,Catering Provisions,110000 - Catering
Solihull MBC,Resources,Children & Education Services,Brake Bros Foodservice Ltd,29/04/2016,,437.39,Catering Provisions,110000 - Catering
Solihull MBC,Resources,Children & Education Services,Brake Bros Foodservice Ltd,29/04/2016,,392.66,Catering Provisions,110000 - Catering
Solihull MBC,Resources,Children & Education Services,Brake Bros Foodservice Ltd,29/04/2016,,389.17,Catering Provisions,110000 - Catering
Solihull MBC,Resources,Children & Education Services,Brake Bros Foodservice Ltd,29/04/2016,,402.22,Catering Provisions,110000 - Catering
Solihull MBC,Resources,Children & Education Services,Brake Bros Foodservice Ltd,29/04/2016,,381.49,Catering Provisions,110000 - Catering
Solihull MBC,Resources,Children & Education Services,Brake Bros Foodservice Ltd,29/04/2016,,61.26,Catering Provisions,110000 - Catering
Solihull MBC,Resources,Children & Education Services,Brake Bros Foodservice Ltd,29/04/2016,,30.63,Catering Provisions,110000 - Catering
Solihull MBC,Resources,Children & Education Services,Brake Bros Foodservice Ltd,29/04/2016,,30.63,Catering Provisions,110000 - Catering
Solihull MBC,Resources,Children & Education Services,Brake Bros Foodservice Ltd,29/04/2016,,30.63,Catering Provisions,110000 - Catering
Solihull MBC,Resources,Children & Education Services,Brake Bros Foodservice Ltd,29/04/2016,,30.63,Catering Provisions,110000 - Catering
Solihull MBC,Resources,Children & Education Services,Brake Bros Foodservice Ltd,29/04/2016,,14.49,Catering Provisions,110000 - Catering
Solihull MBC,Resources,Children & Education Services,Brake Bros Foodservice Ltd,29/04/2016,,10.26,Catering Provisions,110000 - Catering
Solihull MBC,Resources,Children & Education Services,Brake Bros Foodservice Ltd,29/04/2016,,30.63,Catering Provisions,110000 - Catering
Solihull MBC,Resources,Children & Education Services,Brake Bros Foodservice Ltd,29/04/2016,,105.90,Catering Provisions,110000 - Catering
Solihull MBC,Resources,Children & Education Services,Brake Bros Foodservice Ltd,29/04/2016,,14.65,Catering Provisions,110000 - Catering
Solihull MBC,Resources,Children & Education Services,Brake Bros Foodservice Ltd,29/04/2016,,30.63,Catering Provisions,110000 - Catering
Solihull MBC,Resources,Children & Education Services,Brake Bros Foodservice Ltd,29/04/2016,,14.65,Catering Provisions,110000 - Catering
Solihull MBC,Resources,Children & Education Services,Brake Bros Foodservice Ltd,29/04/2016,,30.63,Catering Provisions,110000 - Catering
Solihull MBC,Resources,Children & Education Services,Brake Bros Foodservice Ltd,29/04/2016,,30.63,Catering Provisions,110000 - Catering
Solihull MBC,Resources,Children & Education Services,Brake Bros Foodservice Ltd,29/04/2016,,20.51,Catering Provisions,110000 - Catering
Solihull MBC,Resources,Children & Education Services,Brake Bros Foodservice Ltd,29/04/2016,,4.83,Catering Provisions,110000 - Catering
Solihull MBC,Resources,Children & Education Services,Brake Bros Foodservice Ltd,29/04/2016,,30.63,Catering Provisions,110000 - Catering
Solihull MBC,Resources,Children & Education Services,Brake Bros Foodservice Ltd,29/04/2016,,30.63,Catering Provisions,110000 - Catering
Solihull MBC,Resources,Children & Education Services,Brake Bros Foodservice Ltd,29/04/2016,,43.19,Catering Provisions,110000 - Catering
Solihull MBC,Resources,Children & Education Services,Brake Bros Foodservice Ltd,29/04/2016,,30.63,Catering Provisions,110000 - Catering
Solihull MBC,Resources,Children & Education Services,Brake Bros Foodservice Ltd,29/04/2016,,30.63,Catering Provisions,110000 - Catering
Solihull MBC,Resources,Children & Education Services,Brake Bros Foodservice Ltd,29/04/2016,,30.63,Catering Provisions,110000 - Catering
Solihull MBC,Resources,Children & Education Services,Brake Bros Foodservice Ltd,29/04/2016,,30.63,Catering Provisions,110000 - Catering
Solihull MBC,Resources,Children & Education Services,Brake Bros Foodservice Ltd,29/04/2016,,24.75,Catering Provisions,110000 - Catering
Solihull MBC,Resources,Children & Education Services,Brake Bros Foodservice Ltd,29/04/2016,,30.63,Catering Provisions,110000 - Catering
Solihull MBC,Resources,Children & Education Services,Brake Bros Foodservice Ltd,29/04/2016,,30.63,Catering Provisions,110000 - Catering
Solihull MBC,Resources,Children & Education Services,Brake Bros Foodservice Ltd,29/04/2016,,30.63,Catering Provisions,110000 - Catering
Solihull MBC,Resources,Children & Education Services,Brake Bros Foodservice Ltd,29/04/2016,,30.63,Catering Provisions,110000 - Catering
Solihull MBC,Resources,Children & Education Services,Brake Bros Foodservice Ltd,29/04/2016,,14.65,Catering Provisions,110000 - Catering
Solihull MBC,Resources,Children & Education Services,Brake Bros Foodservice Ltd,29/04/2016,,6.75,Catering Provisions,110000 - Catering
Solihull MBC,Resources,Children & Education Services,Brake Bros Foodservice Ltd,29/04/2016,,6.75,Catering Provisions,110000 - Catering
Solihull MBC,Resources,Children & Education Services,Brake Bros Foodservice Ltd,29/04/2016,,294.87,Catering Provisions,110000 - Catering
Solihull MBC,Resources,Children & Education Services,Brake Bros Foodservice Ltd,29/04/2016,,290.53,Catering Provisions,110000 - Catering
Solihull MBC,Resources,Children & Education Services,Brake Bros Foodservice Ltd,29/04/2016,,288.57,Catering Provisions,110000 - Catering
Solihull MBC,Resources,Children & Education Services,Brake Bros Foodservice Ltd,29/04/2016,,287.14,Catering Provisions,110000 - Catering
Solihull MBC,Resources,Children & Education Services,Brake Bros Foodservice Ltd,29/04/2016,,279.07,Catering Provisions,110000 - Catering
Solihull MBC,Resources,Children & Education Services,Brake Bros Foodservice Ltd,29/04/2016,,277.21,Catering Provisions,110000 - Catering
Solihull MBC,Resources,Children & Education Services,Brake Bros Foodservice Ltd,29/04/2016,,276.38,Catering Provisions,110000 - Catering
Solihull MBC,Resources,Children & Education Services,Brake Bros Foodservice Ltd,29/04/2016,,233.27,Catering Provisions,110000 - Catering
Solihull MBC,Resources,Children & Education Services,Brake Bros Foodservice Ltd,29/04/2016,,263.09,Catering Provisions,110000 - Catering
Solihull MBC,Resources,Children & Education Services,Brake Bros Foodservice Ltd,29/04/2016,,258.59,Catering Provisions,110000 - Catering
Solihull MBC,Resources,Children & Education Services,Brake Bros Foodservice Ltd,29/04/2016,,253.28,Catering Provisions,110000 - Catering
Solihull MBC,Resources,Children & Education Services,Brake Bros Foodservice Ltd,29/04/2016,,250.79,Catering Provisions,110000 - Catering
Solihull MBC,Resources,Children & Education Services,Brake Bros Foodservice Ltd,29/04/2016,,192.51,Catering Provisions,110000 - Catering
Solihull MBC,Resources,Children & Education Services,Brake Bros Foodservice Ltd,29/04/2016,,241.68,Catering Provisions,110000 - Catering
Solihull MBC,Resources,Children & Education Services,Brake Bros Foodservice Ltd,29/04/2016,,233.87,Catering Provisions,110000 - Catering
Solihull MBC,Resources,Children & Education Services,Brake Bros Foodservice Ltd,29/04/2016,,200.90,Catering Provisions,110000 - Catering
Solihull MBC,Resources,Children & Education Services,Brake Bros Foodservice Ltd,29/04/2016,,235.41,Catering Provisions,110000 - Catering
Solihull MBC,Resources,Children & Education Services,Brake Bros Foodservice Ltd,29/04/2016,,235.11,Catering Provisions,110000 - Catering
Solihull MBC,Resources,Children & Education Services,Brake Bros Foodservice Ltd,29/04/2016,,233.81,Catering Provisions,110000 - Catering
Solihull MBC,Resources,Children & Education Services,Brake Bros Foodservice Ltd,29/04/2016,,229.39,Catering Provisions,110000 - Catering
Solihull MBC,Resources,Children & Education Services,Brake Bros Foodservice Ltd,29/04/2016,,177.54,Catering Provisions,110000 - Catering
Solihull MBC,Resources,Children & Education Services,Brake Bros Foodservice Ltd,29/04/2016,,174.85,Catering Provisions,110000 - Catering
Solihull MBC,Resources,Children & Education Services,Brake Bros Foodservice Ltd,29/04/2016,,174.32,Catering Provisions,110000 - Catering
Solihull MBC,Resources,Children & Education Services,Brake Bros Foodservice Ltd,29/04/2016,,208.37,Catering Provisions,110000 - Catering
Solihull MBC,Resources,Children & Education Services,Brake Bros Foodservice Ltd,29/04/2016,,177.06,Catering Provisions,110000 - Catering
Solihull MBC,Resources,Children & Education Services,Brake Bros Foodservice Ltd,29/04/2016,,205.44,Catering Provisions,110000 - Catering
Solihull MBC,Resources,Children & Education Services,Brake Bros Foodservice Ltd,29/04/2016,,199.69,Catering Provisions,110000 - Catering
Solihull MBC,Resources,Children & Education Services,Brake Bros Foodservice Ltd,29/04/2016,,199.22,Catering Provisions,110000 - Catering
Solihull MBC,Resources,Children & Education Services,Brake Bros Foodservice Ltd,29/04/2016,,191.75,Catering Provisions,110000 - Catering
Solihull MBC,Resources,Children & Education Services,Brake Bros Foodservice Ltd,29/04/2016,,154.51,Catering Provisions,110000 - Catering
Solihull MBC,Resources,Children & Education Services,Brake Bros Foodservice Ltd,29/04/2016,,177.71,Catering Provisions,110000 - Catering
Solihull MBC,Resources,Children & Education Services,Brake Bros Foodservice Ltd,29/04/2016,,190.49,Catering Provisions,110000 - Catering
Solihull MBC,Resources,Children & Education Services,Brake Bros Foodservice Ltd,29/04/2016,,180.56,Catering Provisions,110000 - Catering
Solihull MBC,Resources,Children & Education Services,Brake Bros Foodservice Ltd,29/04/2016,,11.78,Catering Provisions,110000 - Catering
Solihull MBC,Resources,Children & Education Services,Brake Bros Foodservice Ltd,29/04/2016,,22.59,Catering Provisions,110000 - Catering
Solihull MBC,Resources,Children & Education Services,Brake Bros Foodservice Ltd,29/04/2016,,105.23,Catering Provisions,110000 - Catering
Solihull MBC,Resources,Children & Education Services,Brake Bros Foodservice Ltd,29/04/2016,,23.56,Catering Provisions,110000 - Catering
Solihull MBC,Resources,Children & Education Services,Brake Bros Foodservice Ltd,29/04/2016,,23.56,Catering Provisions,110000 - Catering
Solihull MBC,Resources,Children & Education Services,Brake Bros Foodservice Ltd,29/04/2016,,23.56,Catering Provisions,110000 - Catering
Solihull MBC,Resources,Children & Education Services,Brake Bros Foodservice Ltd,29/04/2016,,11.78,Catering Provisions,110000 - Catering
Solihull MBC,Resources,Children & Education Services,Brake Bros Foodservice Ltd,29/04/2016,,8.92,Catering Provisions,110000 - Catering
Solihull MBC,Resources,Children & Education Services,Brake Bros Foodservice Ltd,29/04/2016,,23.56,Catering Provisions,110000 - Catering
Solihull MBC,Resources,Children & Education Services,Brake Bros Foodservice Ltd,29/04/2016,,9.00,Catering Provisions,110000 - Catering
Solihull MBC,Resources,Children & Education Services,Brake Bros Foodservice Ltd,29/04/2016,,2.64,Catering Provisions,110000 - Catering
Solihull MBC,Resources,Children & Education Services,Brake Bros Foodservice Ltd,29/04/2016,,19.70,Catering Provisions,110000 - Catering
Solihull MBC,Resources,Children & Education Services,Brake Bros Foodservice Ltd,29/04/2016,,11.40,Catering Provisions,110000 - Catering
Solihull MBC,Resources,Children & Education Services,Brake Bros Foodservice Ltd,29/04/2016,,23.56,Catering Provisions,110000 - Catering
Solihull MBC,Resources,Children & Education Services,Brake Bros Foodservice Ltd,29/04/2016,,11.78,Catering Provisions,110000 - Catering
Solihull MBC,Resources,Children & Education Services,Brake Bros Foodservice Ltd,29/04/2016,,11.78,Catering Provisions,110000 - Catering
Solihull MBC,Resources,Children & Education Services,Brake Bros Foodservice Ltd,29/04/2016,,8.92,Catering Provisions,110000 - Catering
Solihull MBC,Resources,Children & Education Services,Brake Bros Foodservice Ltd,29/04/2016,,34.99,Catering Provisions,110000 - Catering
Solihull MBC,Resources,Children & Education Services,Brake Bros Foodservice Ltd,29/04/2016,,23.56,Catering Provisions,110000 - Catering
Solihull MBC,Resources,Children & Education Services,Brake Bros Foodservice Ltd,29/04/2016,,18.80,Catering Provisions,110000 - Catering
Solihull MBC,Resources,Children & Education Services,Brake Bros Foodservice Ltd,29/04/2016,,11.78,Catering Provisions,110000 - Catering
Solihull MBC,Resources,Children & Education Services,Brake Bros Foodservice Ltd,29/04/2016,,11.78,Catering Provisions,110000 - Catering
Solihull MBC,Resources,Children & Education Services,Brake Bros Foodservice Ltd,29/04/2016,,30.30,Catering Provisions,110000 - Catering
Solihull MBC,Resources,Children & Education Services,Brake Bros Foodservice Ltd,29/04/2016,,11.78,Catering Provisions,110000 - Catering
Solihull MBC,Resources,Children & Education Services,Brake Bros Foodservice Ltd,29/04/2016,,353.32,Catering Provisions,110000 - Catering
Solihull MBC,Resources,Children & Education Services,Brake Bros Foodservice Ltd,29/04/2016,,352.70,Catering Provisions,110000 - Catering
Solihull MBC,Resources,Children & Education Services,Brake Bros Foodservice Ltd,29/04/2016,,349.88,Catering Provisions,110000 - Catering
Solihull MBC,Resources,Children & Education Services,Brake Bros Foodservice Ltd,29/04/2016,,348.25,Catering Provisions,110000 - Catering
Solihull MBC,Resources,Children & Education Services,Brake Bros Foodservice Ltd,29/04/2016,,344.71,Catering Provisions,110000 - Catering
Solihull MBC,Resources,Children & Education Services,Brake Bros Foodservice Ltd,29/04/2016,,344.57,Catering Provisions,110000 - Catering
Solihull MBC,Resources,Children & Education Services,Brake Bros Foodservice Ltd,29/04/2016,,343.51,Catering Provisions,110000 - Catering
Solihull MBC,Resources,Children & Education Services,Brake Bros Foodservice Ltd,29/04/2016,,342.48,Catering Provisions,110000 - Catering
Solihull MBC,Resources,Children & Education Services,Brake Bros Foodservice Ltd,29/04/2016,,342.09,Catering Provisions,110000 - Catering
Solihull MBC,Resources,Children & Education Services,Brake Bros Foodservice Ltd,29/04/2016,,304.28,Catering Provisions,110000 - Catering
Solihull MBC,Resources,Children & Education Services,Brake Bros Foodservice Ltd,29/04/2016,,301.62,Catering Provisions,110000 - Catering
Solihull MBC,Resources,Children & Education Services,Brake Bros Foodservice Ltd,29/04/2016,,336.61,Catering Provisions,110000 - Catering
Solihull MBC,Resources,Children & Education Services,Brake Bros Foodservice Ltd,29/04/2016,,294.68,Catering Provisions,110000 - Catering
Solihull MBC,Resources,Children & Education Services,Brake Bros Foodservice Ltd,29/04/2016,,313.69,Catering Provisions,110000 - Catering
Solihull MBC,Resources,Children & Education Services,Brake Bros Foodservice Ltd,29/04/2016,,316.52,Catering Provisions,110000 - Catering
Solihull MBC,Resources,Children & Education Services,Brake Bros Foodservice Ltd,29/04/2016,,321.47,Catering Provisions,110000 - Catering
Solihull MBC,Resources,Children & Education Services,Brake Bros Foodservice Ltd,29/04/2016,,290.54,Catering Provisions,110000 - Catering
Solihull MBC,Resources,Children & Education Services,Brake Bros Foodservice Ltd,29/04/2016,,309.03,Catering Provisions,110000 - Catering
Solihull MBC,Resources,Children & Education Services,Brake Bros Foodservice Ltd,29/04/2016,,289.71,Catering Provisions,110000 - Catering
Solihull MBC,Resources,Children & Education Services,Brake Bros Foodservice Ltd,29/04/2016,,296.92,Catering Provisions,110000 - Catering
Solihull MBC,Resources,Children & Education Services,Brake Bros Foodservice Ltd,29/04/2016,,187.17,Catering Provisions,110000 - Catering
Solihull MBC,Resources,Children & Education Services,Brake Bros Foodservice Ltd,29/04/2016,,312.97,Catering Provisions,110000 - Catering
Solihull MBC,Resources,Children & Education Services,Brake Bros Foodservice Ltd,29/04/2016,,275.65,Catering Provisions,110000 - Catering
Solihull MBC,Resources,Children & Education Services,Brake Bros Foodservice Ltd,29/04/2016,,273.39,Catering Provisions,110000 - Catering
Solihull MBC,Resources,Children & Education Services,Brake Bros Foodservice Ltd,29/04/2016,,309.55,Catering Provisions,110000 - Catering
Solihull MBC,Resources,Children & Education Services,Brake Bros Foodservice Ltd,29/04/2016,,307.25,Catering Provisions,110000 - Catering
Solihull MBC,Resources,Children & Education Services,Brake Bros Foodservice Ltd,29/04/2016,,282.37,Catering Provisions,110000 - Catering
Solihull MBC,Resources,Children & Education Services,Brake Bros Foodservice Ltd,29/04/2016,,301.11,Catering Provisions,110000 - Catering
Solihull MBC,Resources,Children & Education Services,Brake Bros Foodservice Ltd,29/04/2016,,304.38,Catering Provisions,110000 - Catering
Solihull MBC,Resources,Children & Education Services,Brake Bros Foodservice Ltd,29/04/2016,,303.17,Catering Provisions,110000 - Catering
Solihull MBC,Resources,Children & Education Services,Brake Bros Foodservice Ltd,29/04/2016,,263.21,Catering Provisions,110000 - Catering
Solihull MBC,Resources,Children & Education Services,Brake Bros Foodservice Ltd,29/04/2016,,30.63,Catering Provisions,110000 - Catering
Solihull MBC,Resources,Children & Education Services,Brake Bros Foodservice Ltd,29/04/2016,,298.90,Catering Provisions,110000 - Catering
Solihull MBC,Resources,Children & Education Services,Brake Bros Foodservice Ltd,29/04/2016,,30.63,Catering Provisions,110000 - Catering
Solihull MBC,Resources,Children & Education Services,Brake Bros Foodservice Ltd,29/04/2016,,30.63,Catering Provisions,110000 - Catering
Solihull MBC,Resources,Children & Education Services,Brake Bros Foodservice Ltd,29/04/2016,,61.26,Catering Provisions,110000 - Catering
Solihull MBC,Resources,Children & Education Services,Brake Bros Foodservice Ltd,29/04/2016,,10.25,Catering Provisions,110000 - Catering
Solihull MBC,Resources,Children & Education Services,Brake Bros Foodservice Ltd,29/04/2016,,42.17,Catering Provisions,110000 - Catering
Solihull MBC,Resources,Children & Education Services,Brake Bros Foodservice Ltd,29/04/2016,,30.63,Catering Provisions,110000 - Catering
Solihull MBC,Resources,Children & Education Services,Brake Bros Foodservice Ltd,29/04/2016,,33.88,Catering Provisions,110000 - Catering
Solihull MBC,Resources,Children & Education Services,Brake Bros Foodservice Ltd,29/04/2016,,431.43,Catering Provisions,110000 - Catering
Solihull MBC,Resources,Children & Education Services,Brake Bros Foodservice Ltd,29/04/2016,,393.29,Catering Provisions,110000 - Catering
Solihull MBC,Resources,Children & Education Services,Brake Bros Foodservice Ltd,29/04/2016,,457.07,Catering Provisions,110000 - Catering
Solihull MBC,Resources,Children & Education Services,Brake Bros Foodservice Ltd,29/04/2016,,427.48,Catering Provisions,110000 - Catering
Solihull MBC,Resources,Children & Education Services,Brake Bros Foodservice Ltd,29/04/2016,,299.72,Catering Provisions,110000 - Catering
Solihull MBC,Resources,Children & Education Services,Brake Bros Foodservice Ltd,29/04/2016,,387.74,Catering Provisions,110000 - Catering
Solihull MBC,Resources,Children & Education Services,Brake Bros Foodservice Ltd,29/04/2016,,410.97,Catering Provisions,110000 - Catering
Solihull MBC,Resources,Children & Education Services,Brake Bros Foodservice Ltd,29/04/2016,,367.04,Catering Provisions,110000 - Catering
Solihull MBC,Resources,Children & Education Services,Brake Bros Foodservice Ltd,29/04/2016,,357.00,Catering Provisions,110000 - Catering
Solihull MBC,Resources,Children & Education Services,Brake Bros Foodservice Ltd,29/04/2016,,370.29,Catering Provisions,110000 - Catering
Solihull MBC,Resources,Children & Education Services,Brake Bros Foodservice Ltd,29/04/2016,,326.27,Catering Provisions,110000 - Catering
Solihull MBC,Resources,Children & Education Services,Brake Bros Foodservice Ltd,29/04/2016,,308.31,Catering Provisions,110000 - Catering
Solihull MBC,Resources,Children & Education Services,Brake Bros Foodservice Ltd,29/04/2016,,311.56,Catering Provisions,110000 - Catering
Solihull MBC,Resources,Children & Education Services,Brake Bros Foodservice Ltd,29/04/2016,,307.81,Catering Provisions,110000 - Catering
Solihull MBC,Resources,Children & Education Services,Brake Bros Foodservice Ltd,29/04/2016,,662.46,Catering Provisions,110000 - Catering
Solihull MBC,Resources,Children & Education Services,Brake Bros Foodservice Ltd,29/04/2016,,397.57,Catering Provisions,110000 - Catering
Solihull MBC,Resources,Children & Education Services,Brake Bros Foodservice Ltd,29/04/2016,,422.00,Catering Provisions,110000 - Catering
Solihull MBC,Resources,Children & Education Services,Brake Bros Foodservice Ltd,29/04/2016,,286.28,Catering Provisions,110000 - Catering
Solihull MBC,Resources,Children & Education Services,Brake Bros Foodservice Ltd,29/04/2016,,682.28,Catering Provisions,110000 - Catering
Solihull MBC,Resources,Children & Education Services,Brake Bros Foodservice Ltd,29/04/2016,,339.26,Catering Provisions,110000 - Catering
Solihull MBC,Resources,Children & Education Services,Brake Bros Foodservice Ltd,29/04/2016,,516.29,Catering Provisions,110000 - Catering
Solihull MBC,Resources,Children & Education Services,Brake Bros Foodservice Ltd,29/04/2016,,363.97,Catering Provisions,110000 - Catering
Solihull MBC,Resources,Children & Education Services,Brake Bros Foodservice Ltd,29/04/2016,,510.27,Catering Provisions,110000 - Catering
Solihull MBC,Resources,Children & Education Services,Brake Bros Foodservice Ltd,29/04/2016,,536.14,Catering Provisions,110000 - Catering
Solihull MBC,Resources,Children & Education Services,Brake Bros Foodservice Ltd,29/04/2016,,258.75,Catering Provisions,110000 - Catering
Solihull MBC,Resources,Children & Education Services,Brake Bros Foodservice Ltd,29/04/2016,,267.20,Catering Provisions,110000 - Catering
Solihull MBC,Resources,Children & Education Services,Brake Bros Foodservice Ltd,29/04/2016,,238.35,Catering Provisions,110000 - Catering
Solihull MBC,Resources,Children & Education Services,Brake Bros Foodservice Ltd,29/04/2016,,243.32,Catering Provisions,110000 - Catering
Solihull MBC,Resources,Children & Education Services,Brake Bros Foodservice Ltd,29/04/2016,,249.36,Catering Provisions,110000 - Catering
Solihull MBC,Resources,Children & Education Services,Brake Bros Foodservice Ltd,29/04/2016,,228.70,Catering Provisions,110000 - Catering
Solihull MBC,Resources,Children & Education Services,Brake Bros Foodservice Ltd,29/04/2016,,222.51,Catering Provisions,110000 - Catering
Solihull MBC,Resources,Children & Education Services,Brake Bros Foodservice Ltd,29/04/2016,,206.38,Catering Provisions,110000 - Catering
Solihull MBC,Resources,Children & Education Services,Brake Bros Foodservice Ltd,29/04/2016,,201.41,Catering Provisions,110000 - Catering
Solihull MBC,Resources,Children & Education Services,Brake Bros Foodservice Ltd,29/04/2016,,190.84,Catering Provisions,110000 - Catering
Solihull MBC,Resources,Children & Education Services,Brake Bros Foodservice Ltd,29/04/2016,,186.68,Catering Provisions,110000 - Catering
Solihull MBC,Resources,Children & Education Services,Brake Bros Foodservice Ltd,29/04/2016,,174.18,Catering Provisions,110000 - Catering
Solihull MBC,Resources,Children & Education Services,Brake Bros Foodservice Ltd,29/04/2016,,181.02,Catering Provisions,110000 - Catering
Solihull MBC,Resources,Children & Education Services,Brake Bros Foodservice Ltd,29/04/2016,,130.47,Catering Provisions,110000 - Catering
Solihull MBC,Resources,Children & Education Services,Brake Bros Foodservice Ltd,29/04/2016,,171.49,Catering Provisions,110000 - Catering
Solihull MBC,Resources,Children & Education Services,Brake Bros Foodservice Ltd,29/04/2016,,141.40,Catering Provisions,110000 - Catering
Solihull MBC,Resources,Children & Education Services,Brake Bros Foodservice Ltd,29/04/2016,,145.80,Catering Provisions,110000 - Catering
Solihull MBC,Resources,Children & Education Services,Brake Bros Foodservice Ltd,29/04/2016,,159.60,Catering Provisions,110000 - Catering
Solihull MBC,Resources,Children & Education Services,Brake Bros Foodservice Ltd,29/04/2016,,127.83,Catering Provisions,110000 - Catering
Solihull MBC,Resources,Children & Education Services,Brake Bros Foodservice Ltd,29/04/2016,,108.10,Catering Provisions,110000 - Catering
Solihull MBC,Resources,Children & Education Services,Brake Bros Foodservice Ltd,29/04/2016,,57.24,Catering Provisions,110000 - Catering
Solihull MBC,Resources,Children & Education Services,Brake Bros Foodservice Ltd,29/04/2016,,33.36,Catering Provisions,110000 - Catering
Solihull MBC,Resources,Children & Education Services,Brake Bros Foodservice Ltd,29/04/2016,,39.52,Catering Provisions,110000 - Catering
Solihull MBC,Resources,Children & Education Services,Brake Bros Foodservice Ltd,29/04/2016,,37.23,Catering Provisions,110000 - Catering
Solihull MBC,Resources,Children & Education Services,Brake Bros Foodservice Ltd,29/04/2016,,24.48,Catering Provisions,110000 - Catering
Solihull MBC,Resources,Children & Education Services,Brake Bros Foodservice Ltd,29/04/2016,,370.05,Catering Provisions,110000 - Catering
Solihull MBC,Resources,Children & Education Services,Brake Bros Foodservice Ltd,29/04/2016,,282.75,Catering Provisions,110000 - Catering
Solihull MBC,Resources,Children & Education Services,Brake Bros Foodservice Ltd,29/04/2016,,15.24,Catering Provisions,110000 - Catering
Solihull MBC,Resources,Children & Education Services,Brake Bros Foodservice Ltd,29/04/2016,,14.04,Catering Provisions,110000 - Catering
Solihull MBC,Resources,Children & Education Services,Brake Bros Foodservice Ltd,29/04/2016,,555.67,Catering Provisions,110000 - Catering
Solihull MBC,Resources,Children & Education Services,Brake Bros Foodservice Ltd,29/04/2016,,483.74,Catering Provisions,110000 - Catering
Solihull MBC,Resources,Children & Education Services,Brake Bros Foodservice Ltd,29/04/2016,,20.78,Catering Provisions,110000 - Catering
Solihull MBC,Resources,Children & Education Services,Brake Bros Foodservice Ltd,29/04/2016,,2.64,Catering Provisions,110000 - Catering
Solihull MBC,Resources,Children & Education Services,Brake Bros Foodservice Ltd,29/04/2016,,280.94,Catering Provisions,110000 - Catering
Solihull MBC,Resources,Children & Education Services,Brake Bros Foodservice Ltd,29/04/2016,,121.19,Catering Provisions,110000 - Catering
Solihull MBC,Resources,Children & Education Services,Brake Bros Foodservice Ltd,29/04/2016,,238.21,Catering Provisions,110000 - Catering
Solihull MBC,Resources,Children & Education Services,Brake Bros Foodservice Ltd,29/04/2016,,51.85,Catering Provisions,110000 - Catering
Solihull MBC,Resources,Children & Education Services,Brake Bros Foodservice Ltd,29/04/2016,,28.53,Catering Provisions,110000 - Catering
Solihull MBC,Resources,Children & Education Services,Brake Bros Foodservice Ltd,29/04/2016,,73.96,Catering Provisions,110000 - Catering
Solihull MBC,Resources,Children & Education Services,Brake Bros Foodservice Ltd,29/04/2016,,78.73,Catering Provisions,110000 - Catering
Solihull MBC,Resources,Children & Education Services,Brake Bros Foodservice Ltd,29/04/2016,,290.41,Catering Provisions,110000 - Catering
Solihull MBC,Resources,Children & Education Services,Brake Bros Foodservice Ltd,29/04/2016,,267.87,Catering Provisions,110000 - Catering
Solihull MBC,Resources,Children & Education Services,Brake Bros Foodservice Ltd,29/04/2016,,283.25,Catering Provisions,110000 - Catering
Solihull MBC,Resources,Children & Education Services,Brake Bros Foodservice Ltd,29/04/2016,,280.52,Catering Provisions,110000 - Catering
Solihull MBC,Resources,Children & Education Services,Brake Bros Foodservice Ltd,29/04/2016,,272.90,Catering Provisions,110000 - Catering
Solihull MBC,Resources,Children & Education Services,Brake Bros Foodservice Ltd,29/04/2016,,251.19,Catering Provisions,110000 - Catering
Solihull MBC,Resources,Children & Education Services,Brake Bros Foodservice Ltd,29/04/2016,,263.48,Catering Provisions,110000 - Catering
Solihull MBC,Resources,Children & Education Services,Brake Bros Foodservice Ltd,29/04/2016,,260.25,Catering Provisions,110000 - Catering
Solihull MBC,Resources,Children & Education Services,Brake Bros Foodservice Ltd,29/04/2016,,241.15,Catering Provisions,110000 - Catering
Solihull MBC,Resources,Children & Education Services,Brake Bros Foodservice Ltd,29/04/2016,,239.95,Catering Provisions,110000 - Catering
Solihull MBC,Resources,Children & Education Services,Brake Bros Foodservice Ltd,29/04/2016,,232.59,Catering Provisions,110000 - Catering
Solihull MBC,Resources,Children & Education Services,Brake Bros Foodservice Ltd,29/04/2016,,252.78,Catering Provisions,110000 - Catering
Solihull MBC,Resources,Children & Education Services,Brake Bros Foodservice Ltd,29/04/2016,,247.46,Catering Provisions,110000 - Catering
Solihull MBC,Resources,Children & Education Services,Brake Bros Foodservice Ltd,29/04/2016,,245.22,Catering Provisions,110000 - Catering
Solihull MBC,Resources,Children & Education Services,Brake Bros Foodservice Ltd,29/04/2016,,29.30,Catering Provisions,110000 - Catering
Solihull MBC,Resources,Children & Education Services,Brake Bros Foodservice Ltd,29/04/2016,,14.65,Catering Provisions,110000 - Catering
Solihull MBC,Resources,Children & Education Services,Brake Bros Foodservice Ltd,29/04/2016,,29.30,Catering Provisions,110000 - Catering
Solihull MBC,Resources,Children & Education Services,Brake Bros Foodservice Ltd,29/04/2016,,29.30,Catering Provisions,110000 - Catering
Solihull MBC,Resources,Children & Education Services,Brake Bros Foodservice Ltd,29/04/2016,,14.65,Catering Provisions,110000 - Catering
Solihull MBC,Resources,Children & Education Services,Brake Bros Foodservice Ltd,29/04/2016,,14.65,Catering Provisions,110000 - Catering
Solihull MBC,Resources,Children & Education Services,Brake Bros Foodservice Ltd,29/04/2016,,14.65,Catering Provisions,110000 - Catering
Solihull MBC,Resources,Children & Education Services,Brake Bros Foodservice Ltd,29/04/2016,,14.65,Catering Provisions,110000 - Catering
Solihull MBC,Resources,Children & Education Services,Brake Bros Foodservice Ltd,29/04/2016,,3.25,Catering Provisions,110000 - Catering
Solihull MBC,Resources,Children & Education Services,Brake Bros Foodservice Ltd,29/04/2016,,21.15,Catering Provisions,110000 - Catering
Solihull MBC,Resources,Children & Education Services,Brake Bros Foodservice Ltd,29/04/2016,,14.65,Catering Provisions,110000 - Catering
Solihull MBC,Resources,Children & Education Services,Brake Bros Foodservice Ltd,29/04/2016,,14.65,Catering Provisions,110000 - Catering
Solihull MBC,Resources,Children & Education Services,Brake Bros Foodservice Ltd,29/04/2016,,24.91,Catering Provisions,110000 - Catering
Solihull MBC,Resources,Children & Education Services,Brake Bros Foodservice Ltd,29/04/2016,,29.30,Catering Provisions,110000 - Catering
Solihull MBC,Resources,Children & Education Services,Brake Bros Foodservice Ltd,29/04/2016,,14.65,Catering Provisions,110000 - Catering
Solihull MBC,Resources,Children & Education Services,Brake Bros Foodservice Ltd,29/04/2016,,14.65,Catering Provisions,110000 - Catering
Solihull MBC,Resources,Children & Education Services,Brake Bros Foodservice Ltd,29/04/2016,,238.82,Catering Provisions,110000 - Catering
Solihull MBC,Resources,Children & Education Services,Brake Bros Foodservice Ltd,29/04/2016,,245.22,Catering Provisions,110000 - Catering
Solihull MBC,Resources,Children & Education Services,Brake Bros Foodservice Ltd,29/04/2016,,245.09,Catering Provisions,110000 - Catering
Solihull MBC,Resources,Children & Education Services,Brake Bros Foodservice Ltd,29/04/2016,,242.63,Catering Provisions,110000 - Catering
Solihull MBC,Resources,Children & Education Services,Brake Bros Foodservice Ltd,29/04/2016,,193.85,Catering Provisions,110000 - Catering
Solihull MBC,Resources,Children & Education Services,Brake Bros Foodservice Ltd,29/04/2016,,225.19,Catering Provisions,110000 - Catering
Solihull MBC,Resources,Children & Education Services,Brake Bros Foodservice Ltd,29/04/2016,,224.70,Catering Provisions,110000 - Catering
Solihull MBC,Resources,Children & Education Services,Brake Bros Foodservice Ltd,29/04/2016,,219.45,Catering Provisions,110000 - Catering
Solihull MBC,Resources,Children & Education Services,Brake Bros Foodservice Ltd,29/04/2016,,217.83,Catering Provisions,110000 - Catering
Solihull MBC,Resources,Children & Education Services,Brake Bros Foodservice Ltd,29/04/2016,,214.20,Catering Provisions,110000 - Catering
Solihull MBC,Resources,Children & Education Services,Brake Bros Foodservice Ltd,29/04/2016,,196.38,Catering Provisions,110000 - Catering
Solihull MBC,Resources,Children & Education Services,Brake Bros Foodservice Ltd,29/04/2016,,206.43,Catering Provisions,110000 - Catering
Solihull MBC,Resources,Children & Education Services,Brake Bros Foodservice Ltd,29/04/2016,,188.81,Catering Provisions,110000 - Catering
Solihull MBC,Resources,Children & Education Services,Brake Bros Foodservice Ltd,29/04/2016,,169.58,Catering Provisions,110000 - Catering
Solihull MBC,Resources,Children & Education Services,Brake Bros Foodservice Ltd,29/04/2016,,157.42,Catering Provisions,110000 - Catering
Solihull MBC,Resources,Children & Education Services,Brake Bros Foodservice Ltd,29/04/2016,,200.40,Catering Provisions,110000 - Catering
Solihull MBC,Resources,Children & Education Services,Brake Bros Foodservice Ltd,29/04/2016,,5.04,Catering Provisions,110000 - Catering
Solihull MBC,Resources,Children & Education Services,Brake Bros Foodservice Ltd,29/04/2016,,53.94,Catering Provisions,110000 - Catering
Solihull MBC,Resources,Children & Education Services,Brake Bros Foodservice Ltd,29/04/2016,,14.65,Catering Provisions,110000 - Catering
Solihull MBC,Resources,Children & Education Services,Brake Bros Foodservice Ltd,29/04/2016,,14.65,Catering Provisions,110000 - Catering
Solihull MBC,Resources,Children & Education Services,Brake Bros Foodservice Ltd,29/04/2016,,14.65,Catering Provisions,110000 - Catering
Solihull MBC,Resources,Children & Education Services,Brake Bros Foodservice Ltd,29/04/2016,,14.65,Catering Provisions,110000 - Catering
Solihull MBC,Resources,Children & Education Services,Brake Bros Foodservice Ltd,29/04/2016,,14.65,Catering Provisions,110000 - Catering
Solihull MBC,Resources,Children & Education Services,Brake Bros Foodservice Ltd,29/04/2016,,19.09,Catering Provisions,110000 - Catering
Solihull MBC,Resources,Children & Education Services,Brake Bros Foodservice Ltd,29/04/2016,,29.30,Catering Provisions,110000 - Catering
Solihull MBC,Resources,Children & Education Services,Brake Bros Foodservice Ltd,29/04/2016,,14.65,Catering Provisions,110000 - Catering
Solihull MBC,Resources,Children & Education Services,Brake Bros Foodservice Ltd,29/04/2016,,14.65,Catering Provisions,110000 - Catering
Solihull MBC,Resources,Children & Education Services,Brake Bros Foodservice Ltd,29/04/2016,,29.30,Catering Provisions,110000 - Catering
Solihull MBC,Resources,Children & Education Services,Brake Bros Foodservice Ltd,29/04/2016,,38.96,Catering Provisions,110000 - Catering
Solihull MBC,Resources,Children & Education Services,Brake Bros Foodservice Ltd,29/04/2016,,14.65,Catering Provisions,110000 - Catering
Solihull MBC,Resources,Children & Education Services,Brake Bros Foodservice Ltd,29/04/2016,,14.65,Catering Provisions,110000 - Catering
Solihull MBC,Resources,Children & Education Services,Brake Bros Foodservice Ltd,29/04/2016,,14.65,Catering Provisions,110000 - Catering
Solihull MBC,Resources,Children & Education Services,Brake Bros Foodservice Ltd,29/04/2016,,440.73,Catering Provisions,110000 - Catering
Solihull MBC,Resources,Children & Education Services,Brake Bros Foodservice Ltd,29/04/2016,,14.65,Catering Provisions,110000 - Catering
Solihull MBC,Resources,Children & Education Services,Brake Bros Foodservice Ltd,29/04/2016,,29.30,Catering Provisions,110000 - Catering
Solihull MBC,Resources,Children & Education Services,Brake Bros Foodservice Ltd,29/04/2016,,29.30,Catering Provisions,110000 - Catering
Solihull MBC,Resources,Children & Education Services,Brake Bros Foodservice Ltd,29/04/2016,,29.30,Catering Provisions,110000 - Catering
Solihull MBC,Resources,Children & Education Services,Brake Bros Foodservice Ltd,29/04/2016,,10.26,Catering Provisions,110000 - Catering
Solihull MBC,Resources,Children & Education Services,Brake Bros Foodservice Ltd,29/04/2016,,14.65,Catering Provisions,110000 - Catering
Solihull MBC,Resources,Children & Education Services,Brake Bros Foodservice Ltd,29/04/2016,,14.65,Catering Provisions,110000 - Catering
Solihull MBC,Resources,Children & Education Services,Brake Bros Foodservice Ltd,29/04/2016,,5.04,Catering Provisions,110000 - Catering
Solihull MBC,Resources,Children & Education Services,Brake Bros Foodservice Ltd,29/04/2016,,29.30,Catering Provisions,110000 - Catering
Solihull MBC,Resources,Children & Education Services,Brake Bros Foodservice Ltd,29/04/2016,,4.83,Catering Provisions,110000 - Catering
Solihull MBC,Resources,Children & Education Services,Brake Bros Foodservice Ltd,29/04/2016,,29.30,Catering Provisions,110000 - Catering
Solihull MBC,Resources,Children & Education Services,Brake Bros Foodservice Ltd,29/04/2016,,14.65,Catering Provisions,110000 - Catering
Solihull MBC,Resources,Children & Education Services,Brake Bros Foodservice Ltd,29/04/2016,,29.30,Catering Provisions,110000 - Catering
Solihull MBC,Resources,Children & Education Services,Brake Bros Foodservice Ltd,29/04/2016,,35.17,Catering Provisions,110000 - Catering
Solihull MBC,Resources,Children & Education Services,Brake Bros Foodservice Ltd,29/04/2016,,29.30,Catering Provisions,110000 - Catering
Solihull MBC,Resources,Children & Education Services,Brake Bros Foodservice Ltd,29/04/2016,,14.65,Catering Provisions,110000 - Catering
Solihull MBC,Resources,Children & Education Services,Brake Bros Foodservice Ltd,29/04/2016,,14.65,Catering Provisions,110000 - Catering
Solihull MBC,Resources,Children & Education Services,Brake Bros Foodservice Ltd,29/04/2016,,29.30,Catering Provisions,110000 - Catering
Solihull MBC,Resources,Children & Education Services,Brake Bros Foodservice Ltd,29/04/2016,,14.65,Catering Provisions,110000 - Catering
Solihull MBC,Resources,Children & Education Services,Brake Bros Foodservice Ltd,29/04/2016,,29.30,Catering Provisions,110000 - Catering
Solihull MBC,Resources,Children & Education Services,Brake Bros Foodservice Ltd,29/04/2016,,14.49,Catering Provisions,110000 - Catering
Solihull MBC,Resources,Children & Education Services,Brake Bros Foodservice Ltd,29/04/2016,,29.30,Catering Provisions,110000 - Catering
Solihull MBC,Resources,Children & Education Services,Brake Bros Foodservice Ltd,29/04/2016,,14.65,Catering Provisions,110000 - Catering
Solihull MBC,Resources,Children & Education Services,Brake Bros Foodservice Ltd,29/04/2016,,346.75,Catering Provisions,110000 - Catering
Solihull MBC,Resources,Children & Education Services,Brake Bros Foodservice Ltd,29/04/2016,,373.19,Catering Provisions,110000 - Catering
Solihull MBC,Resources,Children & Education Services,Brake Bros Foodservice Ltd,29/04/2016,,369.87,Catering Provisions,110000 - Catering
Solihull MBC,Resources,Children & Education Services,Brake Bros Foodservice Ltd,29/04/2016,,329.74,Catering Provisions,110000 - Catering
Solihull MBC,Resources,Children & Education Services,Brake Bros Foodservice Ltd,29/04/2016,,324.58,Catering Provisions,110000 - Catering
Solihull MBC,Resources,Children & Education Services,Brake Bros Foodservice Ltd,29/04/2016,,356.32,Catering Provisions,110000 - Catering
Solihull MBC,Resources,Children & Education Services,Brake Bros Foodservice Ltd,29/04/2016,,338.08,Catering Provisions,110000 - Catering
Solihull MBC,Resources,Children & Education Services,Brake Bros Foodservice Ltd,29/04/2016,,352.58,Catering Provisions,110000 - Catering
Solihull MBC,Resources,Children & Education Services,Brake Bros Foodservice Ltd,29/04/2016,,316.85,Catering Provisions,110000 - Catering
Solihull MBC,Resources,Children & Education Services,Brake Bros Foodservice Ltd,29/04/2016,,316.78,Catering Provisions,110000 - Catering
